DepartmentFamily,Entity,Date,ExpenseType,ExpenseArea,Supplier,PaymentNumber,InvoiceDistributionAmount,InvoiceLineDescription,SupplierPostCode,TransactionType
FOOD STANDARDS AGENCY - Westminster,FOOD STANDARDS AGENCY - Westminster,2016-11-17,EXP - PURCHASE OF GOODS/SERVICES - OTHER - PROGRAMME EXPENDITURE,Animal Feed     ,TRADING STANDARDS INSTITUTE (GRANTS),1011701398,281760.42,Feed Off. Conts 2016/17 Prog delivery (inland/ports). Feed Official Controls funding 2016/17: To deliver a programme of Official Controls (inland inspections/sampling & ports work) in 2016/17.,SS15 6TH,PROGRAMME
FOOD STANDARDS AGENCY - Westminster,FOOD STANDARDS AGENCY - Westminster,2016-11-23,EXP - PURCHASE OF GOODS/SERV-ICT OUTSOURC&MAINT/SUPP- IT SUPPORT SERVICES,IT Service Delivery,CAPITA SECURE INFORMATION SOLUTIONS LTD,1011701448,279190.83,CORE SERVICE CHARGE NOVEMBER 2016,SN14 0TW,ADMIN
FOOD STANDARDS AGENCY - Westminster,FOOD STANDARDS AGENCY - Westminster,2016-11-30,EXP - PURCHASE OF GOODS/SERVICES - CONSULTANCY,Contaminants HoD,C E F A S,2012700099,166879,C6132 ANNUAL RIFE REPORT FOR 2016/17,NR33 0HT,PROGRAMME
FOOD STANDARDS AGENCY - Westminster,FOOD STANDARDS AGENCY - Westminster,2016-11-01,EXP - PURCHASE OF GOODS/SERVICES - SHARED SERV OUTSRCG- CIVIL SERV PENSION ADMIN,Finance Director & Branch,LONDON PENSIONS FUND AUTHORITY,1011701248,149333,OCT 16 FUND VALUATION 2013,EC3N 4LP,ADMIN
FOOD STANDARDS AGENCY - Westminster,FOOD STANDARDS AGENCY - Westminster,2016-11-17,EXP - PURCHASE OF GOODS/SERVICES - SHARED SERV OUTSRCG- CIVIL SERV PENSION ADMIN,Finance Director & Branch,LONDON PENSIONS FUND AUTHORITY,1011701400,149333,LONDON PENSION FUND AUTHORITY,EC3N 4LP,ADMIN
FOOD STANDARDS AGENCY - Westminster,FOOD STANDARDS AGENCY - Westminster,2016-11-17,EXP - PURCHASE OF GOODS/SERVICES - OTHER - PROGRAMME EXPENDITURE,Animal Feed     ,TRADING STANDARDS INSTITUTE (GRANTS),1011701398,137196.97,Feed Off. Conts 2016/17 Prog delivery (FH@PP). Feed Official Controls funding 2016/17: To deliver a programme of Official Controls (Food Hygiene at Primary Production) in 2016/17.,SS15 6TH,PROGRAMME
FOOD STANDARDS AGENCY - Westminster,FOOD STANDARDS AGENCY - Westminster,2016-11-25,EXP - PURCHASE OF GOODS/SERVICES - OTHER - PROGRAMME EXPENDITURE,Microbiological Food Safety Branch,"THE CHANCELLOR, MASTERS AND SCHOLARS OF THE UNIVERSITY OF OXFORD",1011701459,123456.53,DELIVERABLE 4 AND DELIVERABLE 5 AS PER AGREEMENT,OX1 2JD,PROGRAMME
FOOD STANDARDS AGENCY - Westminster,FOOD STANDARDS AGENCY - Westminster,2016-11-08,EXP - PURCHASE OF GOODS/SERVICES - ACCOMMODATION & BLDNG MANAGEMENT - CILOR,Security & Estates,LONDON BOROUGH OF CAMDEN,1011701297,105468,01/04/2016 TO 31/03/2017 INVOICE REF 011116-68351658,WC1H 8EQ,ADMIN
FOOD STANDARDS AGENCY - Westminster,FOOD STANDARDS AGENCY - Westminster,2016-11-18,EXP - PURCHASE OF GOODS/SERVICES - ICT OUTSOURCING & MAINT/SUPPORT,IT Strategy,RAINMAKER SOLUTIONS LTD,1011701407,90937.15,EVOLVE IT -  DISCOVERY & DESIGN PHASE,MK18 1HD,ADMIN
FOOD STANDARDS AGENCY - Westminster,FOOD STANDARDS AGENCY - Westminster,2016-11-25,EXP - PURCHASE OF GOODS/SERVICES - OTHER - PROGRAMME EXPENDITURE,Microbiological Food Safety Branch,"THE CHANCELLOR, MASTERS AND SCHOLARS OF THE UNIVERSITY OF OXFORD",1011701459,89200,DELIVERABLE 4 AND DELIVERABLE 5 AS PER AGREEMENT,OX1 2JD,PROGRAMME
FOOD STANDARDS AGENCY - Westminster,FOOD STANDARDS AGENCY - Westminster,2016-11-02,EXP - PURCHASE OF GOODS/SERVICES - OTHER - PROGRAMME EXPENDITURE,Food Production Branch,PUBLIC HEALTH ENGLAND,2012700084,69696,CHARGES FOR DELIVERABLE 3 FOR FSA PROJECT FS102121,SP4 0JG,PROGRAMME
FOOD STANDARDS AGENCY - Westminster,FOOD STANDARDS AGENCY - Westminster,2016-11-30,EXP - PURCHASE OF GOODS/SERVICES - OTHER - PROGRAMME EXPENDITURE,Contaminants HoD,C E F A S,2012700099,69649.85,INVOICE FOR THE OCT2016,NR33 0HT,PROGRAMME
FOOD STANDARDS AGENCY - Westminster,FOOD STANDARDS AGENCY - Westminster,2016-11-04,EXP - PURCHASE OF GOODS/SERVICES - OTHER - PROGRAMME EXPENDITURE,Chemical Risk Assessment Unit,UNIVERSITY OF HULL,1011701283,66000,A/C NO FOO0001,HU6 7RX,PROGRAMME
FOOD STANDARDS AGENCY - Westminster,FOOD STANDARDS AGENCY - Westminster,2016-11-15,EXP - PURCHASE OF GOODS/SERVICES - OTHER - PROGRAMME EXPENDITURE,Food Production Branch,HUTCHISON SCIENTIFIC LTD,10000056,64000,PROJECT CODE FS241051A/M01056,DD5 3EZ,PROGRAMME
FOOD STANDARDS AGENCY - Westminster,FOOD STANDARDS AGENCY - Westminster,2016-11-04,EXP - PURCHASE OF GOODS/SERVICES - OTHER - PROGRAMME EXPENDITURE,Chemical Risk Assessment Unit,UNIVERSITY OF HULL,1011701283,60000,A/C NO FOO0001,HU6 7RX,PROGRAMME
FOOD STANDARDS AGENCY - Westminster,FOOD STANDARDS AGENCY - Westminster,2016-11-04,EXP - PURCHASE OF GOODS/SERVICES - OTHER - PROGRAMME EXPENDITURE,Chemical Risk Assessment Unit,UNIVERSITY OF HULL,1011701283,60000,CUST ACCOUNT  FOO0001,HU6 7RX,PROGRAMME
FOOD STANDARDS AGENCY - Westminster,FOOD STANDARDS AGENCY - Westminster,2016-11-04,EXP - PURCHASE OF GOODS/SERVICES - OTHER - PROGRAMME EXPENDITURE,Chemical Risk Assessment Unit,FERA SCIENCE LIMITED,1011701278,55557.94,QUARTERLY REPORT 14,YO41 1LZ,PROGRAMME
FOOD STANDARDS AGENCY - Westminster,FOOD STANDARDS AGENCY - Westminster,2016-11-28,EXP - PURCHASE OF GOODS/SERVICES - CONSULTANCY,Regulating our Future,COMOTION CONSULTING LTD,1011701474,50679.2,MOBILISATION TO DELIVERY  SEPTEMBER 2016,EC1A 9PT,ADMIN
FOOD STANDARDS AGENCY - Westminster,FOOD STANDARDS AGENCY - Westminster,2016-11-28,EXP - PURCHASE OF GOODS/SERVICES - CONSULTANCY,Regulating our Future,COMOTION CONSULTING LTD,1011701474,50502.63,MOBILISATION TO DELIVERY OCTOBER 2016,EC1A 9PT,ADMIN
FOOD STANDARDS AGENCY - Westminster,FOOD STANDARDS AGENCY - Westminster,2016-11-30,EXP - PURCHASE OF GOODS/SERVICES - OTHER - PROGRAMME EXPENDITURE,Regulatory Delivery,C E F A S,2012700099,45053.12,SHELLFISH SAMPLE ANALYSIS SEP & OCT16,NR33 0HT,PROGRAMME
FOOD STANDARDS AGENCY - Westminster,FOOD STANDARDS AGENCY - Westminster,2016-11-30,EXP - PURCHASE OF GOODS/SERVICES - OTHER - PROGRAMME EXPENDITURE,Regulatory Delivery,C E F A S,2012700099,43133.58,SHELLFISH SAMPLE ANALYSIS SEP & OCT16,NR33 0HT,PROGRAMME
FOOD STANDARDS AGENCY - Westminster,FOOD STANDARDS AGENCY - Westminster,2016-11-30,EXP - PURCHASE OF GOODS/SERVICES - OTHER - PROGRAMME EXPENDITURE,Regulatory Delivery,C E F A S,2012700099,41304.64,SHELLFISH SAMPLE ANALYSIS SEP & OCT16,NR33 0HT,PROGRAMME
FOOD STANDARDS AGENCY - Westminster,FOOD STANDARDS AGENCY - Westminster,2016-11-16,EXP - RENTALS UNDER NON PFI OPERATING LEASES  -OTHER RENTAL- RENT OUTSIDE LONDON,Security & Estates,DEFRA C/O CAPITA,1011701388,38869.24,CAPITA INVICE 100254/9699 - FOSS HOUSE RENT RATES AND UTILITIES OCTOMBER 2016,EC2V 7NQ,ADMIN
FOOD STANDARDS AGENCY - Westminster,FOOD STANDARDS AGENCY - Westminster,2016-11-04,EXP - RENTALS UNDER NON PFI OPERATING LEASES  -OTHER RENTAL- RENT OUTSIDE LONDON,Security & Estates,DEFRA C/O CAPITA,1011701280,36030.4,CAPITA INVOICE 100245/9679- FOSS HOUSE RENT AND UTILITIES -SEPTEMBER 2016,EC2V 7NQ,ADMIN
FOOD STANDARDS AGENCY - Westminster,FOOD STANDARDS AGENCY - Westminster,2016-11-30,EXP - PURCHASE OF GOODS/SERVICES - OTHER - PROGRAMME EXPENDITURE,Regulatory Delivery,C E F A S,2012700099,32995.96,SHELLFISH SAMPLE ANALYSIS SEP & OCT16,NR33 0HT,PROGRAMME
FOOD STANDARDS AGENCY - Westminster,FOOD STANDARDS AGENCY - Westminster,2016-11-02,EXP - PURCHASE OF GOODS/SERVICES - OTHER - PROGRAMME EXPENDITURE,Analysis & Research Branch,C E F A S,2012700085,32445.4,C5937 INVOICE FOR JULY TO SEP F/Y 2016/17,NR33 0HT,PROGRAMME
FOOD STANDARDS AGENCY - Westminster,FOOD STANDARDS AGENCY - Westminster,2016-11-30,EXP - PURCHASE OF GOODS/SERVICES - OTHER - PROGRAMME EXPENDITURE,Regulatory Delivery,C E F A S,2012700099,30772,SHELLFISH SAMPLE ANALYSIS SEP & OCT16,NR33 0HT,PROGRAMME
FOOD STANDARDS AGENCY - Westminster,FOOD STANDARDS AGENCY - Westminster,2016-11-15,EXP - PURCHASE OF GOODS/SERVICES - OTHER ENERGY/UTILITIES/WASTE COST,Security & Estates,EDF ENERGY PLC,1011701382,27516.98,EDF ENEGRY INVOICE 2245119 -OCTOBER2016.,EX1 3UT,ADMIN
FOOD STANDARDS AGENCY - Westminster,FOOD STANDARDS AGENCY - Westminster,2016-11-22,EXP - PURCHASE OF GOODS/SERVICES - OTHER - PROGRAMME EXPENDITURE,Regulatory Delivery,GFK UK LTD,1011701442,24450,FHRS DISPLAY SURVEY ,E14 5LQ,PROGRAMME
FOOD STANDARDS AGENCY - Westminster,FOOD STANDARDS AGENCY - Westminster,2016-11-02,EXP - PURCHASE OF GOODS/SERVICES - OTHER - PROGRAMME EXPENDITURE,Chief Scientist,IFR ENTERPRISES LTD,1011701258,22498.68,GENERATING TOOLS MOLECULAR FS246004/FS101087,NR4 7UA,PROGRAMME
FOOD STANDARDS AGENCY - Westminster,FOOD STANDARDS AGENCY - Westminster,2016-11-18,EXP - PURCHASE OF GOODS/SERVICES - ICT OUTSOURCING & MAINT/SUPPORT,IT Strategy,RAINMAKER SOLUTIONS LTD,1011701407,18187.43,EVOLVE IT -  DISCOVERY & DESIGN PHASE,MK18 1HD,ADMIN
FOOD STANDARDS AGENCY - Westminster,FOOD STANDARDS AGENCY - Westminster,2016-11-03,EXP - RENTALS UNDER NON PFI OPERATING LEASES  -OTHER RENTAL- RENT OUTSIDE LONDON,Security & Estates,DEFRA C/O CAPITA,1011701259,18081.62,REF T116399 DESPRECIATION COSTS,EC2V 7NQ,ADMIN
FOOD STANDARDS AGENCY - Westminster,FOOD STANDARDS AGENCY - Westminster,2016-11-11,"EXP - PURCHASE OF GOODS/SERVICES - TRICHINELLA TESTING, CARRIAGE & CONSUMABLES",Operational Delivery,TOPSPEED COURIERS LIMITED,1011701356,17910,TRICK * 398,WA16 8XN,PROGRAMME
FOOD STANDARDS AGENCY - Westminster,FOOD STANDARDS AGENCY - Westminster,2016-11-30,EXP - PURCHASE OF GOODS/SERVICES - OTHER - PROGRAMME EXPENDITURE,Contaminants HoD,C E F A S,2012700099,17047,INVOICE FOR THE OCT 2016 PROJECT CODE FS102066S,NR33 0HT,PROGRAMME
FOOD STANDARDS AGENCY - Westminster,FOOD STANDARDS AGENCY - Westminster,2016-11-11,EXP - PURCHASE OF GOODS/SERVICES - OTHER - CARRIAGE OF SAMPLES,Operational Delivery,TOPSPEED COURIERS LIMITED,1011701356,17044.4,RIM * 361,WA16 8XN,PROGRAMME
FOOD STANDARDS AGENCY - Westminster,FOOD STANDARDS AGENCY - Westminster,2016-11-04,EXP - PURCHASE OF GOODS/SERVICES - OTHER - PROGRAMME EXPENDITURE,Chemical Risk Assessment Unit,UNIVERSITY OF HULL,1011701283,16000,CUST ACCOUNT  FOO0001,HU6 7RX,PROGRAMME
FOOD STANDARDS AGENCY - Westminster,FOOD STANDARDS AGENCY - Westminster,2016-11-16,EXP - PURCHASE OF GOODS/SERVICES - OTHER ENERGY/UTILITIES/WASTE COST,Security & Estates,DEFRA C/O CAPITA,1011701388,14058.49,CAPITA INVICE 100254/9699 - FOSS HOUSE RENT RATES AND UTILITIES OCTOMBER 2016,EC2V 7NQ,ADMIN
FOOD STANDARDS AGENCY - Westminster,FOOD STANDARDS AGENCY - Westminster,2016-11-04,EXP - PURCHASE OF GOODS/SERVICES - OTHER - PROGRAMME EXPENDITURE,Chemical Risk Assessment Unit,FERA SCIENCE LIMITED,1011701278,13738.45,QUARTERLY REPORT 14,YO41 1LZ,PROGRAMME
FOOD STANDARDS AGENCY - Westminster,FOOD STANDARDS AGENCY - Westminster,2016-11-01,EXP - AMORTISATION - INTANGIBLE ASSETS,IT Strategy,CAPITA SECURE INFORMATION SOLUTIONS LTD,1011701247,12007.82,SCCM DEPLOYMENT AUG16 RESOURCE ,SN14 0TW,CAPITAL
FOOD STANDARDS AGENCY - Westminster,FOOD STANDARDS AGENCY - Westminster,2016-11-04,EXP - PURCHASE OF GOODS/SERVICES - ACCOMMODATION & BLDNG MANAGEMENT - CILOR,Security & Estates,DEFRA C/O CAPITA,1011701280,11971.57,CAPITA INVOICE 100245/9679- FOSS HOUSE RENT AND UTILITIES -SEPTEMBER 2016,EC2V 7NQ,ADMIN
FOOD STANDARDS AGENCY - Westminster,FOOD STANDARDS AGENCY - Westminster,2016-11-16,EXP - PURCHASE OF GOODS/SERVICES - ACCOMMODATION & BLDNG MANAGEMENT - CILOR,Security & Estates,DEFRA C/O CAPITA,1011701388,10499.19,CAPITA INVICE 100254/9699 - FOSS HOUSE RENT RATES AND UTILITIES OCTOMBER 2016,EC2V 7NQ,ADMIN
FOOD STANDARDS AGENCY - Westminster,FOOD STANDARDS AGENCY - Westminster,2016-11-03,EXP - PURCHASE OF GOODS/SERVICES - ACCOMM & BLDNG MGMT - SHARED SITE RECHARGE,Security & Estates,DEFRA C/O CAPITA,1011701259,10446.83,FM CORE COSTS OCT 2016,EC2V 7NQ,ADMIN
FOOD STANDARDS AGENCY - Westminster,FOOD STANDARDS AGENCY - Westminster,2016-11-28,EXP - PURCHASE OF GOODS/SERVICES - CONSULTANCY,Regulating our Future,COMOTION CONSULTING LTD,1011701474,10135.84,MOBILISATION TO DELIVERY  SEPTEMBER 2016,EC1A 9PT,ADMIN
FOOD STANDARDS AGENCY - Westminster,FOOD STANDARDS AGENCY - Westminster,2016-11-28,EXP - PURCHASE OF GOODS/SERVICES - CONSULTANCY,Regulating our Future,COMOTION CONSULTING LTD,1011701474,10100.53,MOBILISATION TO DELIVERY OCTOBER 2016,EC1A 9PT,ADMIN
FOOD STANDARDS AGENCY - Westminster,FOOD STANDARDS AGENCY - Westminster,2016-11-01,EXP - PURCHASE OF GOODS/SERVICES - ICT OUTSOURCING & MAINT/SUPPORT,Regulatory Delivery,CAPITA SECURE INFORMATION SOLUTIONS LTD,1011701247,9534.78,FHRS NI CHANGES,SN14 0TW,ADMIN
FOOD STANDARDS AGENCY - Westminster,FOOD STANDARDS AGENCY - Westminster,2016-11-23,EXP - PURCHASE OF GOODS/SERVICES - OTHER ICT COSTS - COMPUTER SOFTWARE,IT Strategy,CAPITA SECURE INFORMATION SOLUTIONS LTD,1011701448,7595,BYOD GOOD LIENCENCES CUSTOMER ,SN14 0TW,ADMIN
FOOD STANDARDS AGENCY - Westminster,FOOD STANDARDS AGENCY - Westminster,2016-11-11,EXP - PURCHASE OF GOODS/SERVICES - OTHER - CARRIAGE OF SAMPLES,Operational Delivery,TOPSPEED COURIERS LIMITED,1011701356,7160,TB PROJECT * 59,WA16 8XN,PROGRAMME
FOOD STANDARDS AGENCY - Westminster,FOOD STANDARDS AGENCY - Westminster,2016-11-22,EXP - PURCHASE OF GOODS/SERVICES - OTHER - PROGRAMME EXPENDITURE,Regulatory Delivery,GFK UK LTD,1011701442,5210,FHRS DISPLAY SURVEY ,E14 5LQ,PROGRAMME
FOOD STANDARDS AGENCY - Westminster,FOOD STANDARDS AGENCY - Westminster,2016-11-23,EXP - SHORT-TERM CONTRACT & AGENCY STAFF - FULL COST,IT Information & Knowledge Management,CAPITA BUSINESS SERVICES LTD,1011701443,5074.14,TEMPORARY STAFF P/E 12-11-16,SL6 1DP,ADMIN
FOOD STANDARDS AGENCY - Westminster,FOOD STANDARDS AGENCY - Westminster,2016-11-29,EXP - PURCHASE OF GOODS/SERVICES - RAIL TRAVEL,Regulatory Delivery ,REDFERN TRAVEL LTD,1011701479,3917.11,CONSOLIDATED BUSINESS TRAVEL WEEK 47,BD1 5HQ,ADMIN
FOOD STANDARDS AGENCY - Westminster,FOOD STANDARDS AGENCY - Westminster,2016-11-02,EXP - PURCHASE OF GOODS/SERVICES - SUBSISTENCE,Chair & Deputy Chair,REDFERN TRAVEL LTD,1011701252,3802.33,CONSOLIDATED BUSINESS TRAVEL WK 43,BD1 5HQ,ADMIN
FOOD STANDARDS AGENCY - Westminster,FOOD STANDARDS AGENCY - Westminster,2016-11-01,EXP - PURCHASE OF GOODS/SERVICES - OTHER ICT COSTS - IT DEVELOPMENT,IT Strategy,CAPITA SECURE INFORMATION SOLUTIONS LTD,1011701247,3668.91,YORK IL2 CONSOLIDATION,SN14 0TW,CAPITAL
FOOD STANDARDS AGENCY - Westminster,FOOD STANDARDS AGENCY - Westminster,2016-11-30,EXP - PURCHASE OF GOODS/SERVICES - OTHER - PROGRAMME EXPENDITURE,Contaminants HoD,C E F A S,2012700099,3409.4,INVOICE FOR THE OCT 2016 PROJECT CODE FS102066S,NR33 0HT,PROGRAMME
FOOD STANDARDS AGENCY - Westminster,FOOD STANDARDS AGENCY - Westminster,2016-11-15,EXP - PURCHASE OF GOODS/SERVICES - RAIL TRAVEL,Operational Delivery,REDFERN TRAVEL LTD,10000057,3261.15,CONSOLIDATED BUSINESS TRAVEL WK 41,BD1 5HQ,PROGRAMME
FOOD STANDARDS AGENCY - Westminster,FOOD STANDARDS AGENCY - Westminster,2016-11-23,EXP - SHORT-TERM CONTRACT & AGENCY STAFF - FULL COST,Planning and Performance,CAPITA BUSINESS SERVICES LTD,1011701443,3004.92,TEMPORARY STAFF P/E 12-11-16,SL6 1DP,ADMIN
FOOD STANDARDS AGENCY - Westminster,FOOD STANDARDS AGENCY - Westminster,2016-11-23,EXP - SHORT-TERM CONTRACT & AGENCY STAFF - FULL COST,Planning and Performance,CAPITA BUSINESS SERVICES LTD,1011701443,2902.5,TEMPORARY STAFF P/E 12-11-16,SL6 1DP,ADMIN
FOOD STANDARDS AGENCY - Westminster,FOOD STANDARDS AGENCY - Westminster,2016-11-23,EXP - SHORT-TERM CONTRACT & AGENCY STAFF - FULL COST,Finance Director & Branch,CAPITA BUSINESS SERVICES LTD,1011701443,2849.08,TEMPORARY STAFF P/E 12-11-16,SL6 1DP,ADMIN
FOOD STANDARDS AGENCY - Westminster,FOOD STANDARDS AGENCY - Westminster,2016-11-23,EXP - SHORT-TERM CONTRACT & AGENCY STAFF - FULL COST,Finance Director & Branch,CAPITA BUSINESS SERVICES LTD,1011701443,2849.08,TEMPORARY STAFF P/E 12-11-16,SL6 1DP,ADMIN
FOOD STANDARDS AGENCY - Westminster,FOOD STANDARDS AGENCY - Westminster,2016-11-15,EXP - PURCHASE OF GOODS/SERVICES - RAIL TRAVEL,Operations Assurance ,REDFERN TRAVEL LTD,10000057,2716.8,CONSOLIDATED BUSINESS TRAVEL WK 41,BD1 5HQ,PROGRAMME
FOOD STANDARDS AGENCY - Westminster,FOOD STANDARDS AGENCY - Westminster,2016-11-17,EXP - PURCHASE OF GOODS/SERVICES - RAIL TRAVEL,Finance Director & Branch,REDFERN TRAVEL LTD,1011701397,2468.95,CONSOLIDATED BUSINESS TRAVEL WK 45,BD1 5HQ,ADMIN
FOOD STANDARDS AGENCY - Westminster,FOOD STANDARDS AGENCY - Westminster,2016-11-01,EXP - AMORTISATION - INTANGIBLE ASSETS,IT Strategy,CAPITA SECURE INFORMATION SOLUTIONS LTD,1011701247,2401.56,SCCM DEPLOYMENT AUG16 RESOURCE ,SN14 0TW,CAPITAL
FOOD STANDARDS AGENCY - Westminster,FOOD STANDARDS AGENCY - Westminster,2016-11-23,EXP - PURCHASE OF GOODS/SERVICES - ICT OUTSOURCING & MAINT/SUPPORT,Regulatory Delivery,CAPITA SECURE INFORMATION SOLUTIONS LTD,1011701448,2352.12,FHRS NI CHANGES,SN14 0TW,ADMIN
FOOD STANDARDS AGENCY - Westminster,FOOD STANDARDS AGENCY - Westminster,2016-11-29,EXP - PURCHASE OF GOODS/SERVICES - RAIL TRAVEL,Operations Assurance ,REDFERN TRAVEL LTD,1011701479,2242.55,CONSOLIDATED BUSINESS TRAVEL WEEK 47,BD1 5HQ,PROGRAMME
FOOD STANDARDS AGENCY - Westminster,FOOD STANDARDS AGENCY - Westminster,2016-11-17,EXP - PURCHASE OF GOODS/SERVICES - RAIL TRAVEL,Operational Delivery,REDFERN TRAVEL LTD,1011701397,2133.7,CONSOLIDATED BUSINESS TRAVEL WK 45,BD1 5HQ,PROGRAMME
FOOD STANDARDS AGENCY - Westminster,FOOD STANDARDS AGENCY - Westminster,2016-11-23,EXP - PURCHASE OF GOODS/SERVICES - RAIL TRAVEL,Operations Assurance ,REDFERN TRAVEL LTD,1011701444,2067.7,CONSOLIDATED BUSINESS TRAVEL WEEK 46,BD1 5HQ,PROGRAMME
FOOD STANDARDS AGENCY - Westminster,FOOD STANDARDS AGENCY - Westminster,2016-11-23,EXP - SHORT-TERM CONTRACT & AGENCY STAFF - FULL COST,Organisational Development,CAPITA BUSINESS SERVICES LTD,1011701443,2030.64,TEMPORARY STAFF P/E 12-11-16,SL6 1DP,ADMIN
FOOD STANDARDS AGENCY - Westminster,FOOD STANDARDS AGENCY - Westminster,2016-11-29,EXP - PURCHASE OF GOODS/SERVICES - RAIL TRAVEL,Planning and Performance,REDFERN TRAVEL LTD,1011701479,1987.01,CONSOLIDATED BUSINESS TRAVEL WEEK 47,BD1 5HQ,ADMIN
FOOD STANDARDS AGENCY - Westminster,FOOD STANDARDS AGENCY - Westminster,2016-11-15,EXP - PURCHASE OF GOODS/SERVICES - SUBSISTENCE,Chair & Deputy Chair,REDFERN TRAVEL LTD,10000057,1969.13,CONSOLIDATED BUSINESS TRAVEL WK 41,BD1 5HQ,ADMIN
FOOD STANDARDS AGENCY - Westminster,FOOD STANDARDS AGENCY - Westminster,2016-11-23,EXP - AMORTISATION - INTANGIBLE ASSETS,IT Strategy,CAPITA SECURE INFORMATION SOLUTIONS LTD,1011701448,1965.3,PSN EXCHANGE 2013,SN14 0TW,CAPITAL
FOOD STANDARDS AGENCY - Westminster,FOOD STANDARDS AGENCY - Westminster,2016-11-02,EXP - PURCHASE OF GOODS/SERVICES - RAIL TRAVEL,Finance Director & Branch,REDFERN TRAVEL LTD,1011701252,1936.35,CONSOLIDATED BUSINESS TRAVEL WK 43,BD1 5HQ,ADMIN
FOOD STANDARDS AGENCY - Westminster,FOOD STANDARDS AGENCY - Westminster,2016-11-11,EXP - PURCHASE OF GOODS/SERVICES - OTHER - CARRIAGE OF SAMPLES,Operational Delivery,TOPSPEED COURIERS LIMITED,1011701356,1845,CAMPY * 41,WA16 8XN,PROGRAMME
FOOD STANDARDS AGENCY - Westminster,FOOD STANDARDS AGENCY - Westminster,2016-11-23,EXP - PURCHASE OF GOODS/SERVICES - RAIL TRAVEL,Operational Delivery,REDFERN TRAVEL LTD,1011701444,1830.2,CONSOLIDATED BUSINESS TRAVEL WEEK 46,BD1 5HQ,PROGRAMME
FOOD STANDARDS AGENCY - Westminster,FOOD STANDARDS AGENCY - Westminster,2016-11-23,EXP - PURCHASE OF GOODS/SERVICES - RAIL TRAVEL,Regulatory Delivery ,REDFERN TRAVEL LTD,1011701444,1801,CONSOLIDATED BUSINESS TRAVEL WEEK 46,BD1 5HQ,ADMIN
FOOD STANDARDS AGENCY - Westminster,FOOD STANDARDS AGENCY - Westminster,2016-11-02,EXP - PURCHASE OF GOODS/SERVICES - SUBSISTENCE,Chief Executive & Private Office,REDFERN TRAVEL LTD,1011701252,1757.33,CONSOLIDATED BUSINESS TRAVEL WK 43,BD1 5HQ,ADMIN
FOOD STANDARDS AGENCY - Westminster,FOOD STANDARDS AGENCY - Westminster,2016-11-02,EXP - PURCHASE OF GOODS/SERVICES - RAIL TRAVEL,Operational Delivery,REDFERN TRAVEL LTD,1011701252,1729.1,CONSOLIDATED BUSINESS TRAVEL WK 43,BD1 5HQ,PROGRAMME
FOOD STANDARDS AGENCY - Westminster,FOOD STANDARDS AGENCY - Westminster,2016-11-15,EXP - PURCHASE OF GOODS/SERVICES - RAIL TRAVEL,Regulatory Delivery ,REDFERN TRAVEL LTD,10000057,1654.35,CONSOLIDATED BUSINESS TRAVEL WK 41,BD1 5HQ,ADMIN
FOOD STANDARDS AGENCY - Westminster,FOOD STANDARDS AGENCY - Westminster,2016-11-29,EXP - PURCHASE OF GOODS/SERVICES - RAIL TRAVEL,Operational Delivery,REDFERN TRAVEL LTD,1011701479,1620.75,CONSOLIDATED BUSINESS TRAVEL WEEK 47,BD1 5HQ,PROGRAMME
FOOD STANDARDS AGENCY - Westminster,FOOD STANDARDS AGENCY - Westminster,2016-11-23,EXP - AMORTISATION - INTANGIBLE ASSETS,IT Strategy,CAPITA SECURE INFORMATION SOLUTIONS LTD,1011701448,1600.87,GOOD COLLABORATION SUITE(PROJECT&PCN),SN14 0TW,CAPITAL
FOOD STANDARDS AGENCY - Westminster,FOOD STANDARDS AGENCY - Westminster,2016-11-22,EXP - PURCHASE OF GOODS/SERVICES - OTHER - PROGRAMME EXPENDITURE,Regulatory Delivery,GFK UK LTD,1011701442,1600,FHRS DISPLAY SURVEY ,E14 5LQ,PROGRAMME
FOOD STANDARDS AGENCY - Westminster,FOOD STANDARDS AGENCY - Westminster,2016-11-17,EXP - PURCHASE OF GOODS/SERVICES - RAIL TRAVEL,Operations Assurance ,REDFERN TRAVEL LTD,1011701397,1594.36,CONSOLIDATED BUSINESS TRAVEL WK 45,BD1 5HQ,PROGRAMME
FOOD STANDARDS AGENCY - Westminster,FOOD STANDARDS AGENCY - Westminster,2016-11-29,EXP - PURCHASE OF GOODS/SERVICES - SUBSISTENCE,Operational Delivery,REDFERN TRAVEL LTD,1011701479,1552.08,CONSOLIDATED BUSINESS TRAVEL WEEK 47,BD1 5HQ,PROGRAMME
FOOD STANDARDS AGENCY - Westminster,FOOD STANDARDS AGENCY - Westminster,2016-11-23,EXP - PURCHASE OF GOODS/SERVICES - OTHER ICT COSTS - COMPUTER SOFTWARE,IT Strategy,CAPITA SECURE INFORMATION SOLUTIONS LTD,1011701448,1519,BYOD GOOD LICENCES CUSTOMER,SN14 0TW,ADMIN
FOOD STANDARDS AGENCY - Westminster,FOOD STANDARDS AGENCY - Westminster,2016-11-23,EXP - SHORT-TERM CONTRACT & AGENCY STAFF - FULL COST,Comms Directors Office,CAPITA BUSINESS SERVICES LTD,1011701443,1493.34,TEMPORARY STAFF P/E 12-11-16,SL6 1DP,ADMIN
FOOD STANDARDS AGENCY - Westminster,FOOD STANDARDS AGENCY - Westminster,2016-11-02,EXP - PURCHASE OF GOODS/SERVICES - RAIL TRAVEL,Operations Assurance ,REDFERN TRAVEL LTD,1011701252,1476.5,CONSOLIDATED BUSINESS TRAVEL WK 43,BD1 5HQ,PROGRAMME
FOOD STANDARDS AGENCY - Westminster,FOOD STANDARDS AGENCY - Westminster,2016-11-23,EXP - SHORT-TERM CONTRACT & AGENCY STAFF - FULL COST,Comms Directors Office,CAPITA BUSINESS SERVICES LTD,1011701443,1452.36,TEMPORARY STAFF P/E 12-11-16,SL6 1DP,ADMIN
FOOD STANDARDS AGENCY - Westminster,FOOD STANDARDS AGENCY - Westminster,2016-11-15,EXP - PURCHASE OF GOODS/SERVICES - RAIL TRAVEL,Planning and Performance,REDFERN TRAVEL LTD,10000057,1330.4,CONSOLIDATED BUSINESS TRAVEL WK 41,BD1 5HQ,ADMIN
FOOD STANDARDS AGENCY - Westminster,FOOD STANDARDS AGENCY - Westminster,2016-11-11,EXP - PURCHASE OF GOODS/SERVICES - OTHER - CARRIAGE OF SAMPLES,Operational Delivery,TOPSPEED COURIERS LIMITED,1011701356,1312.5,RCDM * 13,WA16 8XN,PROGRAMME
FOOD STANDARDS AGENCY - Westminster,FOOD STANDARDS AGENCY - Westminster,2016-11-02,EXP - PURCHASE OF GOODS/SERVICES - RAIL TRAVEL,Regulatory Delivery ,REDFERN TRAVEL LTD,1011701252,1304.35,CONSOLIDATED BUSINESS TRAVEL WK 43,BD1 5HQ,ADMIN
FOOD STANDARDS AGENCY - Westminster,FOOD STANDARDS AGENCY - Westminster,2016-11-17,EXP - PURCHASE OF GOODS/SERVICES - SUBSISTENCE,Operational Delivery,REDFERN TRAVEL LTD,1011701397,1302.07,CONSOLIDATED BUSINESS TRAVEL WK 45,BD1 5HQ,PROGRAMME
FOOD STANDARDS AGENCY - Westminster,FOOD STANDARDS AGENCY - Westminster,2016-11-02,EXP - PURCHASE OF GOODS/SERVICES - RAIL TRAVEL,IT Information & Knowledge Management,REDFERN TRAVEL LTD,1011701252,1264,CONSOLIDATED BUSINESS TRAVEL WK 43,BD1 5HQ,ADMIN
FOOD STANDARDS AGENCY - Westminster,FOOD STANDARDS AGENCY - Westminster,2016-11-23,EXP - PURCHASE OF GOODS/SERVICES - RAIL TRAVEL,Comms Directors Office,REDFERN TRAVEL LTD,1011701444,1210.06,CONSOLIDATED BUSINESS TRAVEL WEEK 46,BD1 5HQ,ADMIN
FOOD STANDARDS AGENCY - Westminster,FOOD STANDARDS AGENCY - Westminster,2016-11-29,EXP - PURCHASE OF GOODS/SERVICES - RAIL TRAVEL,IT Service Delivery,REDFERN TRAVEL LTD,1011701479,1205.95,CONSOLIDATED BUSINESS TRAVEL WEEK 47,BD1 5HQ,ADMIN
FOOD STANDARDS AGENCY - Westminster,FOOD STANDARDS AGENCY - Westminster,2016-11-17,EXP - PURCHASE OF GOODS/SERVICES - RAIL TRAVEL,Chief Executive & Private Office,REDFERN TRAVEL LTD,1011701397,1170.5,CONSOLIDATED BUSINESS TRAVEL WK 45,BD1 5HQ,ADMIN
FOOD STANDARDS AGENCY - Westminster,FOOD STANDARDS AGENCY - Westminster,2016-11-23,EXP - SHORT-TERM CONTRACT & AGENCY STAFF - FULL COST,Comms Directors Office,CAPITA BUSINESS SERVICES LTD,1011701443,1161.89,TEMPORARY STAFF P/E 12-11-16,SL6 1DP,ADMIN
FOOD STANDARDS AGENCY - Westminster,FOOD STANDARDS AGENCY - Westminster,2016-11-23,EXP - SHORT-TERM CONTRACT & AGENCY STAFF - FULL COST,Comms Directors Office,CAPITA BUSINESS SERVICES LTD,1011701443,1161.89,TEMPORARY STAFF P/E 12-11-16,SL6 1DP,ADMIN
FOOD STANDARDS AGENCY - Westminster,FOOD STANDARDS AGENCY - Westminster,2016-11-23,EXP - PURCHASE OF GOODS/SERVICES - SUBSISTENCE,Regulatory Delivery ,REDFERN TRAVEL LTD,1011701444,1145.21,CONSOLIDATED BUSINESS TRAVEL WEEK 46,BD1 5HQ,ADMIN
FOOD STANDARDS AGENCY - Westminster,FOOD STANDARDS AGENCY - Westminster,2016-11-23,EXP - AMORTISATION - INTANGIBLE ASSETS,IT Service Delivery,CAPITA SECURE INFORMATION SOLUTIONS LTD,1011701448,1114,BUFFER STOCK,SN14 0TW,ADMIN
FOOD STANDARDS AGENCY - Westminster,FOOD STANDARDS AGENCY - Westminster,2016-11-29,EXP - PURCHASE OF GOODS/SERVICES - RAIL TRAVEL,Food Crime Unit - Admin,REDFERN TRAVEL LTD,1011701479,1018.35,CONSOLIDATED BUSINESS TRAVEL WEEK 47,BD1 5HQ,ADMIN
FOOD STANDARDS AGENCY - Westminster,FOOD STANDARDS AGENCY - Westminster,2016-11-17,EXP - PURCHASE OF GOODS/SERVICES - RAIL TRAVEL,Planning and Performance,REDFERN TRAVEL LTD,1011701397,1011.2,CONSOLIDATED BUSINESS TRAVEL WK 45,BD1 5HQ,ADMIN
FOOD STANDARDS AGENCY - Westminster,FOOD STANDARDS AGENCY - Westminster,2016-11-17,EXP - PURCHASE OF GOODS/SERVICES - SUBSISTENCE,Operations Assurance ,REDFERN TRAVEL LTD,1011701397,944.9,CONSOLIDATED BUSINESS TRAVEL WK 45,BD1 5HQ,PROGRAMME
FOOD STANDARDS AGENCY - Westminster,FOOD STANDARDS AGENCY - Westminster,2016-11-23,EXP - PURCHASE OF GOODS/SERVICES - RAIL TRAVEL,Planning and Performance,REDFERN TRAVEL LTD,1011701444,914.5,CONSOLIDATED BUSINESS TRAVEL WEEK 46,BD1 5HQ,ADMIN
FOOD STANDARDS AGENCY - Westminster,FOOD STANDARDS AGENCY - Westminster,2016-11-02,EXP - PURCHASE OF GOODS/SERVICES - SUBSISTENCE,Regulatory Delivery ,REDFERN TRAVEL LTD,1011701252,900.5,CONSOLIDATED BUSINESS TRAVEL WK 43,BD1 5HQ,ADMIN
FOOD STANDARDS AGENCY - Westminster,FOOD STANDARDS AGENCY - Westminster,2016-11-29,EXP - PURCHASE OF GOODS/SERVICES - RAIL TRAVEL,Finance Director & Branch,REDFERN TRAVEL LTD,1011701479,892.8,CONSOLIDATED BUSINESS TRAVEL WEEK 47,BD1 5HQ,ADMIN
FOOD STANDARDS AGENCY - Westminster,FOOD STANDARDS AGENCY - Westminster,2016-11-02,EXP - PURCHASE OF GOODS/SERVICES - RAIL TRAVEL,Comms Directors Office,REDFERN TRAVEL LTD,1011701252,891.7,CONSOLIDATED BUSINESS TRAVEL WK 43,BD1 5HQ,ADMIN
FOOD STANDARDS AGENCY - Westminster,FOOD STANDARDS AGENCY - Westminster,2016-11-17,EXP - PURCHASE OF GOODS/SERVICES - RAIL TRAVEL,Regulatory Delivery ,REDFERN TRAVEL LTD,1011701397,866.55,CONSOLIDATED BUSINESS TRAVEL WK 45,BD1 5HQ,ADMIN
FOOD STANDARDS AGENCY - Westminster,FOOD STANDARDS AGENCY - Westminster,2016-11-23,EXP - PURCHASE OF GOODS/SERVICES - RAIL TRAVEL,IT Service Delivery,REDFERN TRAVEL LTD,1011701444,865.65,CONSOLIDATED BUSINESS TRAVEL WEEK 46,BD1 5HQ,ADMIN
FOOD STANDARDS AGENCY - Westminster,FOOD STANDARDS AGENCY - Westminster,2016-11-02,EXP - PURCHASE OF GOODS/SERVICES - RAIL TRAVEL,Planning and Performance,REDFERN TRAVEL LTD,1011701252,851.4,CONSOLIDATED BUSINESS TRAVEL WK 43,BD1 5HQ,ADMIN
FOOD STANDARDS AGENCY - Westminster,FOOD STANDARDS AGENCY - Westminster,2016-11-15,EXP - PURCHASE OF GOODS/SERVICES -  FOREIGN AIR TRAVEL,Food Hygiene Policy Branch,REDFERN TRAVEL LTD,10000057,845.7,CONSOLIDATED BUSINESS TRAVEL WK 41,BD1 5HQ,ADMIN
FOOD STANDARDS AGENCY - Westminster,FOOD STANDARDS AGENCY - Westminster,2016-11-23,EXP - PURCHASE OF GOODS/SERVICES - SUBSISTENCE,Operational Delivery,REDFERN TRAVEL LTD,1011701444,780.09,CONSOLIDATED BUSINESS TRAVEL WEEK 46,BD1 5HQ,PROGRAMME
FOOD STANDARDS AGENCY - Westminster,FOOD STANDARDS AGENCY - Westminster,2016-11-02,EXP - PURCHASE OF GOODS/SERVICES - RAIL TRAVEL,Area 3 North West England - Cluster 32,REDFERN TRAVEL LTD,1011701252,761.65,CONSOLIDATED BUSINESS TRAVEL WK 43,BD1 5HQ,PROGRAMME
FOOD STANDARDS AGENCY - Westminster,FOOD STANDARDS AGENCY - Westminster,2016-11-29,EXP - PURCHASE OF GOODS/SERVICES - AIR TRAVEL,Food Incidents & Resilience - Prog,REDFERN TRAVEL LTD,1011701479,739.7,CONSOLIDATED BUSINESS TRAVEL WEEK 47,BD1 5HQ,PROGRAMME
FOOD STANDARDS AGENCY - Westminster,FOOD STANDARDS AGENCY - Westminster,2016-11-02,EXP - PURCHASE OF GOODS/SERVICES - RAIL TRAVEL,Chief Executive & Private Office,REDFERN TRAVEL LTD,1011701252,734.7,CONSOLIDATED BUSINESS TRAVEL WK 43,BD1 5HQ,ADMIN
FOOD STANDARDS AGENCY - Westminster,FOOD STANDARDS AGENCY - Westminster,2016-11-01,EXP - PURCHASE OF GOODS/SERVICES - OTHER ICT COSTS - IT DEVELOPMENT,IT Strategy,CAPITA SECURE INFORMATION SOLUTIONS LTD,1011701247,733.78,YORK IL2 CONSOLIDATION,SN14 0TW,CAPITAL
FOOD STANDARDS AGENCY - Westminster,FOOD STANDARDS AGENCY - Westminster,2016-11-02,EXP - PURCHASE OF GOODS/SERVICES - SUBSISTENCE,Operational Delivery,REDFERN TRAVEL LTD,1011701252,728.49,CONSOLIDATED BUSINESS TRAVEL WK 43,BD1 5HQ,PROGRAMME
FOOD STANDARDS AGENCY - Westminster,FOOD STANDARDS AGENCY - Westminster,2016-11-29,EXP - PURCHASE OF GOODS/SERVICES - SUBSISTENCE,Planning and Performance,REDFERN TRAVEL LTD,1011701479,698.76,CONSOLIDATED BUSINESS TRAVEL WEEK 47,BD1 5HQ,ADMIN
FOOD STANDARDS AGENCY - Westminster,FOOD STANDARDS AGENCY - Westminster,2016-11-29,EXP - PURCHASE OF GOODS/SERVICES - RAIL TRAVEL,Organisational Development,REDFERN TRAVEL LTD,1011701479,693.8,CONSOLIDATED BUSINESS TRAVEL WEEK 47,BD1 5HQ,ADMIN
FOOD STANDARDS AGENCY - Westminster,FOOD STANDARDS AGENCY - Westminster,2016-11-02,EXP - PURCHASE OF GOODS/SERVICES - SUBSISTENCE,Operations Assurance ,REDFERN TRAVEL LTD,1011701252,624.44,CONSOLIDATED BUSINESS TRAVEL WK 43,BD1 5HQ,PROGRAMME
FOOD STANDARDS AGENCY - Westminster,FOOD STANDARDS AGENCY - Westminster,2016-11-29,EXP - PURCHASE OF GOODS/SERVICES - RAIL TRAVEL,Contaminants HoD,REDFERN TRAVEL LTD,1011701479,610.5,CONSOLIDATED BUSINESS TRAVEL WEEK 47,BD1 5HQ,ADMIN
FOOD STANDARDS AGENCY - Westminster,FOOD STANDARDS AGENCY - Westminster,2016-11-17,EXP - PURCHASE OF GOODS/SERVICES - RAIL TRAVEL,Area 6 South East England - Cluster 62,REDFERN TRAVEL LTD,1011701397,576.9,CONSOLIDATED BUSINESS TRAVEL WK 45,BD1 5HQ,PROGRAMME
FOOD STANDARDS AGENCY - Westminster,FOOD STANDARDS AGENCY - Westminster,2016-11-29,EXP - PURCHASE OF GOODS/SERVICES - RAIL TRAVEL,Chief Executive & Private Office,REDFERN TRAVEL LTD,1011701479,572,CONSOLIDATED BUSINESS TRAVEL WEEK 47,BD1 5HQ,ADMIN
FOOD STANDARDS AGENCY - Westminster,FOOD STANDARDS AGENCY - Westminster,2016-11-15,EXP - PURCHASE OF GOODS/SERVICES - SUBSISTENCE,Planning and Performance,REDFERN TRAVEL LTD,10000057,571.4,CONSOLIDATED BUSINESS TRAVEL WK 41,BD1 5HQ,ADMIN
FOOD STANDARDS AGENCY - Westminster,FOOD STANDARDS AGENCY - Westminster,2016-11-23,EXP - SHORT-TERM CONTRACT & AGENCY STAFF - FULL COST,Finance Director & Branch,CAPITA BUSINESS SERVICES LTD,1011701443,569.82,TEMPORARY STAFF P/E 12-11-16,SL6 1DP,ADMIN
FOOD STANDARDS AGENCY - Westminster,FOOD STANDARDS AGENCY - Westminster,2016-11-23,EXP - SHORT-TERM CONTRACT & AGENCY STAFF - FULL COST,Finance Director & Branch,CAPITA BUSINESS SERVICES LTD,1011701443,569.82,TEMPORARY STAFF P/E 12-11-16,SL6 1DP,ADMIN
FOOD STANDARDS AGENCY - Westminster,FOOD STANDARDS AGENCY - Westminster,2016-11-15,EXP - PURCHASE OF GOODS/SERVICES - SUBSISTENCE,Operational Delivery,REDFERN TRAVEL LTD,10000057,568.09,CONSOLIDATED BUSINESS TRAVEL WK 41,BD1 5HQ,PROGRAMME
FOOD STANDARDS AGENCY - Westminster,FOOD STANDARDS AGENCY - Westminster,2016-11-02,EXP - PURCHASE OF GOODS/SERVICES - SUBSISTENCE,Area 4 North East England - Cluster 42,REDFERN TRAVEL LTD,1011701252,564.3,CONSOLIDATED BUSINESS TRAVEL WK 43,BD1 5HQ,PROGRAMME
FOOD STANDARDS AGENCY - Westminster,FOOD STANDARDS AGENCY - Westminster,2016-11-29,EXP - PURCHASE OF GOODS/SERVICES - SUBSISTENCE,Regulatory Delivery ,REDFERN TRAVEL LTD,1011701479,556.57,CONSOLIDATED BUSINESS TRAVEL WEEK 47,BD1 5HQ,ADMIN
FOOD STANDARDS AGENCY - Westminster,FOOD STANDARDS AGENCY - Westminster,2016-11-17,EXP - PURCHASE OF GOODS/SERVICES - SUBSISTENCE,Internal Audit,REDFERN TRAVEL LTD,1011701397,553.68,CONSOLIDATED BUSINESS TRAVEL WK 45,BD1 5HQ,ADMIN
FOOD STANDARDS AGENCY - Westminster,FOOD STANDARDS AGENCY - Westminster,2016-11-15,EXP - PURCHASE OF GOODS/SERVICES - RAIL TRAVEL,Comms Directors Office,REDFERN TRAVEL LTD,10000057,545.4,CONSOLIDATED BUSINESS TRAVEL WK 41,BD1 5HQ,ADMIN
FOOD STANDARDS AGENCY - Westminster,FOOD STANDARDS AGENCY - Westminster,2016-11-17,EXP - PURCHASE OF GOODS/SERVICES -  FOREIGN AIR TRAVEL,Microbiological Food Safety Branch,REDFERN TRAVEL LTD,1011701397,544.11,CONSOLIDATED BUSINESS TRAVEL WK 45,BD1 5HQ,ADMIN
FOOD STANDARDS AGENCY - Westminster,FOOD STANDARDS AGENCY - Westminster,2016-11-23,EXP - PURCHASE OF GOODS/SERVICES - RAIL TRAVEL,Food Incidents & Resilience - Prog,REDFERN TRAVEL LTD,1011701444,532.2,CONSOLIDATED BUSINESS TRAVEL WEEK 46,BD1 5HQ,PROGRAMME
FOOD STANDARDS AGENCY - Westminster,FOOD STANDARDS AGENCY - Westminster,2016-11-17,EXP - PURCHASE OF GOODS/SERVICES -  FOREIGN AIR TRAVEL,Scientific Methods & Laboratory Policy,REDFERN TRAVEL LTD,1011701397,529.96,CONSOLIDATED BUSINESS TRAVEL WK 45,BD1 5HQ,ADMIN
FOOD STANDARDS AGENCY - Westminster,FOOD STANDARDS AGENCY - Westminster,2016-11-29,EXP - PURCHASE OF GOODS/SERVICES - FOREIGN SUBSISTENCE,Regulatory & International,REDFERN TRAVEL LTD,1011701479,523.11,CONSOLIDATED BUSINESS TRAVEL WEEK 47,BD1 5HQ,ADMIN
FOOD STANDARDS AGENCY - Westminster,FOOD STANDARDS AGENCY - Westminster,2016-11-02,EXP - PURCHASE OF GOODS/SERVICES - RAIL TRAVEL,Organisational Development,REDFERN TRAVEL LTD,1011701252,506.9,CONSOLIDATED BUSINESS TRAVEL WK 43,BD1 5HQ,ADMIN
FOOD STANDARDS AGENCY - Westminster,FOOD STANDARDS AGENCY - Westminster,2016-11-23,EXP - PURCHASE OF GOODS/SERVICES - RAIL TRAVEL,Finance Director & Branch,REDFERN TRAVEL LTD,1011701444,501.7,CONSOLIDATED BUSINESS TRAVEL WEEK 46,BD1 5HQ,ADMIN
FOOD STANDARDS AGENCY - Westminster,FOOD STANDARDS AGENCY - Westminster,2016-11-15,EXP - PURCHASE OF GOODS/SERVICES - RAIL TRAVEL,IT Service Delivery,REDFERN TRAVEL LTD,10000057,492,CONSOLIDATED BUSINESS TRAVEL WK 41,BD1 5HQ,ADMIN
FOOD STANDARDS AGENCY - Westminster,FOOD STANDARDS AGENCY - Westminster,2016-11-15,EXP - PURCHASE OF GOODS/SERVICES - SUBSISTENCE,Operations Assurance ,REDFERN TRAVEL LTD,10000057,480.2,CONSOLIDATED BUSINESS TRAVEL WK 41,BD1 5HQ,PROGRAMME
FOOD STANDARDS AGENCY - Westminster,FOOD STANDARDS AGENCY - Westminster,2016-11-29,EXP - PURCHASE OF GOODS/SERVICES - FOREIGN SUBSISTENCE,Comms Directors Office,REDFERN TRAVEL LTD,1011701479,479.16,CONSOLIDATED BUSINESS TRAVEL WEEK 47,BD1 5HQ,ADMIN
FOOD STANDARDS AGENCY - Westminster,FOOD STANDARDS AGENCY - Westminster,2016-11-15,EXP - PURCHASE OF GOODS/SERVICES - RAIL TRAVEL,Organisational Development,REDFERN TRAVEL LTD,10000057,465,CONSOLIDATED BUSINESS TRAVEL WK 41,BD1 5HQ,ADMIN
FOOD STANDARDS AGENCY - Westminster,FOOD STANDARDS AGENCY - Westminster,2016-11-17,EXP - PURCHASE OF GOODS/SERVICES - RAIL TRAVEL,IT Service Delivery,REDFERN TRAVEL LTD,1011701397,461.5,CONSOLIDATED BUSINESS TRAVEL WK 45,BD1 5HQ,ADMIN
FOOD STANDARDS AGENCY - Westminster,FOOD STANDARDS AGENCY - Westminster,2016-11-23,EXP - PURCHASE OF GOODS/SERVICES - SUBSISTENCE,Area 5 South West England - Cluster 57,REDFERN TRAVEL LTD,1011701444,460.8,CONSOLIDATED BUSINESS TRAVEL WEEK 46,BD1 5HQ,PROGRAMME
FOOD STANDARDS AGENCY - Westminster,FOOD STANDARDS AGENCY - Westminster,2016-11-02,EXP - PURCHASE OF GOODS/SERVICES -  FOREIGN AIR TRAVEL,Food Incidents & Resilience - Prog,REDFERN TRAVEL LTD,1011701252,458,CONSOLIDATED BUSINESS TRAVEL WK 43,BD1 5HQ,PROGRAMME
FOOD STANDARDS AGENCY - Westminster,FOOD STANDARDS AGENCY - Westminster,2016-11-23,EXP - SHORT-TERM CONTRACT & AGENCY STAFF - FULL COST,Allergens,CAPITA BUSINESS SERVICES LTD,1011701443,451.5,TEMPORARY STAFF P/E 12-11-16,SL6 1DP,ADMIN
FOOD STANDARDS AGENCY - Westminster,FOOD STANDARDS AGENCY - Westminster,2016-11-23,EXP - SHORT-TERM CONTRACT & AGENCY STAFF - FULL COST,Allergens,CAPITA BUSINESS SERVICES LTD,1011701443,451.5,TEMPORARY STAFF P/E 12-11-16,SL6 1DP,ADMIN
FOOD STANDARDS AGENCY - Westminster,FOOD STANDARDS AGENCY - Westminster,2016-11-23,EXP - SHORT-TERM CONTRACT & AGENCY STAFF - FULL COST,Allergens,CAPITA BUSINESS SERVICES LTD,1011701443,451.5,TEMPORARY STAFF P/E 12-11-16,SL6 1DP,ADMIN
FOOD STANDARDS AGENCY - Westminster,FOOD STANDARDS AGENCY - Westminster,2016-11-29,EXP - PURCHASE OF GOODS/SERVICES - RAIL TRAVEL,IT Information & Knowledge Management,REDFERN TRAVEL LTD,1011701479,450.8,CONSOLIDATED BUSINESS TRAVEL WEEK 47,BD1 5HQ,ADMIN
FOOD STANDARDS AGENCY - Westminster,FOOD STANDARDS AGENCY - Westminster,2016-11-23,EXP - PURCHASE OF GOODS/SERVICES - AIR TRAVEL,Food Incidents & Resilience - Prog,REDFERN TRAVEL LTD,1011701444,442.04,CONSOLIDATED BUSINESS TRAVEL WEEK 46,BD1 5HQ,PROGRAMME
FOOD STANDARDS AGENCY - Westminster,FOOD STANDARDS AGENCY - Westminster,2016-11-29,EXP - PURCHASE OF GOODS/SERVICES - RAIL TRAVEL,Chief Scientist,REDFERN TRAVEL LTD,1011701479,438.6,CONSOLIDATED BUSINESS TRAVEL WEEK 47,BD1 5HQ,ADMIN
FOOD STANDARDS AGENCY - Westminster,FOOD STANDARDS AGENCY - Westminster,2016-11-29,EXP - PURCHASE OF GOODS/SERVICES - FOREIGN SUBSISTENCE,Allergens,REDFERN TRAVEL LTD,1011701479,431.03,CONSOLIDATED BUSINESS TRAVEL WEEK 47,BD1 5HQ,ADMIN
FOOD STANDARDS AGENCY - Westminster,FOOD STANDARDS AGENCY - Westminster,2016-11-17,EXP - PURCHASE OF GOODS/SERVICES - SUBSISTENCE,Area 3 North West England - Cluster 32,REDFERN TRAVEL LTD,1011701397,429,CONSOLIDATED BUSINESS TRAVEL WK 45,BD1 5HQ,PROGRAMME
FOOD STANDARDS AGENCY - Westminster,FOOD STANDARDS AGENCY - Westminster,2016-11-29,EXP - PURCHASE OF GOODS/SERVICES - FOREIGN SUBSISTENCE,Microbiological Food Safety Branch,REDFERN TRAVEL LTD,1011701479,428.37,CONSOLIDATED BUSINESS TRAVEL WEEK 47,BD1 5HQ,ADMIN
FOOD STANDARDS AGENCY - Westminster,FOOD STANDARDS AGENCY - Westminster,2016-11-23,EXP - PURCHASE OF GOODS/SERVICES - SUBSISTENCE,Operations Assurance ,REDFERN TRAVEL LTD,1011701444,427.01,CONSOLIDATED BUSINESS TRAVEL WEEK 46,BD1 5HQ,PROGRAMME
FOOD STANDARDS AGENCY - Westminster,FOOD STANDARDS AGENCY - Westminster,2016-11-29,EXP - PURCHASE OF GOODS/SERVICES - SUBSISTENCE,Comms Directors Office,REDFERN TRAVEL LTD,1011701479,424.11,CONSOLIDATED BUSINESS TRAVEL WEEK 47,BD1 5HQ,ADMIN
FOOD STANDARDS AGENCY - Westminster,FOOD STANDARDS AGENCY - Westminster,2016-11-29,EXP - PURCHASE OF GOODS/SERVICES - FOREIGN SUBSISTENCE,Corporate Support Unit,REDFERN TRAVEL LTD,1011701479,424.06,CONSOLIDATED BUSINESS TRAVEL WEEK 47,BD1 5HQ,ADMIN
FOOD STANDARDS AGENCY - Westminster,FOOD STANDARDS AGENCY - Westminster,2016-11-15,EXP - PURCHASE OF GOODS/SERVICES - SUBSISTENCE,Comms Directors Office,REDFERN TRAVEL LTD,10000057,422.8,CONSOLIDATED BUSINESS TRAVEL WK 41,BD1 5HQ,ADMIN
FOOD STANDARDS AGENCY - Westminster,FOOD STANDARDS AGENCY - Westminster,2016-11-15,EXP - PURCHASE OF GOODS/SERVICES - SUBSISTENCE,Food Incidents & Resilience - Prog,REDFERN TRAVEL LTD,10000057,417.2,CONSOLIDATED BUSINESS TRAVEL WK 41,BD1 5HQ,PROGRAMME
FOOD STANDARDS AGENCY - Westminster,FOOD STANDARDS AGENCY - Westminster,2016-11-23,EXP - PURCHASE OF GOODS/SERVICES - RAIL TRAVEL,Chief Scientist,REDFERN TRAVEL LTD,1011701444,411.3,CONSOLIDATED BUSINESS TRAVEL WEEK 46,BD1 5HQ,ADMIN
FOOD STANDARDS AGENCY - Westminster,FOOD STANDARDS AGENCY - Westminster,2016-11-15,EXP - PURCHASE OF GOODS/SERVICES - RAIL TRAVEL,Chief Executive & Private Office,REDFERN TRAVEL LTD,10000057,405.8,CONSOLIDATED BUSINESS TRAVEL WK 41,BD1 5HQ,ADMIN
FOOD STANDARDS AGENCY - Westminster,FOOD STANDARDS AGENCY - Westminster,2016-11-23,EXP - PURCHASE OF GOODS/SERVICES - RAIL TRAVEL,Regulatory & International,REDFERN TRAVEL LTD,1011701444,393.2,CONSOLIDATED BUSINESS TRAVEL WEEK 46,BD1 5HQ,ADMIN
FOOD STANDARDS AGENCY - Westminster,FOOD STANDARDS AGENCY - Westminster,2016-11-29,EXP - PURCHASE OF GOODS/SERVICES - RAIL TRAVEL,Area 5 South West England - Cluster 54,REDFERN TRAVEL LTD,1011701479,393.2,CONSOLIDATED BUSINESS TRAVEL WEEK 47,BD1 5HQ,PROGRAMME
FOOD STANDARDS AGENCY - Westminster,FOOD STANDARDS AGENCY - Westminster,2016-11-23,EXP - AMORTISATION - INTANGIBLE ASSETS,IT Strategy,CAPITA SECURE INFORMATION SOLUTIONS LTD,1011701448,393.06,PSN EXCHANGE 2013,SN14 0TW,CAPITAL
FOOD STANDARDS AGENCY - Westminster,FOOD STANDARDS AGENCY - Westminster,2016-11-02,EXP - PURCHASE OF GOODS/SERVICES - RAIL TRAVEL,Area 2 Wales - Cluster 21,REDFERN TRAVEL LTD,1011701252,392.2,CONSOLIDATED BUSINESS TRAVEL WK 43,BD1 5HQ,PROGRAMME
FOOD STANDARDS AGENCY - Westminster,FOOD STANDARDS AGENCY - Westminster,2016-11-29,EXP - PURCHASE OF GOODS/SERVICES - SUBSISTENCE,Contaminants HoD,REDFERN TRAVEL LTD,1011701479,390.72,CONSOLIDATED BUSINESS TRAVEL WEEK 47,BD1 5HQ,ADMIN
FOOD STANDARDS AGENCY - Westminster,FOOD STANDARDS AGENCY - Westminster,2016-11-15,EXP - PURCHASE OF GOODS/SERVICES - RAIL TRAVEL,Regulatory & International,REDFERN TRAVEL LTD,10000057,389.4,CONSOLIDATED BUSINESS TRAVEL WK 41,BD1 5HQ,ADMIN
FOOD STANDARDS AGENCY - Westminster,FOOD STANDARDS AGENCY - Westminster,2016-11-29,EXP - PURCHASE OF GOODS/SERVICES - SUBSISTENCE,Legal Branch A & Investigations,REDFERN TRAVEL LTD,1011701479,386.83,CONSOLIDATED BUSINESS TRAVEL WEEK 47,BD1 5HQ,ADMIN
FOOD STANDARDS AGENCY - Westminster,FOOD STANDARDS AGENCY - Westminster,2016-11-17,EXP - PURCHASE OF GOODS/SERVICES - RAIL TRAVEL,Internal Audit,REDFERN TRAVEL LTD,1011701397,386.2,CONSOLIDATED BUSINESS TRAVEL WK 45,BD1 5HQ,ADMIN
FOOD STANDARDS AGENCY - Westminster,FOOD STANDARDS AGENCY - Westminster,2016-11-29,EXP - PURCHASE OF GOODS/SERVICES - RAIL TRAVEL,Area 6 South East England - Cluster 62,REDFERN TRAVEL LTD,1011701479,376.9,CONSOLIDATED BUSINESS TRAVEL WEEK 47,BD1 5HQ,PROGRAMME
FOOD STANDARDS AGENCY - Westminster,FOOD STANDARDS AGENCY - Westminster,2016-11-23,EXP - AMORTISATION - INTANGIBLE ASSETS,IT Strategy,CAPITA SECURE INFORMATION SOLUTIONS LTD,1011701448,374.18,CITRIX IMPLEMENTATION(PROJECT & PCN),SN14 0TW,CAPITAL
FOOD STANDARDS AGENCY - Westminster,FOOD STANDARDS AGENCY - Westminster,2016-11-23,EXP - PURCHASE OF GOODS/SERVICES - RAIL TRAVEL,Area 5 South West England - Cluster 57,REDFERN TRAVEL LTD,1011701444,373.7,CONSOLIDATED BUSINESS TRAVEL WEEK 46,BD1 5HQ,PROGRAMME
FOOD STANDARDS AGENCY - Westminster,FOOD STANDARDS AGENCY - Westminster,2016-11-17,EXP - PURCHASE OF GOODS/SERVICES - RAIL TRAVEL,Area 3 North West England - Cluster 32,REDFERN TRAVEL LTD,1011701397,366.9,CONSOLIDATED BUSINESS TRAVEL WK 45,BD1 5HQ,PROGRAMME
FOOD STANDARDS AGENCY - Westminster,FOOD STANDARDS AGENCY - Westminster,2016-11-15,EXP - PURCHASE OF GOODS/SERVICES - RAIL TRAVEL,Area 3 North West England - Cluster 33,REDFERN TRAVEL LTD,10000057,363.95,CONSOLIDATED BUSINESS TRAVEL WK 41,BD1 5HQ,PROGRAMME
FOOD STANDARDS AGENCY - Westminster,FOOD STANDARDS AGENCY - Westminster,2016-11-23,EXP - PURCHASE OF GOODS/SERVICES - RAIL TRAVEL,Regulating our Future,REDFERN TRAVEL LTD,1011701444,362.7,CONSOLIDATED BUSINESS TRAVEL WEEK 46,BD1 5HQ,ADMIN
FOOD STANDARDS AGENCY - Westminster,FOOD STANDARDS AGENCY - Westminster,2016-11-17,EXP - PURCHASE OF GOODS/SERVICES - SUBSISTENCE,Regulatory Delivery ,REDFERN TRAVEL LTD,1011701397,359.14,CONSOLIDATED BUSINESS TRAVEL WK 45,BD1 5HQ,ADMIN
FOOD STANDARDS AGENCY - Westminster,FOOD STANDARDS AGENCY - Westminster,2016-11-02,EXP - PURCHASE OF GOODS/SERVICES - SUBSISTENCE,Area 3 North West England - Cluster 36,REDFERN TRAVEL LTD,1011701252,356.2,CONSOLIDATED BUSINESS TRAVEL WK 43,BD1 5HQ,PROGRAMME
FOOD STANDARDS AGENCY - Westminster,FOOD STANDARDS AGENCY - Westminster,2016-11-29,EXP - PURCHASE OF GOODS/SERVICES - SUBSISTENCE,Internal Audit,REDFERN TRAVEL LTD,1011701479,354,CONSOLIDATED BUSINESS TRAVEL WEEK 47,BD1 5HQ,ADMIN
FOOD STANDARDS AGENCY - Westminster,FOOD STANDARDS AGENCY - Westminster,2016-11-02,EXP - PURCHASE OF GOODS/SERVICES - SUBSISTENCE,Area 6 South East England - Cluster 65,REDFERN TRAVEL LTD,1011701252,349.95,CONSOLIDATED BUSINESS TRAVEL WK 43,BD1 5HQ,PROGRAMME
FOOD STANDARDS AGENCY - Westminster,FOOD STANDARDS AGENCY - Westminster,2016-11-29,EXP - PURCHASE OF GOODS/SERVICES - SUBSISTENCE,IT Information & Knowledge Management,REDFERN TRAVEL LTD,1011701479,346.09,CONSOLIDATED BUSINESS TRAVEL WEEK 47,BD1 5HQ,ADMIN
FOOD STANDARDS AGENCY - Westminster,FOOD STANDARDS AGENCY - Westminster,2016-11-29,EXP - PURCHASE OF GOODS/SERVICES - RAIL TRAVEL,Comms Directors Office,REDFERN TRAVEL LTD,1011701479,342.5,CONSOLIDATED BUSINESS TRAVEL WEEK 47,BD1 5HQ,ADMIN
FOOD STANDARDS AGENCY - Westminster,FOOD STANDARDS AGENCY - Westminster,2016-11-29,EXP - PURCHASE OF GOODS/SERVICES - RAIL TRAVEL,Analysis & Research Branch,REDFERN TRAVEL LTD,1011701479,341.1,CONSOLIDATED BUSINESS TRAVEL WEEK 47,BD1 5HQ,ADMIN
FOOD STANDARDS AGENCY - Westminster,FOOD STANDARDS AGENCY - Westminster,2016-11-15,EXP - PURCHASE OF GOODS/SERVICES - RAIL TRAVEL,Finance Director & Branch,REDFERN TRAVEL LTD,10000057,340.8,CONSOLIDATED BUSINESS TRAVEL WK 41,BD1 5HQ,ADMIN
FOOD STANDARDS AGENCY - Westminster,FOOD STANDARDS AGENCY - Westminster,2016-11-02,EXP - PURCHASE OF GOODS/SERVICES - RAIL TRAVEL,Procurement,REDFERN TRAVEL LTD,1011701252,339.4,CONSOLIDATED BUSINESS TRAVEL WK 43,BD1 5HQ,ADMIN
FOOD STANDARDS AGENCY - Westminster,FOOD STANDARDS AGENCY - Westminster,2016-11-29,EXP - PURCHASE OF GOODS/SERVICES -  FOREIGN AIR TRAVEL,Additives,REDFERN TRAVEL LTD,1011701479,338,CONSOLIDATED BUSINESS TRAVEL WEEK 47,BD1 5HQ,ADMIN
FOOD STANDARDS AGENCY - Westminster,FOOD STANDARDS AGENCY - Westminster,2016-11-17,EXP - PURCHASE OF GOODS/SERVICES - RAIL TRAVEL,Area 4 North East England - Cluster 41,REDFERN TRAVEL LTD,1011701397,333,CONSOLIDATED BUSINESS TRAVEL WK 45,BD1 5HQ,PROGRAMME
FOOD STANDARDS AGENCY - Westminster,FOOD STANDARDS AGENCY - Westminster,2016-11-29,EXP - PURCHASE OF GOODS/SERVICES - AIR TRAVEL,Comms Directors Office,REDFERN TRAVEL LTD,1011701479,331.24,CONSOLIDATED BUSINESS TRAVEL WEEK 47,BD1 5HQ,ADMIN
FOOD STANDARDS AGENCY - Westminster,FOOD STANDARDS AGENCY - Westminster,2016-11-29,EXP - PURCHASE OF GOODS/SERVICES - SUBSISTENCE,Operations Assurance ,REDFERN TRAVEL LTD,1011701479,329.21,CONSOLIDATED BUSINESS TRAVEL WEEK 47,BD1 5HQ,PROGRAMME
FOOD STANDARDS AGENCY - Westminster,FOOD STANDARDS AGENCY - Westminster,2016-11-23,EXP - PURCHASE OF GOODS/SERVICES - RAIL TRAVEL,Organisational Development,REDFERN TRAVEL LTD,1011701444,325.45,CONSOLIDATED BUSINESS TRAVEL WEEK 46,BD1 5HQ,ADMIN
FOOD STANDARDS AGENCY - Westminster,FOOD STANDARDS AGENCY - Westminster,2016-11-23,EXP - PURCHASE OF GOODS/SERVICES - RAIL TRAVEL,Area 2 Wales - Cluster 21,REDFERN TRAVEL LTD,1011701444,323.35,CONSOLIDATED BUSINESS TRAVEL WEEK 46,BD1 5HQ,PROGRAMME
FOOD STANDARDS AGENCY - Westminster,FOOD STANDARDS AGENCY - Westminster,2016-11-23,EXP - AMORTISATION - INTANGIBLE ASSETS,IT Strategy,CAPITA SECURE INFORMATION SOLUTIONS LTD,1011701448,320.17,GOOD COLLABORATION SUITE(PROJECT&PCN),SN14 0TW,CAPITAL
FOOD STANDARDS AGENCY - Westminster,FOOD STANDARDS AGENCY - Westminster,2016-11-17,EXP - PURCHASE OF GOODS/SERVICES - RAIL TRAVEL,Area 5 South West England - Cluster 56,REDFERN TRAVEL LTD,1011701397,318.5,CONSOLIDATED BUSINESS TRAVEL WK 45,BD1 5HQ,PROGRAMME
FOOD STANDARDS AGENCY - Westminster,FOOD STANDARDS AGENCY - Westminster,2016-11-02,EXP - PURCHASE OF GOODS/SERVICES - SUBSISTENCE,Area 6 South East England - Cluster 62,REDFERN TRAVEL LTD,1011701252,311.45,CONSOLIDATED BUSINESS TRAVEL WK 43,BD1 5HQ,PROGRAMME
FOOD STANDARDS AGENCY - Westminster,FOOD STANDARDS AGENCY - Westminster,2016-11-17,EXP - PURCHASE OF GOODS/SERVICES -  FOREIGN AIR TRAVEL,Corporate Support Unit,REDFERN TRAVEL LTD,1011701397,308.82,CONSOLIDATED BUSINESS TRAVEL WK 45,BD1 5HQ,ADMIN
FOOD STANDARDS AGENCY - Westminster,FOOD STANDARDS AGENCY - Westminster,2016-11-01,EXP - PURCHASE OF GOODS/SERVICES - OTHER ICT COSTS - IT DEVELOPMENT,IT Strategy,CAPITA SECURE INFORMATION SOLUTIONS LTD,1011701247,308.46,GOOD COLLABORATION SUITE,SN14 0TW,CAPITAL
FOOD STANDARDS AGENCY - Westminster,FOOD STANDARDS AGENCY - Westminster,2016-11-29,EXP - PURCHASE OF GOODS/SERVICES - SUBSISTENCE,Area 5 South West England - Cluster 57,REDFERN TRAVEL LTD,1011701479,308.05,CONSOLIDATED BUSINESS TRAVEL WEEK 47,BD1 5HQ,PROGRAMME
FOOD STANDARDS AGENCY - Westminster,FOOD STANDARDS AGENCY - Westminster,2016-11-29,EXP - PURCHASE OF GOODS/SERVICES - RAIL TRAVEL,Additives,REDFERN TRAVEL LTD,1011701479,298.15,CONSOLIDATED BUSINESS TRAVEL WEEK 47,BD1 5HQ,ADMIN
FOOD STANDARDS AGENCY - Westminster,FOOD STANDARDS AGENCY - Westminster,2016-11-02,EXP - PURCHASE OF GOODS/SERVICES - AIR TRAVEL,Planning and Performance,REDFERN TRAVEL LTD,1011701252,297.15,CONSOLIDATED BUSINESS TRAVEL WK 43,BD1 5HQ,ADMIN
FOOD STANDARDS AGENCY - Westminster,FOOD STANDARDS AGENCY - Westminster,2016-11-17,EXP - PURCHASE OF GOODS/SERVICES - RAIL TRAVEL,IT Information & Knowledge Management,REDFERN TRAVEL LTD,1011701397,295.6,CONSOLIDATED BUSINESS TRAVEL WK 45,BD1 5HQ,ADMIN
FOOD STANDARDS AGENCY - Westminster,FOOD STANDARDS AGENCY - Westminster,2016-11-29,EXP - PURCHASE OF GOODS/SERVICES - RAIL TRAVEL,Area 5 South West England - Cluster 55,REDFERN TRAVEL LTD,1011701479,291.8,CONSOLIDATED BUSINESS TRAVEL WEEK 47,BD1 5HQ,PROGRAMME
FOOD STANDARDS AGENCY - Westminster,FOOD STANDARDS AGENCY - Westminster,2016-11-15,EXP - PURCHASE OF GOODS/SERVICES - RAIL TRAVEL,Area 2 Wales - Cluster 21,REDFERN TRAVEL LTD,10000057,291.3,CONSOLIDATED BUSINESS TRAVEL WK 41,BD1 5HQ,PROGRAMME
FOOD STANDARDS AGENCY - Westminster,FOOD STANDARDS AGENCY - Westminster,2016-11-23,EXP - PURCHASE OF GOODS/SERVICES -  FOREIGN AIR TRAVEL,Scientific Methods & Laboratory Policy,REDFERN TRAVEL LTD,1011701444,291.21,CONSOLIDATED BUSINESS TRAVEL WEEK 46,BD1 5HQ,ADMIN
FOOD STANDARDS AGENCY - Westminster,FOOD STANDARDS AGENCY - Westminster,2016-11-15,EXP - PURCHASE OF GOODS/SERVICES -  FOREIGN AIR TRAVEL,IT Information & Knowledge Management,REDFERN TRAVEL LTD,10000057,288.31,CONSOLIDATED BUSINESS TRAVEL WK 41,BD1 5HQ,ADMIN
FOOD STANDARDS AGENCY - Westminster,FOOD STANDARDS AGENCY - Westminster,2016-11-02,EXP - PURCHASE OF GOODS/SERVICES - RAIL TRAVEL,Area 5 South West England - Cluster 55,REDFERN TRAVEL LTD,1011701252,288.2,CONSOLIDATED BUSINESS TRAVEL WK 43,BD1 5HQ,PROGRAMME
FOOD STANDARDS AGENCY - Westminster,FOOD STANDARDS AGENCY - Westminster,2016-11-02,EXP - PURCHASE OF GOODS/SERVICES - SUBSISTENCE,Legal Branch A & Investigations,REDFERN TRAVEL LTD,1011701252,283.99,CONSOLIDATED BUSINESS TRAVEL WK 43,BD1 5HQ,ADMIN
FOOD STANDARDS AGENCY - Westminster,FOOD STANDARDS AGENCY - Westminster,2016-11-17,EXP - PURCHASE OF GOODS/SERVICES - RAIL TRAVEL,Procurement,REDFERN TRAVEL LTD,1011701397,282.7,CONSOLIDATED BUSINESS TRAVEL WK 45,BD1 5HQ,ADMIN
FOOD STANDARDS AGENCY - Westminster,FOOD STANDARDS AGENCY - Westminster,2016-11-02,EXP - PURCHASE OF GOODS/SERVICES - SUBSISTENCE,Area 5 South West England - Cluster 57,REDFERN TRAVEL LTD,1011701252,280.3,CONSOLIDATED BUSINESS TRAVEL WK 43,BD1 5HQ,PROGRAMME
FOOD STANDARDS AGENCY - Westminster,FOOD STANDARDS AGENCY - Westminster,2016-11-23,EXP - PURCHASE OF GOODS/SERVICES - RAIL TRAVEL,Area 5 South West England - Cluster 56,REDFERN TRAVEL LTD,1011701444,279.1,CONSOLIDATED BUSINESS TRAVEL WEEK 46,BD1 5HQ,PROGRAMME
FOOD STANDARDS AGENCY - Westminster,FOOD STANDARDS AGENCY - Westminster,2016-11-15,EXP - PURCHASE OF GOODS/SERVICES - SUBSISTENCE,Food Crime Unit - Prog,REDFERN TRAVEL LTD,10000057,278.8,CONSOLIDATED BUSINESS TRAVEL WK 41,BD1 5HQ,PROGRAMME
FOOD STANDARDS AGENCY - Westminster,FOOD STANDARDS AGENCY - Westminster,2016-11-15,EXP - PURCHASE OF GOODS/SERVICES - SUBSISTENCE,Area 3 North West England - Cluster 32,REDFERN TRAVEL LTD,10000057,271.28,CONSOLIDATED BUSINESS TRAVEL WK 41,BD1 5HQ,PROGRAMME
FOOD STANDARDS AGENCY - Westminster,FOOD STANDARDS AGENCY - Westminster,2016-11-23,EXP - PURCHASE OF GOODS/SERVICES - SUBSISTENCE,Planning and Performance,REDFERN TRAVEL LTD,1011701444,267.43,CONSOLIDATED BUSINESS TRAVEL WEEK 46,BD1 5HQ,ADMIN
FOOD STANDARDS AGENCY - Westminster,FOOD STANDARDS AGENCY - Westminster,2016-11-23,EXP - PURCHASE OF GOODS/SERVICES - RAIL TRAVEL,Microbiological Food Safety Branch,REDFERN TRAVEL LTD,1011701444,265.1,CONSOLIDATED BUSINESS TRAVEL WEEK 46,BD1 5HQ,ADMIN
FOOD STANDARDS AGENCY - Westminster,FOOD STANDARDS AGENCY - Westminster,2016-11-02,EXP - PURCHASE OF GOODS/SERVICES - RAIL TRAVEL,Area 5 South West England - Cluster 57,REDFERN TRAVEL LTD,1011701252,264.1,CONSOLIDATED BUSINESS TRAVEL WK 43,BD1 5HQ,PROGRAMME
FOOD STANDARDS AGENCY - Westminster,FOOD STANDARDS AGENCY - Westminster,2016-11-02,EXP - PURCHASE OF GOODS/SERVICES - AIR TRAVEL,Comms Directors Office,REDFERN TRAVEL LTD,1011701252,261.64,CONSOLIDATED BUSINESS TRAVEL WK 43,BD1 5HQ,ADMIN
FOOD STANDARDS AGENCY - Westminster,FOOD STANDARDS AGENCY - Westminster,2016-11-02,EXP - PURCHASE OF GOODS/SERVICES -  FOREIGN AIR TRAVEL,Regulatory & International,REDFERN TRAVEL LTD,1011701252,261.16,CONSOLIDATED BUSINESS TRAVEL WK 43,BD1 5HQ,ADMIN
FOOD STANDARDS AGENCY - Westminster,FOOD STANDARDS AGENCY - Westminster,2016-11-02,EXP - PURCHASE OF GOODS/SERVICES - AIR TRAVEL,Operations Assurance ,REDFERN TRAVEL LTD,1011701252,260.91,CONSOLIDATED BUSINESS TRAVEL WK 43,BD1 5HQ,PROGRAMME
FOOD STANDARDS AGENCY - Westminster,FOOD STANDARDS AGENCY - Westminster,2016-11-17,EXP - PURCHASE OF GOODS/SERVICES - RAIL TRAVEL,Regulatory & International,REDFERN TRAVEL LTD,1011701397,257.4,CONSOLIDATED BUSINESS TRAVEL WK 45,BD1 5HQ,ADMIN
FOOD STANDARDS AGENCY - Westminster,FOOD STANDARDS AGENCY - Westminster,2016-11-29,EXP - PURCHASE OF GOODS/SERVICES - RAIL TRAVEL,Area 4 North East England - Cluster 43,REDFERN TRAVEL LTD,1011701479,254.8,CONSOLIDATED BUSINESS TRAVEL WEEK 47,BD1 5HQ,PROGRAMME
FOOD STANDARDS AGENCY - Westminster,FOOD STANDARDS AGENCY - Westminster,2016-11-29,EXP - PURCHASE OF GOODS/SERVICES - RAIL TRAVEL,Area 2 Wales - Cluster 21,REDFERN TRAVEL LTD,1011701479,247.6,CONSOLIDATED BUSINESS TRAVEL WEEK 47,BD1 5HQ,PROGRAMME
FOOD STANDARDS AGENCY - Westminster,FOOD STANDARDS AGENCY - Westminster,2016-11-23,EXP - PURCHASE OF GOODS/SERVICES - RAIL TRAVEL,Chief Executive & Private Office,REDFERN TRAVEL LTD,1011701444,245.4,CONSOLIDATED BUSINESS TRAVEL WEEK 46,BD1 5HQ,ADMIN
FOOD STANDARDS AGENCY - Westminster,FOOD STANDARDS AGENCY - Westminster,2016-11-02,EXP - PURCHASE OF GOODS/SERVICES - RAIL TRAVEL,IT Service Delivery,REDFERN TRAVEL LTD,1011701252,242,CONSOLIDATED BUSINESS TRAVEL WK 43,BD1 5HQ,ADMIN
FOOD STANDARDS AGENCY - Westminster,FOOD STANDARDS AGENCY - Westminster,2016-11-02,EXP - PURCHASE OF GOODS/SERVICES - SUBSISTENCE,Area 4 North East England - Cluster 47,REDFERN TRAVEL LTD,1011701252,241.35,CONSOLIDATED BUSINESS TRAVEL WK 43,BD1 5HQ,PROGRAMME
FOOD STANDARDS AGENCY - Westminster,FOOD STANDARDS AGENCY - Westminster,2016-11-02,EXP - PURCHASE OF GOODS/SERVICES - SUBSISTENCE,Area 4 North East England - Cluster 48,REDFERN TRAVEL LTD,1011701252,241.35,CONSOLIDATED BUSINESS TRAVEL WK 43,BD1 5HQ,PROGRAMME
FOOD STANDARDS AGENCY - Westminster,FOOD STANDARDS AGENCY - Westminster,2016-11-29,EXP - PURCHASE OF GOODS/SERVICES - AIR TRAVEL,Regulatory & International,REDFERN TRAVEL LTD,1011701479,240.65,CONSOLIDATED BUSINESS TRAVEL WEEK 47,BD1 5HQ,ADMIN
FOOD STANDARDS AGENCY - Westminster,FOOD STANDARDS AGENCY - Westminster,2016-11-15,EXP - PURCHASE OF GOODS/SERVICES - RAIL TRAVEL,Area 5 South West England - Cluster 55,REDFERN TRAVEL LTD,10000057,240,CONSOLIDATED BUSINESS TRAVEL WK 41,BD1 5HQ,PROGRAMME
FOOD STANDARDS AGENCY - Westminster,FOOD STANDARDS AGENCY - Westminster,2016-11-15,EXP - PURCHASE OF GOODS/SERVICES - RAIL TRAVEL,Contaminants HoD,REDFERN TRAVEL LTD,10000057,238.3,CONSOLIDATED BUSINESS TRAVEL WK 41,BD1 5HQ,ADMIN
FOOD STANDARDS AGENCY - Westminster,FOOD STANDARDS AGENCY - Westminster,2016-11-15,EXP - PURCHASE OF GOODS/SERVICES -  FOREIGN AIR TRAVEL,Chemical Risk Assessment Unit,REDFERN TRAVEL LTD,10000057,233.05,CONSOLIDATED BUSINESS TRAVEL WK 41,BD1 5HQ,ADMIN
FOOD STANDARDS AGENCY - Westminster,FOOD STANDARDS AGENCY - Westminster,2016-11-29,EXP - PURCHASE OF GOODS/SERVICES - FOREIGN SUBSISTENCE,Operations Assurance ,REDFERN TRAVEL LTD,1011701479,232.26,CONSOLIDATED BUSINESS TRAVEL WEEK 47,BD1 5HQ,PROGRAMME
FOOD STANDARDS AGENCY - Westminster,FOOD STANDARDS AGENCY - Westminster,2016-11-29,EXP - PURCHASE OF GOODS/SERVICES - RAIL TRAVEL,Animal Feed     ,REDFERN TRAVEL LTD,1011701479,232,CONSOLIDATED BUSINESS TRAVEL WEEK 47,BD1 5HQ,ADMIN
FOOD STANDARDS AGENCY - Westminster,FOOD STANDARDS AGENCY - Westminster,2016-11-15,EXP - PURCHASE OF GOODS/SERVICES - SUBSISTENCE,Regulatory Delivery ,REDFERN TRAVEL LTD,10000057,231.95,CONSOLIDATED BUSINESS TRAVEL WK 41,BD1 5HQ,ADMIN
FOOD STANDARDS AGENCY - Westminster,FOOD STANDARDS AGENCY - Westminster,2016-11-15,EXP - PURCHASE OF GOODS/SERVICES - RAIL TRAVEL,Corporate Support Unit,REDFERN TRAVEL LTD,10000057,231.1,CONSOLIDATED BUSINESS TRAVEL WK 41,BD1 5HQ,ADMIN
FOOD STANDARDS AGENCY - Westminster,FOOD STANDARDS AGENCY - Westminster,2016-11-29,EXP - PURCHASE OF GOODS/SERVICES - FOREIGN SUBSISTENCE,Analysis & Research Branch,REDFERN TRAVEL LTD,1011701479,229.17,CONSOLIDATED BUSINESS TRAVEL WEEK 47,BD1 5HQ,ADMIN
FOOD STANDARDS AGENCY - Westminster,FOOD STANDARDS AGENCY - Westminster,2016-11-23,EXP - PURCHASE OF GOODS/SERVICES - SUBSISTENCE,IT Service Delivery,REDFERN TRAVEL LTD,1011701444,228.35,CONSOLIDATED BUSINESS TRAVEL WEEK 46,BD1 5HQ,ADMIN
FOOD STANDARDS AGENCY - Westminster,FOOD STANDARDS AGENCY - Westminster,2016-11-17,EXP - PURCHASE OF GOODS/SERVICES - RAIL TRAVEL,Legal Branch A & Investigations,REDFERN TRAVEL LTD,1011701397,228.3,CONSOLIDATED BUSINESS TRAVEL WK 45,BD1 5HQ,ADMIN
FOOD STANDARDS AGENCY - Westminster,FOOD STANDARDS AGENCY - Westminster,2016-11-23,EXP - PURCHASE OF GOODS/SERVICES - RAIL TRAVEL,Area 3 North West England - Cluster 35,REDFERN TRAVEL LTD,1011701444,226.9,CONSOLIDATED BUSINESS TRAVEL WEEK 46,BD1 5HQ,PROGRAMME
FOOD STANDARDS AGENCY - Westminster,FOOD STANDARDS AGENCY - Westminster,2016-11-23,EXP - PURCHASE OF GOODS/SERVICES - RAIL TRAVEL,Area 3 North West England - Cluster 34,REDFERN TRAVEL LTD,1011701444,225.9,CONSOLIDATED BUSINESS TRAVEL WEEK 46,BD1 5HQ,PROGRAMME
FOOD STANDARDS AGENCY - Westminster,FOOD STANDARDS AGENCY - Westminster,2016-11-02,EXP - PURCHASE OF GOODS/SERVICES - SUBSISTENCE,Food Incidents & Resilience - Prog,REDFERN TRAVEL LTD,1011701252,225.1,CONSOLIDATED BUSINESS TRAVEL WK 43,BD1 5HQ,PROGRAMME
FOOD STANDARDS AGENCY - Westminster,FOOD STANDARDS AGENCY - Westminster,2016-11-17,EXP - PURCHASE OF GOODS/SERVICES - SUBSISTENCE,Microbiological Food Safety Branch,REDFERN TRAVEL LTD,1011701397,225.1,CONSOLIDATED BUSINESS TRAVEL WK 45,BD1 5HQ,ADMIN
FOOD STANDARDS AGENCY - Westminster,FOOD STANDARDS AGENCY - Westminster,2016-11-17,EXP - PURCHASE OF GOODS/SERVICES - SUBSISTENCE,IT Information & Knowledge Management,REDFERN TRAVEL LTD,1011701397,224.5,CONSOLIDATED BUSINESS TRAVEL WK 45,BD1 5HQ,ADMIN
FOOD STANDARDS AGENCY - Westminster,FOOD STANDARDS AGENCY - Westminster,2016-11-23,EXP - AMORTISATION - INTANGIBLE ASSETS,IT Service Delivery,CAPITA SECURE INFORMATION SOLUTIONS LTD,1011701448,224.3,BUFFER STOCK,SN14 0TW,ADMIN
FOOD STANDARDS AGENCY - Westminster,FOOD STANDARDS AGENCY - Westminster,2016-11-02,EXP - PURCHASE OF GOODS/SERVICES - SUBSISTENCE,Finance Director & Branch,REDFERN TRAVEL LTD,1011701252,222.15,CONSOLIDATED BUSINESS TRAVEL WK 43,BD1 5HQ,ADMIN
FOOD STANDARDS AGENCY - Westminster,FOOD STANDARDS AGENCY - Westminster,2016-11-17,EXP - PURCHASE OF GOODS/SERVICES - RAIL TRAVEL,Area 3 North West England - Cluster 33,REDFERN TRAVEL LTD,1011701397,221.5,CONSOLIDATED BUSINESS TRAVEL WK 45,BD1 5HQ,PROGRAMME
FOOD STANDARDS AGENCY - Westminster,FOOD STANDARDS AGENCY - Westminster,2016-11-02,EXP - PURCHASE OF GOODS/SERVICES - SUBSISTENCE,Animal Feed Branch,REDFERN TRAVEL LTD,1011701252,220.8,CONSOLIDATED BUSINESS TRAVEL WK 43,BD1 5HQ,ADMIN
FOOD STANDARDS AGENCY - Westminster,FOOD STANDARDS AGENCY - Westminster,2016-11-02,EXP - PURCHASE OF GOODS/SERVICES - RAIL TRAVEL,Animal Feed     ,REDFERN TRAVEL LTD,1011701252,220.5,CONSOLIDATED BUSINESS TRAVEL WK 43,BD1 5HQ,ADMIN
FOOD STANDARDS AGENCY - Westminster,FOOD STANDARDS AGENCY - Westminster,2016-11-23,EXP - PURCHASE OF GOODS/SERVICES - RAIL TRAVEL,Chair & Deputy Chair,REDFERN TRAVEL LTD,1011701444,220,CONSOLIDATED BUSINESS TRAVEL WEEK 46,BD1 5HQ,ADMIN
FOOD STANDARDS AGENCY - Westminster,FOOD STANDARDS AGENCY - Westminster,2016-11-15,EXP - PURCHASE OF GOODS/SERVICES - RAIL TRAVEL,EU Regulatory Reform Branch,REDFERN TRAVEL LTD,10000057,219.9,CONSOLIDATED BUSINESS TRAVEL WK 41,BD1 5HQ,ADMIN
FOOD STANDARDS AGENCY - Westminster,FOOD STANDARDS AGENCY - Westminster,2016-11-17,EXP - PURCHASE OF GOODS/SERVICES - SUBSISTENCE,Area 5 South West England - Cluster 53,REDFERN TRAVEL LTD,1011701397,218.2,CONSOLIDATED BUSINESS TRAVEL WK 45,BD1 5HQ,PROGRAMME
FOOD STANDARDS AGENCY - Westminster,FOOD STANDARDS AGENCY - Westminster,2016-11-23,EXP - PURCHASE OF GOODS/SERVICES - SUBSISTENCE,Area 3 North West England - Cluster 32,REDFERN TRAVEL LTD,1011701444,217.83,CONSOLIDATED BUSINESS TRAVEL WEEK 46,BD1 5HQ,PROGRAMME
FOOD STANDARDS AGENCY - Westminster,FOOD STANDARDS AGENCY - Westminster,2016-11-29,EXP - PURCHASE OF GOODS/SERVICES - RAIL TRAVEL,Procurement,REDFERN TRAVEL LTD,1011701479,216,CONSOLIDATED BUSINESS TRAVEL WEEK 47,BD1 5HQ,ADMIN
FOOD STANDARDS AGENCY - Westminster,FOOD STANDARDS AGENCY - Westminster,2016-11-23,EXP - PURCHASE OF GOODS/SERVICES - RAIL TRAVEL,Area 5 South West England - Cluster 55,REDFERN TRAVEL LTD,1011701444,215.7,CONSOLIDATED BUSINESS TRAVEL WEEK 46,BD1 5HQ,PROGRAMME
FOOD STANDARDS AGENCY - Westminster,FOOD STANDARDS AGENCY - Westminster,2016-11-15,EXP - PURCHASE OF GOODS/SERVICES - RAIL TRAVEL,IT Information & Knowledge Management,REDFERN TRAVEL LTD,10000057,215.6,CONSOLIDATED BUSINESS TRAVEL WK 41,BD1 5HQ,ADMIN
FOOD STANDARDS AGENCY - Westminster,FOOD STANDARDS AGENCY - Westminster,2016-11-29,EXP - PURCHASE OF GOODS/SERVICES -  FOREIGN AIR TRAVEL,Organisational Development,REDFERN TRAVEL LTD,1011701479,214,CONSOLIDATED BUSINESS TRAVEL WEEK 47,BD1 5HQ,ADMIN
FOOD STANDARDS AGENCY - Westminster,FOOD STANDARDS AGENCY - Westminster,2016-11-29,EXP - PURCHASE OF GOODS/SERVICES - AIR TRAVEL,Animal Feed Branch,REDFERN TRAVEL LTD,1011701479,214,CONSOLIDATED BUSINESS TRAVEL WEEK 47,BD1 5HQ,ADMIN
FOOD STANDARDS AGENCY - Westminster,FOOD STANDARDS AGENCY - Westminster,2016-11-15,EXP - PURCHASE OF GOODS/SERVICES - SUBSISTENCE,Finance Director & Branch,REDFERN TRAVEL LTD,10000057,209.2,CONSOLIDATED BUSINESS TRAVEL WK 41,BD1 5HQ,ADMIN
FOOD STANDARDS AGENCY - Westminster,FOOD STANDARDS AGENCY - Westminster,2016-11-17,EXP - PURCHASE OF GOODS/SERVICES - SUBSISTENCE,Area 6 South East England - Cluster 65,REDFERN TRAVEL LTD,1011701397,209.2,CONSOLIDATED BUSINESS TRAVEL WK 45,BD1 5HQ,PROGRAMME
FOOD STANDARDS AGENCY - Westminster,FOOD STANDARDS AGENCY - Westminster,2016-11-17,EXP - PURCHASE OF GOODS/SERVICES - SUBSISTENCE,Finance Director & Branch,REDFERN TRAVEL LTD,1011701397,208.6,CONSOLIDATED BUSINESS TRAVEL WK 45,BD1 5HQ,ADMIN
FOOD STANDARDS AGENCY - Westminster,FOOD STANDARDS AGENCY - Westminster,2016-11-23,EXP - PURCHASE OF GOODS/SERVICES - RAIL TRAVEL,Legal Branch A & Investigations,REDFERN TRAVEL LTD,1011701444,208,CONSOLIDATED BUSINESS TRAVEL WEEK 46,BD1 5HQ,ADMIN
FOOD STANDARDS AGENCY - Westminster,FOOD STANDARDS AGENCY - Westminster,2016-11-15,EXP - PURCHASE OF GOODS/SERVICES - RAIL TRAVEL,Area 6 South East England - Cluster 63,REDFERN TRAVEL LTD,10000057,206.9,CONSOLIDATED BUSINESS TRAVEL WK 41,BD1 5HQ,PROGRAMME
FOOD STANDARDS AGENCY - Westminster,FOOD STANDARDS AGENCY - Westminster,2016-11-15,EXP - PURCHASE OF GOODS/SERVICES - RAIL TRAVEL,Area 4 North East England - Cluster 41,REDFERN TRAVEL LTD,10000057,204.4,CONSOLIDATED BUSINESS TRAVEL WK 41,BD1 5HQ,PROGRAMME
FOOD STANDARDS AGENCY - Westminster,FOOD STANDARDS AGENCY - Westminster,2016-11-23,EXP - PURCHASE OF GOODS/SERVICES - SUBSISTENCE,Regulating our Future,REDFERN TRAVEL LTD,1011701444,201.96,CONSOLIDATED BUSINESS TRAVEL WEEK 46,BD1 5HQ,ADMIN
FOOD STANDARDS AGENCY - Westminster,FOOD STANDARDS AGENCY - Westminster,2016-11-29,EXP - PURCHASE OF GOODS/SERVICES - RAIL TRAVEL,Food Incidents & Resilience - Prog,REDFERN TRAVEL LTD,1011701479,201.9,CONSOLIDATED BUSINESS TRAVEL WEEK 47,BD1 5HQ,PROGRAMME
FOOD STANDARDS AGENCY - Westminster,FOOD STANDARDS AGENCY - Westminster,2016-11-29,EXP - PURCHASE OF GOODS/SERVICES - RAIL TRAVEL,Area 4 North East England - Cluster 41,REDFERN TRAVEL LTD,1011701479,201.16,CONSOLIDATED BUSINESS TRAVEL WEEK 47,BD1 5HQ,PROGRAMME
FOOD STANDARDS AGENCY - Westminster,FOOD STANDARDS AGENCY - Westminster,2016-11-23,EXP - PURCHASE OF GOODS/SERVICES - SUBSISTENCE,Food Incidents & Resilience - Prog,REDFERN TRAVEL LTD,1011701444,200.88,CONSOLIDATED BUSINESS TRAVEL WEEK 46,BD1 5HQ,PROGRAMME
FOOD STANDARDS AGENCY - Westminster,FOOD STANDARDS AGENCY - Westminster,2016-11-23,EXP - PURCHASE OF GOODS/SERVICES - RAIL TRAVEL,Area 3 North West England - Cluster 32,REDFERN TRAVEL LTD,1011701444,200.7,CONSOLIDATED BUSINESS TRAVEL WEEK 46,BD1 5HQ,PROGRAMME
FOOD STANDARDS AGENCY - Westminster,FOOD STANDARDS AGENCY - Westminster,2016-11-23,EXP - PURCHASE OF GOODS/SERVICES - RAIL TRAVEL,Corporate Support Unit,REDFERN TRAVEL LTD,1011701444,200,CONSOLIDATED BUSINESS TRAVEL WEEK 46,BD1 5HQ,ADMIN
FOOD STANDARDS AGENCY - Westminster,FOOD STANDARDS AGENCY - Westminster,2016-11-23,EXP - PURCHASE OF GOODS/SERVICES - AIR TRAVEL,EU Regulatory Reform Branch,REDFERN TRAVEL LTD,1011701444,199,CONSOLIDATED BUSINESS TRAVEL WEEK 46,BD1 5HQ,ADMIN
FOOD STANDARDS AGENCY - Westminster,FOOD STANDARDS AGENCY - Westminster,2016-11-23,EXP - PURCHASE OF GOODS/SERVICES - SUBSISTENCE,Legal Branch A & Investigations,REDFERN TRAVEL LTD,1011701444,197.8,CONSOLIDATED BUSINESS TRAVEL WEEK 46,BD1 5HQ,ADMIN
FOOD STANDARDS AGENCY - Westminster,FOOD STANDARDS AGENCY - Westminster,2016-11-23,EXP - PURCHASE OF GOODS/SERVICES - RAIL TRAVEL,Internal Audit,REDFERN TRAVEL LTD,1011701444,195.2,CONSOLIDATED BUSINESS TRAVEL WEEK 46,BD1 5HQ,ADMIN
FOOD STANDARDS AGENCY - Westminster,FOOD STANDARDS AGENCY - Westminster,2016-11-02,EXP - PURCHASE OF GOODS/SERVICES - RAIL TRAVEL,Contaminants HoD,REDFERN TRAVEL LTD,1011701252,194.9,CONSOLIDATED BUSINESS TRAVEL WK 43,BD1 5HQ,ADMIN
FOOD STANDARDS AGENCY - Westminster,FOOD STANDARDS AGENCY - Westminster,2016-11-17,EXP - PURCHASE OF GOODS/SERVICES -  FOREIGN AIR TRAVEL,Animal Feed Branch,REDFERN TRAVEL LTD,1011701397,194,CONSOLIDATED BUSINESS TRAVEL WK 45,BD1 5HQ,ADMIN
FOOD STANDARDS AGENCY - Westminster,FOOD STANDARDS AGENCY - Westminster,2016-11-02,EXP - PURCHASE OF GOODS/SERVICES - SUBSISTENCE,Regulating our Future,REDFERN TRAVEL LTD,1011701252,193.2,CONSOLIDATED BUSINESS TRAVEL WK 43,BD1 5HQ,ADMIN
FOOD STANDARDS AGENCY - Westminster,FOOD STANDARDS AGENCY - Westminster,2016-11-23,EXP - PURCHASE OF GOODS/SERVICES - AIR TRAVEL,Operations Assurance ,REDFERN TRAVEL LTD,1011701444,192.76,CONSOLIDATED BUSINESS TRAVEL WEEK 46,BD1 5HQ,PROGRAMME
FOOD STANDARDS AGENCY - Westminster,FOOD STANDARDS AGENCY - Westminster,2016-11-17,EXP - PURCHASE OF GOODS/SERVICES - AIR TRAVEL,Animal Feed Branch,REDFERN TRAVEL LTD,1011701397,192.61,CONSOLIDATED BUSINESS TRAVEL WK 45,BD1 5HQ,ADMIN
FOOD STANDARDS AGENCY - Westminster,FOOD STANDARDS AGENCY - Westminster,2016-11-29,EXP - PURCHASE OF GOODS/SERVICES - SUBSISTENCE,Animal Feed Branch,REDFERN TRAVEL LTD,1011701479,191.2,CONSOLIDATED BUSINESS TRAVEL WEEK 47,BD1 5HQ,ADMIN
FOOD STANDARDS AGENCY - Westminster,FOOD STANDARDS AGENCY - Westminster,2016-11-02,EXP - PURCHASE OF GOODS/SERVICES - RAIL TRAVEL,Regulating our Future,REDFERN TRAVEL LTD,1011701252,189,CONSOLIDATED BUSINESS TRAVEL WK 43,BD1 5HQ,ADMIN
FOOD STANDARDS AGENCY - Westminster,FOOD STANDARDS AGENCY - Westminster,2016-11-23,EXP - PURCHASE OF GOODS/SERVICES - SUBSISTENCE,Animal Feed Branch,REDFERN TRAVEL LTD,1011701444,188.1,CONSOLIDATED BUSINESS TRAVEL WEEK 46,BD1 5HQ,ADMIN
FOOD STANDARDS AGENCY - Westminster,FOOD STANDARDS AGENCY - Westminster,2016-11-17,EXP - PURCHASE OF GOODS/SERVICES - RAIL TRAVEL,Security & Estates,REDFERN TRAVEL LTD,1011701397,187.55,CONSOLIDATED BUSINESS TRAVEL WK 45,BD1 5HQ,ADMIN
FOOD STANDARDS AGENCY - Westminster,FOOD STANDARDS AGENCY - Westminster,2016-11-15,EXP - PURCHASE OF GOODS/SERVICES - RAIL TRAVEL,Area 6 South East England - Cluster 64,REDFERN TRAVEL LTD,10000057,186.4,CONSOLIDATED BUSINESS TRAVEL WK 41,BD1 5HQ,PROGRAMME
FOOD STANDARDS AGENCY - Westminster,FOOD STANDARDS AGENCY - Westminster,2016-11-02,EXP - PURCHASE OF GOODS/SERVICES - SUBSISTENCE,Regulatory & International,REDFERN TRAVEL LTD,1011701252,185.6,CONSOLIDATED BUSINESS TRAVEL WK 43,BD1 5HQ,ADMIN
FOOD STANDARDS AGENCY - Westminster,FOOD STANDARDS AGENCY - Westminster,2016-11-23,EXP - PURCHASE OF GOODS/SERVICES - SUBSISTENCE,Chief Scientist,REDFERN TRAVEL LTD,1011701444,183.18,CONSOLIDATED BUSINESS TRAVEL WEEK 46,BD1 5HQ,ADMIN
FOOD STANDARDS AGENCY - Westminster,FOOD STANDARDS AGENCY - Westminster,2016-11-23,EXP - PURCHASE OF GOODS/SERVICES - RAIL TRAVEL,Procurement,REDFERN TRAVEL LTD,1011701444,183,CONSOLIDATED BUSINESS TRAVEL WEEK 46,BD1 5HQ,ADMIN
FOOD STANDARDS AGENCY - Westminster,FOOD STANDARDS AGENCY - Westminster,2016-11-23,EXP - PURCHASE OF GOODS/SERVICES - SUBSISTENCE,Chief Executive & Private Office,REDFERN TRAVEL LTD,1011701444,182.4,CONSOLIDATED BUSINESS TRAVEL WEEK 46,BD1 5HQ,ADMIN
FOOD STANDARDS AGENCY - Westminster,FOOD STANDARDS AGENCY - Westminster,2016-11-29,EXP - PURCHASE OF GOODS/SERVICES - RAIL TRAVEL,"Employee Relations, Systems and Data",REDFERN TRAVEL LTD,1011701479,180.8,CONSOLIDATED BUSINESS TRAVEL WEEK 47,BD1 5HQ,ADMIN
FOOD STANDARDS AGENCY - Westminster,FOOD STANDARDS AGENCY - Westminster,2016-11-17,EXP - PURCHASE OF GOODS/SERVICES - RAIL TRAVEL,Area 6 South East England - Cluster 63,REDFERN TRAVEL LTD,1011701397,180.6,CONSOLIDATED BUSINESS TRAVEL WK 45,BD1 5HQ,PROGRAMME
FOOD STANDARDS AGENCY - Westminster,FOOD STANDARDS AGENCY - Westminster,2016-11-02,EXP - PURCHASE OF GOODS/SERVICES - SUBSISTENCE,Area 3 North West England - Cluster 32,REDFERN TRAVEL LTD,1011701252,180.15,CONSOLIDATED BUSINESS TRAVEL WK 43,BD1 5HQ,PROGRAMME
FOOD STANDARDS AGENCY - Westminster,FOOD STANDARDS AGENCY - Westminster,2016-11-23,EXP - PURCHASE OF GOODS/SERVICES - RAIL TRAVEL,Area 3 North West England - Cluster 31,REDFERN TRAVEL LTD,1011701444,179.05,CONSOLIDATED BUSINESS TRAVEL WEEK 46,BD1 5HQ,PROGRAMME
FOOD STANDARDS AGENCY - Westminster,FOOD STANDARDS AGENCY - Westminster,2016-11-29,EXP - PURCHASE OF GOODS/SERVICES - SUBSISTENCE,Contaminants Policy & Strategy Unit,REDFERN TRAVEL LTD,1011701479,178.22,CONSOLIDATED BUSINESS TRAVEL WEEK 47,BD1 5HQ,ADMIN
FOOD STANDARDS AGENCY - Westminster,FOOD STANDARDS AGENCY - Westminster,2016-11-23,EXP - PURCHASE OF GOODS/SERVICES - RAIL TRAVEL,Area 4 North East England - Cluster 41,REDFERN TRAVEL LTD,1011701444,177.15,CONSOLIDATED BUSINESS TRAVEL WEEK 46,BD1 5HQ,PROGRAMME
FOOD STANDARDS AGENCY - Westminster,FOOD STANDARDS AGENCY - Westminster,2016-11-15,EXP - PURCHASE OF GOODS/SERVICES - AIR TRAVEL,Regulatory Delivery ,REDFERN TRAVEL LTD,10000057,176.15,CONSOLIDATED BUSINESS TRAVEL WK 41,BD1 5HQ,ADMIN
FOOD STANDARDS AGENCY - Westminster,FOOD STANDARDS AGENCY - Westminster,2016-11-15,EXP - PURCHASE OF GOODS/SERVICES - RAIL TRAVEL,Legal Branch A & Investigations,REDFERN TRAVEL LTD,10000057,174,CONSOLIDATED BUSINESS TRAVEL WK 41,BD1 5HQ,ADMIN
FOOD STANDARDS AGENCY - Westminster,FOOD STANDARDS AGENCY - Westminster,2016-11-23,EXP - PURCHASE OF GOODS/SERVICES - RAIL TRAVEL,IT Information & Knowledge Management,REDFERN TRAVEL LTD,1011701444,172.95,CONSOLIDATED BUSINESS TRAVEL WEEK 46,BD1 5HQ,ADMIN
FOOD STANDARDS AGENCY - Westminster,FOOD STANDARDS AGENCY - Westminster,2016-11-29,EXP - PURCHASE OF GOODS/SERVICES - RAIL TRAVEL,Area 6 South East England - Cluster 63,REDFERN TRAVEL LTD,1011701479,171.9,CONSOLIDATED BUSINESS TRAVEL WEEK 47,BD1 5HQ,PROGRAMME
FOOD STANDARDS AGENCY - Westminster,FOOD STANDARDS AGENCY - Westminster,2016-11-15,EXP - PURCHASE OF GOODS/SERVICES - OTHER TRAVEL,Comms Directors Office,REDFERN TRAVEL LTD,10000057,171.2,CONSOLIDATED BUSINESS TRAVEL WK 41,BD1 5HQ,ADMIN
FOOD STANDARDS AGENCY - Westminster,FOOD STANDARDS AGENCY - Westminster,2016-11-29,EXP - PURCHASE OF GOODS/SERVICES - RAIL TRAVEL,Microbiological Food Safety Branch,REDFERN TRAVEL LTD,1011701479,171,CONSOLIDATED BUSINESS TRAVEL WEEK 47,BD1 5HQ,ADMIN
FOOD STANDARDS AGENCY - Westminster,FOOD STANDARDS AGENCY - Westminster,2016-11-17,EXP - PURCHASE OF GOODS/SERVICES - RAIL TRAVEL,Analysis & Research Branch,REDFERN TRAVEL LTD,1011701397,170.8,CONSOLIDATED BUSINESS TRAVEL WK 45,BD1 5HQ,ADMIN
FOOD STANDARDS AGENCY - Westminster,FOOD STANDARDS AGENCY - Westminster,2016-11-29,EXP - PURCHASE OF GOODS/SERVICES - SUBSISTENCE,Area 5 South West England - Cluster 53,REDFERN TRAVEL LTD,1011701479,169.45,CONSOLIDATED BUSINESS TRAVEL WEEK 47,BD1 5HQ,PROGRAMME
FOOD STANDARDS AGENCY - Westminster,FOOD STANDARDS AGENCY - Westminster,2016-11-02,EXP - PURCHASE OF GOODS/SERVICES - AIR TRAVEL,Food Crime Unit - Admin,REDFERN TRAVEL LTD,1011701252,168.98,CONSOLIDATED BUSINESS TRAVEL WK 43,BD1 5HQ,ADMIN
FOOD STANDARDS AGENCY - Westminster,FOOD STANDARDS AGENCY - Westminster,2016-11-29,EXP - PURCHASE OF GOODS/SERVICES - SUBSISTENCE,IT Service Delivery,REDFERN TRAVEL LTD,1011701479,168.64,CONSOLIDATED BUSINESS TRAVEL WEEK 47,BD1 5HQ,ADMIN
FOOD STANDARDS AGENCY - Westminster,FOOD STANDARDS AGENCY - Westminster,2016-11-02,EXP - PURCHASE OF GOODS/SERVICES - SUBSISTENCE,Chemical Risk Assessment Unit,REDFERN TRAVEL LTD,1011701252,168.6,CONSOLIDATED BUSINESS TRAVEL WK 43,BD1 5HQ,ADMIN
FOOD STANDARDS AGENCY - Westminster,FOOD STANDARDS AGENCY - Westminster,2016-11-02,EXP - PURCHASE OF GOODS/SERVICES - SUBSISTENCE,Comms Directors Office,REDFERN TRAVEL LTD,1011701252,166.12,CONSOLIDATED BUSINESS TRAVEL WK 43,BD1 5HQ,ADMIN
FOOD STANDARDS AGENCY - Westminster,FOOD STANDARDS AGENCY - Westminster,2016-11-29,EXP - PURCHASE OF GOODS/SERVICES - SUBSISTENCE,Food Crime Unit - Prog,REDFERN TRAVEL LTD,1011701479,165.2,CONSOLIDATED BUSINESS TRAVEL WEEK 47,BD1 5HQ,PROGRAMME
FOOD STANDARDS AGENCY - Westminster,FOOD STANDARDS AGENCY - Westminster,2016-11-17,EXP - PURCHASE OF GOODS/SERVICES - RAIL TRAVEL,Corporate Support Unit,REDFERN TRAVEL LTD,1011701397,164.9,CONSOLIDATED BUSINESS TRAVEL WK 45,BD1 5HQ,ADMIN
FOOD STANDARDS AGENCY - Westminster,FOOD STANDARDS AGENCY - Westminster,2016-11-23,EXP - PURCHASE OF GOODS/SERVICES - SUBSISTENCE,Area 6 South East England - Cluster 65,REDFERN TRAVEL LTD,1011701444,162.6,CONSOLIDATED BUSINESS TRAVEL WEEK 46,BD1 5HQ,PROGRAMME
FOOD STANDARDS AGENCY - Westminster,FOOD STANDARDS AGENCY - Westminster,2016-11-15,EXP - PURCHASE OF GOODS/SERVICES - RAIL TRAVEL,Regulating our Future,REDFERN TRAVEL LTD,10000057,161.5,CONSOLIDATED BUSINESS TRAVEL WK 41,BD1 5HQ,ADMIN
FOOD STANDARDS AGENCY - Westminster,FOOD STANDARDS AGENCY - Westminster,2016-11-15,EXP - PURCHASE OF GOODS/SERVICES - SUBSISTENCE,Legal Branch A & Investigations,REDFERN TRAVEL LTD,10000057,161.15,CONSOLIDATED BUSINESS TRAVEL WK 41,BD1 5HQ,ADMIN
FOOD STANDARDS AGENCY - Westminster,FOOD STANDARDS AGENCY - Westminster,2016-11-23,EXP - PURCHASE OF GOODS/SERVICES - RAIL TRAVEL,Food Crime Unit - Admin,REDFERN TRAVEL LTD,1011701444,161.1,CONSOLIDATED BUSINESS TRAVEL WEEK 46,BD1 5HQ,ADMIN
FOOD STANDARDS AGENCY - Westminster,FOOD STANDARDS AGENCY - Westminster,2016-11-17,EXP - PURCHASE OF GOODS/SERVICES - AIR TRAVEL,Comms Directors Office,REDFERN TRAVEL LTD,1011701397,160.99,CONSOLIDATED BUSINESS TRAVEL WK 45,BD1 5HQ,ADMIN
FOOD STANDARDS AGENCY - Westminster,FOOD STANDARDS AGENCY - Westminster,2016-11-15,EXP - PURCHASE OF GOODS/SERVICES - SUBSISTENCE,Area 5 South West England - Cluster 57,REDFERN TRAVEL LTD,10000057,160.6,CONSOLIDATED BUSINESS TRAVEL WK 41,BD1 5HQ,PROGRAMME
FOOD STANDARDS AGENCY - Westminster,FOOD STANDARDS AGENCY - Westminster,2016-11-17,EXP - PURCHASE OF GOODS/SERVICES - AIR TRAVEL,Food Incidents & Resilience - Prog,REDFERN TRAVEL LTD,1011701397,159.74,CONSOLIDATED BUSINESS TRAVEL WK 45,BD1 5HQ,PROGRAMME
FOOD STANDARDS AGENCY - Westminster,FOOD STANDARDS AGENCY - Westminster,2016-11-02,EXP - PURCHASE OF GOODS/SERVICES - SUBSISTENCE,Imports & Exports Team (Admin),REDFERN TRAVEL LTD,1011701252,159.2,CONSOLIDATED BUSINESS TRAVEL WK 43,BD1 5HQ,ADMIN
FOOD STANDARDS AGENCY - Westminster,FOOD STANDARDS AGENCY - Westminster,2016-11-15,EXP - PURCHASE OF GOODS/SERVICES -  FOREIGN AIR TRAVEL,Contaminants Policy & Strategy Unit,REDFERN TRAVEL LTD,10000057,159,CONSOLIDATED BUSINESS TRAVEL WK 41,BD1 5HQ,ADMIN
FOOD STANDARDS AGENCY - Westminster,FOOD STANDARDS AGENCY - Westminster,2016-11-23,EXP - PURCHASE OF GOODS/SERVICES - SUBSISTENCE,Internal Audit,REDFERN TRAVEL LTD,1011701444,157.2,CONSOLIDATED BUSINESS TRAVEL WEEK 46,BD1 5HQ,ADMIN
FOOD STANDARDS AGENCY - Westminster,FOOD STANDARDS AGENCY - Westminster,2016-11-02,EXP - PURCHASE OF GOODS/SERVICES - RAIL TRAVEL,Non Meat Field Ops,REDFERN TRAVEL LTD,1011701252,156,CONSOLIDATED BUSINESS TRAVEL WK 43,BD1 5HQ,PROGRAMME
FOOD STANDARDS AGENCY - Westminster,FOOD STANDARDS AGENCY - Westminster,2016-11-29,EXP - PURCHASE OF GOODS/SERVICES - AIR TRAVEL,Contaminants HoD,REDFERN TRAVEL LTD,1011701479,155.99,CONSOLIDATED BUSINESS TRAVEL WEEK 47,BD1 5HQ,ADMIN
FOOD STANDARDS AGENCY - Westminster,FOOD STANDARDS AGENCY - Westminster,2016-11-29,EXP - PURCHASE OF GOODS/SERVICES - SUBSISTENCE,Area 6 South East England - Cluster 65,REDFERN TRAVEL LTD,1011701479,153.9,CONSOLIDATED BUSINESS TRAVEL WEEK 47,BD1 5HQ,PROGRAMME
FOOD STANDARDS AGENCY - Westminster,FOOD STANDARDS AGENCY - Westminster,2016-11-23,EXP - PURCHASE OF GOODS/SERVICES - RAIL TRAVEL,Area 6 South East England - Cluster 64,REDFERN TRAVEL LTD,1011701444,153.3,CONSOLIDATED BUSINESS TRAVEL WEEK 46,BD1 5HQ,PROGRAMME
FOOD STANDARDS AGENCY - Westminster,FOOD STANDARDS AGENCY - Westminster,2016-11-29,EXP - PURCHASE OF GOODS/SERVICES - RAIL TRAVEL,Area 3 North West England - Cluster 31,REDFERN TRAVEL LTD,1011701479,153.1,CONSOLIDATED BUSINESS TRAVEL WEEK 47,BD1 5HQ,PROGRAMME
FOOD STANDARDS AGENCY - Westminster,FOOD STANDARDS AGENCY - Westminster,2016-11-15,EXP - PURCHASE OF GOODS/SERVICES - RAIL TRAVEL,Area 5 South West England - Cluster 54,REDFERN TRAVEL LTD,10000057,151.8,CONSOLIDATED BUSINESS TRAVEL WK 41,BD1 5HQ,PROGRAMME
FOOD STANDARDS AGENCY - Westminster,FOOD STANDARDS AGENCY - Westminster,2016-11-15,EXP - PURCHASE OF GOODS/SERVICES - SUBSISTENCE,Contaminants HoD,REDFERN TRAVEL LTD,10000057,151.2,CONSOLIDATED BUSINESS TRAVEL WK 41,BD1 5HQ,ADMIN
FOOD STANDARDS AGENCY - Westminster,FOOD STANDARDS AGENCY - Westminster,2016-11-23,EXP - PURCHASE OF GOODS/SERVICES - SUBSISTENCE,Imports & Exports Team (Admin),REDFERN TRAVEL LTD,1011701444,151.2,CONSOLIDATED BUSINESS TRAVEL WEEK 46,BD1 5HQ,ADMIN
FOOD STANDARDS AGENCY - Westminster,FOOD STANDARDS AGENCY - Westminster,2016-11-15,EXP - PURCHASE OF GOODS/SERVICES - RAIL TRAVEL,Chair & Deputy Chair,REDFERN TRAVEL LTD,10000057,150.2,CONSOLIDATED BUSINESS TRAVEL WK 41,BD1 5HQ,ADMIN
FOOD STANDARDS AGENCY - Westminster,FOOD STANDARDS AGENCY - Westminster,2016-11-17,EXP - PURCHASE OF GOODS/SERVICES - SUBSISTENCE,Area 5 South West England - Cluster 56,REDFERN TRAVEL LTD,1011701397,150.2,CONSOLIDATED BUSINESS TRAVEL WK 45,BD1 5HQ,PROGRAMME
FOOD STANDARDS AGENCY - Westminster,FOOD STANDARDS AGENCY - Westminster,2016-11-15,EXP - PURCHASE OF GOODS/SERVICES - AIR TRAVEL,Comms Directors Office,REDFERN TRAVEL LTD,10000057,149.98,CONSOLIDATED BUSINESS TRAVEL WK 41,BD1 5HQ,ADMIN
FOOD STANDARDS AGENCY - Westminster,FOOD STANDARDS AGENCY - Westminster,2016-11-02,EXP - PURCHASE OF GOODS/SERVICES - RAIL TRAVEL,Food Crime Unit - Admin,REDFERN TRAVEL LTD,1011701252,149.7,CONSOLIDATED BUSINESS TRAVEL WK 43,BD1 5HQ,ADMIN
FOOD STANDARDS AGENCY - Westminster,FOOD STANDARDS AGENCY - Westminster,2016-11-23,EXP - PURCHASE OF GOODS/SERVICES - AIR TRAVEL,Food Hygiene Policy Branch,REDFERN TRAVEL LTD,1011701444,149,CONSOLIDATED BUSINESS TRAVEL WEEK 46,BD1 5HQ,ADMIN
FOOD STANDARDS AGENCY - Westminster,FOOD STANDARDS AGENCY - Westminster,2016-11-29,EXP - PURCHASE OF GOODS/SERVICES - RAIL TRAVEL,Internal Audit,REDFERN TRAVEL LTD,1011701479,149,CONSOLIDATED BUSINESS TRAVEL WEEK 47,BD1 5HQ,ADMIN
FOOD STANDARDS AGENCY - Westminster,FOOD STANDARDS AGENCY - Westminster,2016-11-02,EXP - PURCHASE OF GOODS/SERVICES - SUBSISTENCE,IT Information & Knowledge Management,REDFERN TRAVEL LTD,1011701252,148.66,CONSOLIDATED BUSINESS TRAVEL WK 43,BD1 5HQ,ADMIN
FOOD STANDARDS AGENCY - Westminster,FOOD STANDARDS AGENCY - Westminster,2016-11-17,EXP - PURCHASE OF GOODS/SERVICES - RAIL TRAVEL,EU Regulatory Reform Branch,REDFERN TRAVEL LTD,1011701397,148.5,CONSOLIDATED BUSINESS TRAVEL WK 45,BD1 5HQ,ADMIN
FOOD STANDARDS AGENCY - Westminster,FOOD STANDARDS AGENCY - Westminster,2016-11-15,EXP - PURCHASE OF GOODS/SERVICES - SUBSISTENCE,Food Crime Unit - Admin,REDFERN TRAVEL LTD,10000057,147.2,CONSOLIDATED BUSINESS TRAVEL WK 41,BD1 5HQ,ADMIN
FOOD STANDARDS AGENCY - Westminster,FOOD STANDARDS AGENCY - Westminster,2016-11-29,EXP - PURCHASE OF GOODS/SERVICES - RAIL TRAVEL,Regulatory & International,REDFERN TRAVEL LTD,1011701479,145.8,CONSOLIDATED BUSINESS TRAVEL WEEK 47,BD1 5HQ,ADMIN
FOOD STANDARDS AGENCY - Westminster,FOOD STANDARDS AGENCY - Westminster,2016-11-29,EXP - PURCHASE OF GOODS/SERVICES - RAIL TRAVEL,Area 4 North East England - Cluster 44,REDFERN TRAVEL LTD,1011701479,144.8,CONSOLIDATED BUSINESS TRAVEL WEEK 47,BD1 5HQ,PROGRAMME
FOOD STANDARDS AGENCY - Westminster,FOOD STANDARDS AGENCY - Westminster,2016-11-17,EXP - PURCHASE OF GOODS/SERVICES - SUBSISTENCE,Food Crime Unit - Admin,REDFERN TRAVEL LTD,1011701397,143.2,CONSOLIDATED BUSINESS TRAVEL WK 45,BD1 5HQ,ADMIN
FOOD STANDARDS AGENCY - Westminster,FOOD STANDARDS AGENCY - Westminster,2016-11-17,EXP - PURCHASE OF GOODS/SERVICES - SUBSISTENCE,Area 6 South East England - Cluster 64,REDFERN TRAVEL LTD,1011701397,141.58,CONSOLIDATED BUSINESS TRAVEL WK 45,BD1 5HQ,PROGRAMME
FOOD STANDARDS AGENCY - Westminster,FOOD STANDARDS AGENCY - Westminster,2016-11-23,EXP - PURCHASE OF GOODS/SERVICES - AIR TRAVEL,Contaminants HoD,REDFERN TRAVEL LTD,1011701444,140.05,CONSOLIDATED BUSINESS TRAVEL WEEK 46,BD1 5HQ,ADMIN
FOOD STANDARDS AGENCY - Westminster,FOOD STANDARDS AGENCY - Westminster,2016-11-17,EXP - PURCHASE OF GOODS/SERVICES - AIR TRAVEL,Imports & Exports Team (Admin),REDFERN TRAVEL LTD,1011701397,139.46,CONSOLIDATED BUSINESS TRAVEL WK 45,BD1 5HQ,ADMIN
FOOD STANDARDS AGENCY - Westminster,FOOD STANDARDS AGENCY - Westminster,2016-11-17,EXP - PURCHASE OF GOODS/SERVICES -  FOREIGN AIR TRAVEL,Additives,REDFERN TRAVEL LTD,1011701397,139,CONSOLIDATED BUSINESS TRAVEL WK 45,BD1 5HQ,ADMIN
FOOD STANDARDS AGENCY - Westminster,FOOD STANDARDS AGENCY - Westminster,2016-11-15,EXP - PURCHASE OF GOODS/SERVICES - TAXI SERVICES,Operations Assurance ,REDFERN TRAVEL LTD,10000057,138.41,CONSOLIDATED BUSINESS TRAVEL WK 41,BD1 5HQ,PROGRAMME
FOOD STANDARDS AGENCY - Westminster,FOOD STANDARDS AGENCY - Westminster,2016-11-15,EXP - PURCHASE OF GOODS/SERVICES - RAIL TRAVEL,Area 5 South West England - Cluster 57,REDFERN TRAVEL LTD,10000057,138.4,CONSOLIDATED BUSINESS TRAVEL WK 41,BD1 5HQ,PROGRAMME
FOOD STANDARDS AGENCY - Westminster,FOOD STANDARDS AGENCY - Westminster,2016-11-02,EXP - PURCHASE OF GOODS/SERVICES - SUBSISTENCE,Food Crime Unit - Prog,REDFERN TRAVEL LTD,1011701252,137.2,CONSOLIDATED BUSINESS TRAVEL WK 43,BD1 5HQ,PROGRAMME
FOOD STANDARDS AGENCY - Westminster,FOOD STANDARDS AGENCY - Westminster,2016-11-15,EXP - PURCHASE OF GOODS/SERVICES - RAIL TRAVEL,Imports & Exports Team (Admin),REDFERN TRAVEL LTD,10000057,136,CONSOLIDATED BUSINESS TRAVEL WK 41,BD1 5HQ,ADMIN
FOOD STANDARDS AGENCY - Westminster,FOOD STANDARDS AGENCY - Westminster,2016-11-23,EXP - PURCHASE OF GOODS/SERVICES - SUBSISTENCE,Food Crime Unit - Prog,REDFERN TRAVEL LTD,1011701444,135.2,CONSOLIDATED BUSINESS TRAVEL WEEK 46,BD1 5HQ,PROGRAMME
FOOD STANDARDS AGENCY - Westminster,FOOD STANDARDS AGENCY - Westminster,2016-11-29,EXP - PURCHASE OF GOODS/SERVICES - FOREIGN SUBSISTENCE,Imports & Exports Team (Admin),REDFERN TRAVEL LTD,1011701479,134.92,CONSOLIDATED BUSINESS TRAVEL WEEK 47,BD1 5HQ,ADMIN
FOOD STANDARDS AGENCY - Westminster,FOOD STANDARDS AGENCY - Westminster,2016-11-17,EXP - PURCHASE OF GOODS/SERVICES - SUBSISTENCE,Comms Directors Office,REDFERN TRAVEL LTD,1011701397,134.2,CONSOLIDATED BUSINESS TRAVEL WK 45,BD1 5HQ,ADMIN
FOOD STANDARDS AGENCY - Westminster,FOOD STANDARDS AGENCY - Westminster,2016-11-17,EXP - PURCHASE OF GOODS/SERVICES - SUBSISTENCE,Area 5 South West England - Cluster 57,REDFERN TRAVEL LTD,1011701397,132.6,CONSOLIDATED BUSINESS TRAVEL WK 45,BD1 5HQ,PROGRAMME
FOOD STANDARDS AGENCY - Westminster,FOOD STANDARDS AGENCY - Westminster,2016-11-23,EXP - PURCHASE OF GOODS/SERVICES - SUBSISTENCE,Finance Director & Branch,REDFERN TRAVEL LTD,1011701444,131.95,CONSOLIDATED BUSINESS TRAVEL WEEK 46,BD1 5HQ,ADMIN
FOOD STANDARDS AGENCY - Westminster,FOOD STANDARDS AGENCY - Westminster,2016-11-02,EXP - PURCHASE OF GOODS/SERVICES - SUBSISTENCE,Non Meat Field Ops,REDFERN TRAVEL LTD,1011701252,131.8,CONSOLIDATED BUSINESS TRAVEL WK 43,BD1 5HQ,PROGRAMME
FOOD STANDARDS AGENCY - Westminster,FOOD STANDARDS AGENCY - Westminster,2016-11-29,EXP - PURCHASE OF GOODS/SERVICES - FOREIGN SUBSISTENCE,Additives,REDFERN TRAVEL LTD,1011701479,131.67,CONSOLIDATED BUSINESS TRAVEL WEEK 47,BD1 5HQ,ADMIN
FOOD STANDARDS AGENCY - Westminster,FOOD STANDARDS AGENCY - Westminster,2016-11-15,EXP - PURCHASE OF GOODS/SERVICES - RAIL TRAVEL,Animal Feed Branch,REDFERN TRAVEL LTD,10000057,131.55,CONSOLIDATED BUSINESS TRAVEL WK 41,BD1 5HQ,ADMIN
FOOD STANDARDS AGENCY - Westminster,FOOD STANDARDS AGENCY - Westminster,2016-11-15,EXP - PURCHASE OF GOODS/SERVICES - RAIL TRAVEL,Area 2 Wales - Cluster 23,REDFERN TRAVEL LTD,10000057,131.5,CONSOLIDATED BUSINESS TRAVEL WK 41,BD1 5HQ,PROGRAMME
FOOD STANDARDS AGENCY - Westminster,FOOD STANDARDS AGENCY - Westminster,2016-11-29,EXP - PURCHASE OF GOODS/SERVICES - RAIL TRAVEL,Non Meat Field Ops,REDFERN TRAVEL LTD,1011701479,130.4,CONSOLIDATED BUSINESS TRAVEL WEEK 47,BD1 5HQ,PROGRAMME
FOOD STANDARDS AGENCY - Westminster,FOOD STANDARDS AGENCY - Westminster,2016-11-29,EXP - PURCHASE OF GOODS/SERVICES - RAIL TRAVEL,Legal Branch A & Investigations,REDFERN TRAVEL LTD,1011701479,129.9,CONSOLIDATED BUSINESS TRAVEL WEEK 47,BD1 5HQ,ADMIN
FOOD STANDARDS AGENCY - Westminster,FOOD STANDARDS AGENCY - Westminster,2016-11-02,EXP - PURCHASE OF GOODS/SERVICES - SUBSISTENCE,Planning and Performance,REDFERN TRAVEL LTD,1011701252,129.2,CONSOLIDATED BUSINESS TRAVEL WK 43,BD1 5HQ,ADMIN
FOOD STANDARDS AGENCY - Westminster,FOOD STANDARDS AGENCY - Westminster,2016-11-15,EXP - PURCHASE OF GOODS/SERVICES -  FOREIGN AIR TRAVEL,Chair & Deputy Chair,REDFERN TRAVEL LTD,10000057,129,CONSOLIDATED BUSINESS TRAVEL WK 41,BD1 5HQ,ADMIN
FOOD STANDARDS AGENCY - Westminster,FOOD STANDARDS AGENCY - Westminster,2016-11-23,EXP - PURCHASE OF GOODS/SERVICES - SUBSISTENCE,Area 4 North East England - Cluster 42,REDFERN TRAVEL LTD,1011701444,128.82,CONSOLIDATED BUSINESS TRAVEL WEEK 46,BD1 5HQ,PROGRAMME
FOOD STANDARDS AGENCY - Westminster,FOOD STANDARDS AGENCY - Westminster,2016-11-23,EXP - PURCHASE OF GOODS/SERVICES - SUBSISTENCE,Area 6 South East England - Cluster 62,REDFERN TRAVEL LTD,1011701444,128.32,CONSOLIDATED BUSINESS TRAVEL WEEK 46,BD1 5HQ,PROGRAMME
FOOD STANDARDS AGENCY - Westminster,FOOD STANDARDS AGENCY - Westminster,2016-11-29,EXP - PURCHASE OF GOODS/SERVICES - SUBSISTENCE,Area 5 South West England - Cluster 55,REDFERN TRAVEL LTD,1011701479,128.27,CONSOLIDATED BUSINESS TRAVEL WEEK 47,BD1 5HQ,PROGRAMME
FOOD STANDARDS AGENCY - Westminster,FOOD STANDARDS AGENCY - Westminster,2016-11-02,EXP - PURCHASE OF GOODS/SERVICES - SUBSISTENCE,IT Service Delivery,REDFERN TRAVEL LTD,1011701252,125.6,CONSOLIDATED BUSINESS TRAVEL WK 43,BD1 5HQ,ADMIN
FOOD STANDARDS AGENCY - Westminster,FOOD STANDARDS AGENCY - Westminster,2016-11-02,EXP - PURCHASE OF GOODS/SERVICES - SUBSISTENCE,Organisational Development,REDFERN TRAVEL LTD,1011701252,125.3,CONSOLIDATED BUSINESS TRAVEL WK 43,BD1 5HQ,ADMIN
FOOD STANDARDS AGENCY - Westminster,FOOD STANDARDS AGENCY - Westminster,2016-11-02,EXP - PURCHASE OF GOODS/SERVICES - RAIL TRAVEL,Internal Audit,REDFERN TRAVEL LTD,1011701252,124.3,CONSOLIDATED BUSINESS TRAVEL WK 43,BD1 5HQ,ADMIN
FOOD STANDARDS AGENCY - Westminster,FOOD STANDARDS AGENCY - Westminster,2016-11-15,EXP - PURCHASE OF GOODS/SERVICES -  FOREIGN AIR TRAVEL,Animal Feed Branch,REDFERN TRAVEL LTD,10000057,124,CONSOLIDATED BUSINESS TRAVEL WK 41,BD1 5HQ,ADMIN
FOOD STANDARDS AGENCY - Westminster,FOOD STANDARDS AGENCY - Westminster,2016-11-02,EXP - PURCHASE OF GOODS/SERVICES - RAIL TRAVEL,Legal Branch A & Investigations,REDFERN TRAVEL LTD,1011701252,123.3,CONSOLIDATED BUSINESS TRAVEL WK 43,BD1 5HQ,ADMIN
FOOD STANDARDS AGENCY - Westminster,FOOD STANDARDS AGENCY - Westminster,2016-11-02,EXP - PURCHASE OF GOODS/SERVICES - SUBSISTENCE,Chief Executive & Private Office,REDFERN TRAVEL LTD,1011701252,121.8,CONSOLIDATED BUSINESS TRAVEL WK 43,BD1 5HQ,ADMIN
FOOD STANDARDS AGENCY - Westminster,FOOD STANDARDS AGENCY - Westminster,2016-11-17,EXP - PURCHASE OF GOODS/SERVICES - RAIL TRAVEL,Chief Scientist,REDFERN TRAVEL LTD,1011701397,121.1,CONSOLIDATED BUSINESS TRAVEL WK 45,BD1 5HQ,ADMIN
FOOD STANDARDS AGENCY - Westminster,FOOD STANDARDS AGENCY - Westminster,2016-11-23,EXP - PURCHASE OF GOODS/SERVICES - SUBSISTENCE,Non Meat Field Ops,REDFERN TRAVEL LTD,1011701444,120.82,CONSOLIDATED BUSINESS TRAVEL WEEK 46,BD1 5HQ,PROGRAMME
FOOD STANDARDS AGENCY - Westminster,FOOD STANDARDS AGENCY - Westminster,2016-11-17,EXP - PURCHASE OF GOODS/SERVICES - FOREIGN SUBSISTENCE,Scientific Methods & Laboratory Policy,REDFERN TRAVEL LTD,1011701397,120.1,CONSOLIDATED BUSINESS TRAVEL WK 45,BD1 5HQ,ADMIN
FOOD STANDARDS AGENCY - Westminster,FOOD STANDARDS AGENCY - Westminster,2016-11-15,EXP - PURCHASE OF GOODS/SERVICES - RAIL TRAVEL,Chemical Risk Assessment Unit,REDFERN TRAVEL LTD,10000057,119.1,CONSOLIDATED BUSINESS TRAVEL WK 41,BD1 5HQ,ADMIN
FOOD STANDARDS AGENCY - Westminster,FOOD STANDARDS AGENCY - Westminster,2016-11-17,EXP - PURCHASE OF GOODS/SERVICES - RAIL TRAVEL,Organisational Development,REDFERN TRAVEL LTD,1011701397,118,CONSOLIDATED BUSINESS TRAVEL WK 45,BD1 5HQ,ADMIN
FOOD STANDARDS AGENCY - Westminster,FOOD STANDARDS AGENCY - Westminster,2016-11-02,EXP - PURCHASE OF GOODS/SERVICES - RAIL TRAVEL,Area 5 South West England - Cluster 53,REDFERN TRAVEL LTD,1011701252,117.1,CONSOLIDATED BUSINESS TRAVEL WK 43,BD1 5HQ,PROGRAMME
FOOD STANDARDS AGENCY - Westminster,FOOD STANDARDS AGENCY - Westminster,2016-11-23,EXP - PURCHASE OF GOODS/SERVICES - RAIL TRAVEL,Area 4 North East England - Cluster 44,REDFERN TRAVEL LTD,1011701444,116.1,CONSOLIDATED BUSINESS TRAVEL WEEK 46,BD1 5HQ,PROGRAMME
FOOD STANDARDS AGENCY - Westminster,FOOD STANDARDS AGENCY - Westminster,2016-11-15,EXP - PURCHASE OF GOODS/SERVICES - RAIL TRAVEL,Area 3 North West England - Cluster 34,REDFERN TRAVEL LTD,10000057,115.7,CONSOLIDATED BUSINESS TRAVEL WK 41,BD1 5HQ,PROGRAMME
FOOD STANDARDS AGENCY - Westminster,FOOD STANDARDS AGENCY - Westminster,2016-11-02,EXP - PURCHASE OF GOODS/SERVICES - SUBSISTENCE,Area 2 Wales - Cluster 23,REDFERN TRAVEL LTD,1011701252,115.2,CONSOLIDATED BUSINESS TRAVEL WK 43,BD1 5HQ,PROGRAMME
FOOD STANDARDS AGENCY - Westminster,FOOD STANDARDS AGENCY - Westminster,2016-11-23,EXP - PURCHASE OF GOODS/SERVICES - RAIL TRAVEL,Area 5 South West England - Cluster 54,REDFERN TRAVEL LTD,1011701444,114.8,CONSOLIDATED BUSINESS TRAVEL WEEK 46,BD1 5HQ,PROGRAMME
FOOD STANDARDS AGENCY - Westminster,FOOD STANDARDS AGENCY - Westminster,2016-11-02,EXP - PURCHASE OF GOODS/SERVICES - RAIL TRAVEL,Area 4 North East England - Cluster 41,REDFERN TRAVEL LTD,1011701252,114.6,CONSOLIDATED BUSINESS TRAVEL WK 43,BD1 5HQ,PROGRAMME
FOOD STANDARDS AGENCY - Westminster,FOOD STANDARDS AGENCY - Westminster,2016-11-29,EXP - PURCHASE OF GOODS/SERVICES - SUBSISTENCE,Area 5 South West England - Cluster 56,REDFERN TRAVEL LTD,1011701479,111.72,CONSOLIDATED BUSINESS TRAVEL WEEK 47,BD1 5HQ,PROGRAMME
FOOD STANDARDS AGENCY - Westminster,FOOD STANDARDS AGENCY - Westminster,2016-11-23,EXP - AMORTISATION - INTANGIBLE ASSETS,IT Strategy,CAPITA SECURE INFORMATION SOLUTIONS LTD,1011701448,110.13,RSA TOKEN REPLACEMENT,SN14 0TW,CAPITAL
FOOD STANDARDS AGENCY - Westminster,FOOD STANDARDS AGENCY - Westminster,2016-11-23,EXP - PURCHASE OF GOODS/SERVICES - SUBSISTENCE,Contaminants HoD,REDFERN TRAVEL LTD,1011701444,110.03,CONSOLIDATED BUSINESS TRAVEL WEEK 46,BD1 5HQ,ADMIN
FOOD STANDARDS AGENCY - Westminster,FOOD STANDARDS AGENCY - Westminster,2016-11-29,EXP - PURCHASE OF GOODS/SERVICES - SUBSISTENCE,Finance Director & Branch,REDFERN TRAVEL LTD,1011701479,109.83,CONSOLIDATED BUSINESS TRAVEL WEEK 47,BD1 5HQ,ADMIN
FOOD STANDARDS AGENCY - Westminster,FOOD STANDARDS AGENCY - Westminster,2016-11-15,EXP - PURCHASE OF GOODS/SERVICES - SUBSISTENCE,Area 2 Wales - Cluster 23,REDFERN TRAVEL LTD,10000057,109.6,CONSOLIDATED BUSINESS TRAVEL WK 41,BD1 5HQ,PROGRAMME
FOOD STANDARDS AGENCY - Westminster,FOOD STANDARDS AGENCY - Westminster,2016-11-15,EXP - PURCHASE OF GOODS/SERVICES - SUBSISTENCE,Regulatory & International,REDFERN TRAVEL LTD,10000057,109.6,CONSOLIDATED BUSINESS TRAVEL WK 41,BD1 5HQ,ADMIN
FOOD STANDARDS AGENCY - Westminster,FOOD STANDARDS AGENCY - Westminster,2016-11-17,EXP - PURCHASE OF GOODS/SERVICES - SUBSISTENCE,Food Incidents & Resilience - Prog,REDFERN TRAVEL LTD,1011701397,109.6,CONSOLIDATED BUSINESS TRAVEL WK 45,BD1 5HQ,PROGRAMME
FOOD STANDARDS AGENCY - Westminster,FOOD STANDARDS AGENCY - Westminster,2016-11-23,EXP - PURCHASE OF GOODS/SERVICES - RAIL TRAVEL,Animal Feed Branch,REDFERN TRAVEL LTD,1011701444,109.5,CONSOLIDATED BUSINESS TRAVEL WEEK 46,BD1 5HQ,ADMIN
FOOD STANDARDS AGENCY - Westminster,FOOD STANDARDS AGENCY - Westminster,2016-11-23,EXP - PURCHASE OF GOODS/SERVICES - SUBSISTENCE,Animal Feed     ,REDFERN TRAVEL LTD,1011701444,109.23,CONSOLIDATED BUSINESS TRAVEL WEEK 46,BD1 5HQ,ADMIN
FOOD STANDARDS AGENCY - Westminster,FOOD STANDARDS AGENCY - Westminster,2016-11-29,EXP - PURCHASE OF GOODS/SERVICES - SUBSISTENCE,Area 3 North West England - Cluster 32,REDFERN TRAVEL LTD,1011701479,109.23,CONSOLIDATED BUSINESS TRAVEL WEEK 47,BD1 5HQ,PROGRAMME
FOOD STANDARDS AGENCY - Westminster,FOOD STANDARDS AGENCY - Westminster,2016-11-29,EXP - PURCHASE OF GOODS/SERVICES - SUBSISTENCE,Food Incidents & Resilience - Prog,REDFERN TRAVEL LTD,1011701479,109.23,CONSOLIDATED BUSINESS TRAVEL WEEK 47,BD1 5HQ,PROGRAMME
FOOD STANDARDS AGENCY - Westminster,FOOD STANDARDS AGENCY - Westminster,2016-11-17,EXP - PURCHASE OF GOODS/SERVICES - SUBSISTENCE,Area 2 Wales - Cluster 23,REDFERN TRAVEL LTD,1011701397,109.2,CONSOLIDATED BUSINESS TRAVEL WK 45,BD1 5HQ,PROGRAMME
FOOD STANDARDS AGENCY - Westminster,FOOD STANDARDS AGENCY - Westminster,2016-11-17,EXP - PURCHASE OF GOODS/SERVICES - RAIL TRAVEL,Area 4 North East England - Cluster 44,REDFERN TRAVEL LTD,1011701397,108.8,CONSOLIDATED BUSINESS TRAVEL WK 45,BD1 5HQ,PROGRAMME
FOOD STANDARDS AGENCY - Westminster,FOOD STANDARDS AGENCY - Westminster,2016-11-02,EXP - PURCHASE OF GOODS/SERVICES - RAIL TRAVEL,Area 3 North West England - Cluster 35,REDFERN TRAVEL LTD,1011701252,108.7,CONSOLIDATED BUSINESS TRAVEL WK 43,BD1 5HQ,PROGRAMME
FOOD STANDARDS AGENCY - Westminster,FOOD STANDARDS AGENCY - Westminster,2016-11-15,EXP - PURCHASE OF GOODS/SERVICES - SUBSISTENCE,Chemical Risk Assessment Unit,REDFERN TRAVEL LTD,10000057,108.6,CONSOLIDATED BUSINESS TRAVEL WK 41,BD1 5HQ,ADMIN
FOOD STANDARDS AGENCY - Westminster,FOOD STANDARDS AGENCY - Westminster,2016-11-02,EXP - PURCHASE OF GOODS/SERVICES - RAIL TRAVEL,Area 3 North West England - Cluster 31,REDFERN TRAVEL LTD,1011701252,106.35,CONSOLIDATED BUSINESS TRAVEL WK 43,BD1 5HQ,PROGRAMME
FOOD STANDARDS AGENCY - Westminster,FOOD STANDARDS AGENCY - Westminster,2016-11-23,EXP - PURCHASE OF GOODS/SERVICES - SUBSISTENCE,Area 3 North West England - Cluster 34,REDFERN TRAVEL LTD,1011701444,105.85,CONSOLIDATED BUSINESS TRAVEL WEEK 46,BD1 5HQ,PROGRAMME
FOOD STANDARDS AGENCY - Westminster,FOOD STANDARDS AGENCY - Westminster,2016-11-29,EXP - PURCHASE OF GOODS/SERVICES - RAIL TRAVEL,Security & Estates,REDFERN TRAVEL LTD,1011701479,105.5,CONSOLIDATED BUSINESS TRAVEL WEEK 47,BD1 5HQ,ADMIN
FOOD STANDARDS AGENCY - Westminster,FOOD STANDARDS AGENCY - Westminster,2016-11-23,EXP - PURCHASE OF GOODS/SERVICES - RAIL TRAVEL,Contaminants HoD,REDFERN TRAVEL LTD,1011701444,102.3,CONSOLIDATED BUSINESS TRAVEL WEEK 46,BD1 5HQ,ADMIN
FOOD STANDARDS AGENCY - Westminster,FOOD STANDARDS AGENCY - Westminster,2016-11-15,EXP - PURCHASE OF GOODS/SERVICES - SUBSISTENCE,EU Regulatory Reform Branch,REDFERN TRAVEL LTD,10000057,99.6,CONSOLIDATED BUSINESS TRAVEL WK 41,BD1 5HQ,ADMIN
FOOD STANDARDS AGENCY - Westminster,FOOD STANDARDS AGENCY - Westminster,2016-11-29,EXP - PURCHASE OF GOODS/SERVICES - SUBSISTENCE,Area 4 North East England - Cluster 41,REDFERN TRAVEL LTD,1011701479,98.82,CONSOLIDATED BUSINESS TRAVEL WEEK 47,BD1 5HQ,PROGRAMME
FOOD STANDARDS AGENCY - Westminster,FOOD STANDARDS AGENCY - Westminster,2016-11-15,EXP - PURCHASE OF GOODS/SERVICES - RAIL TRAVEL,Procurement,REDFERN TRAVEL LTD,10000057,98,CONSOLIDATED BUSINESS TRAVEL WK 41,BD1 5HQ,ADMIN
FOOD STANDARDS AGENCY - Westminster,FOOD STANDARDS AGENCY - Westminster,2016-11-23,EXP - PURCHASE OF GOODS/SERVICES -  FOREIGN AIR TRAVEL,Regulatory Delivery ,REDFERN TRAVEL LTD,1011701444,98,CONSOLIDATED BUSINESS TRAVEL WEEK 46,BD1 5HQ,ADMIN
FOOD STANDARDS AGENCY - Westminster,FOOD STANDARDS AGENCY - Westminster,2016-11-29,EXP - PURCHASE OF GOODS/SERVICES - SUBSISTENCE,Chief Executive & Private Office,REDFERN TRAVEL LTD,1011701479,96.6,CONSOLIDATED BUSINESS TRAVEL WEEK 47,BD1 5HQ,ADMIN
FOOD STANDARDS AGENCY - Westminster,FOOD STANDARDS AGENCY - Westminster,2016-11-15,EXP - PURCHASE OF GOODS/SERVICES - RAIL TRAVEL,Area 6 South East England - Cluster 61,REDFERN TRAVEL LTD,10000057,96,CONSOLIDATED BUSINESS TRAVEL WK 41,BD1 5HQ,PROGRAMME
FOOD STANDARDS AGENCY - Westminster,FOOD STANDARDS AGENCY - Westminster,2016-11-23,EXP - PURCHASE OF GOODS/SERVICES - SUBSISTENCE,Corporate Support Unit,REDFERN TRAVEL LTD,1011701444,94.6,CONSOLIDATED BUSINESS TRAVEL WEEK 46,BD1 5HQ,ADMIN
FOOD STANDARDS AGENCY - Westminster,FOOD STANDARDS AGENCY - Westminster,2016-11-23,EXP - PURCHASE OF GOODS/SERVICES - RAIL TRAVEL,Area 6 South East England - Cluster 66,REDFERN TRAVEL LTD,1011701444,93.6,CONSOLIDATED BUSINESS TRAVEL WEEK 46,BD1 5HQ,PROGRAMME
FOOD STANDARDS AGENCY - Westminster,FOOD STANDARDS AGENCY - Westminster,2016-11-17,EXP - PURCHASE OF GOODS/SERVICES - RAIL TRAVEL,Comms Directors Office,REDFERN TRAVEL LTD,1011701397,92.4,CONSOLIDATED BUSINESS TRAVEL WK 45,BD1 5HQ,ADMIN
FOOD STANDARDS AGENCY - Westminster,FOOD STANDARDS AGENCY - Westminster,2016-11-29,EXP - PURCHASE OF GOODS/SERVICES - RAIL TRAVEL,Area 2 Wales - Cluster 23,REDFERN TRAVEL LTD,1011701479,90.6,CONSOLIDATED BUSINESS TRAVEL WEEK 47,BD1 5HQ,PROGRAMME
FOOD STANDARDS AGENCY - Westminster,FOOD STANDARDS AGENCY - Westminster,2016-11-02,EXP - PURCHASE OF GOODS/SERVICES - RAIL TRAVEL,Area 3 North West England - Cluster 36,REDFERN TRAVEL LTD,1011701252,90.2,CONSOLIDATED BUSINESS TRAVEL WK 43,BD1 5HQ,PROGRAMME
FOOD STANDARDS AGENCY - Westminster,FOOD STANDARDS AGENCY - Westminster,2016-11-02,EXP - PURCHASE OF GOODS/SERVICES -  FOREIGN AIR TRAVEL,Imports & Exports Team (Admin),REDFERN TRAVEL LTD,1011701252,89,CONSOLIDATED BUSINESS TRAVEL WK 43,BD1 5HQ,ADMIN
FOOD STANDARDS AGENCY - Westminster,FOOD STANDARDS AGENCY - Westminster,2016-11-15,EXP - PURCHASE OF GOODS/SERVICES - RAIL TRAVEL,Non Meat Field Ops,REDFERN TRAVEL LTD,10000057,88.9,CONSOLIDATED BUSINESS TRAVEL WK 41,BD1 5HQ,PROGRAMME
FOOD STANDARDS AGENCY - Westminster,FOOD STANDARDS AGENCY - Westminster,2016-11-15,EXP - PURCHASE OF GOODS/SERVICES -  FOREIGN AIR TRAVEL,Allergens,REDFERN TRAVEL LTD,10000057,88.16,CONSOLIDATED BUSINESS TRAVEL WK 41,BD1 5HQ,ADMIN
FOOD STANDARDS AGENCY - Westminster,FOOD STANDARDS AGENCY - Westminster,2016-11-23,EXP - PURCHASE OF GOODS/SERVICES - SUBSISTENCE,Area 4 North East England - Cluster 41,REDFERN TRAVEL LTD,1011701444,87.6,CONSOLIDATED BUSINESS TRAVEL WEEK 46,BD1 5HQ,PROGRAMME
FOOD STANDARDS AGENCY - Westminster,FOOD STANDARDS AGENCY - Westminster,2016-11-15,EXP - PURCHASE OF GOODS/SERVICES - RAIL TRAVEL,Food Hygiene Policy Branch,REDFERN TRAVEL LTD,10000057,87,CONSOLIDATED BUSINESS TRAVEL WK 41,BD1 5HQ,ADMIN
FOOD STANDARDS AGENCY - Westminster,FOOD STANDARDS AGENCY - Westminster,2016-11-17,EXP - PURCHASE OF GOODS/SERVICES - RAIL TRAVEL,Food Incidents & Resilience - Prog,REDFERN TRAVEL LTD,1011701397,86.5,CONSOLIDATED BUSINESS TRAVEL WK 45,BD1 5HQ,PROGRAMME
FOOD STANDARDS AGENCY - Westminster,FOOD STANDARDS AGENCY - Westminster,2016-11-15,EXP - PURCHASE OF GOODS/SERVICES - RAIL TRAVEL,Food Incidents & Resilience - Prog,REDFERN TRAVEL LTD,10000057,86,CONSOLIDATED BUSINESS TRAVEL WK 41,BD1 5HQ,PROGRAMME
FOOD STANDARDS AGENCY - Westminster,FOOD STANDARDS AGENCY - Westminster,2016-11-02,EXP - PURCHASE OF GOODS/SERVICES - SUBSISTENCE,Area 4 North East England - Cluster 41,REDFERN TRAVEL LTD,1011701252,85.6,CONSOLIDATED BUSINESS TRAVEL WK 43,BD1 5HQ,PROGRAMME
FOOD STANDARDS AGENCY - Westminster,FOOD STANDARDS AGENCY - Westminster,2016-11-17,EXP - PURCHASE OF GOODS/SERVICES -  FOREIGN AIR TRAVEL,Regulatory & International,REDFERN TRAVEL LTD,1011701397,84.81,CONSOLIDATED BUSINESS TRAVEL WK 45,BD1 5HQ,ADMIN
FOOD STANDARDS AGENCY - Westminster,FOOD STANDARDS AGENCY - Westminster,2016-11-02,EXP - PURCHASE OF GOODS/SERVICES - RAIL TRAVEL,Area 4 North East England - Cluster 48,REDFERN TRAVEL LTD,1011701252,82.8,CONSOLIDATED BUSINESS TRAVEL WK 43,BD1 5HQ,PROGRAMME
FOOD STANDARDS AGENCY - Westminster,FOOD STANDARDS AGENCY - Westminster,2016-11-29,EXP - PURCHASE OF GOODS/SERVICES - RAIL TRAVEL,Resilience - Admin,REDFERN TRAVEL LTD,1011701479,82.15,CONSOLIDATED BUSINESS TRAVEL WEEK 47,BD1 5HQ,ADMIN
FOOD STANDARDS AGENCY - Westminster,FOOD STANDARDS AGENCY - Westminster,2016-11-29,EXP - PURCHASE OF GOODS/SERVICES - RAIL TRAVEL,Chemical Risk Assessment Unit,REDFERN TRAVEL LTD,1011701479,82,CONSOLIDATED BUSINESS TRAVEL WEEK 47,BD1 5HQ,ADMIN
FOOD STANDARDS AGENCY - Westminster,FOOD STANDARDS AGENCY - Westminster,2016-11-29,EXP - PURCHASE OF GOODS/SERVICES - RAIL TRAVEL,Area 5 South West England - Cluster 57,REDFERN TRAVEL LTD,1011701479,81.3,CONSOLIDATED BUSINESS TRAVEL WEEK 47,BD1 5HQ,PROGRAMME
FOOD STANDARDS AGENCY - Westminster,FOOD STANDARDS AGENCY - Westminster,2016-11-02,EXP - PURCHASE OF GOODS/SERVICES - RAIL TRAVEL,Area 4 North East England - Cluster 46,REDFERN TRAVEL LTD,1011701252,80.7,CONSOLIDATED BUSINESS TRAVEL WK 43,BD1 5HQ,PROGRAMME
FOOD STANDARDS AGENCY - Westminster,FOOD STANDARDS AGENCY - Westminster,2016-11-23,EXP - PURCHASE OF GOODS/SERVICES - RAIL TRAVEL,Area 6 South East England - Cluster 62,REDFERN TRAVEL LTD,1011701444,80.2,CONSOLIDATED BUSINESS TRAVEL WEEK 46,BD1 5HQ,PROGRAMME
FOOD STANDARDS AGENCY - Westminster,FOOD STANDARDS AGENCY - Westminster,2016-11-02,EXP - PURCHASE OF GOODS/SERVICES - RAIL TRAVEL,Area 6 South East England - Cluster 62,REDFERN TRAVEL LTD,1011701252,79.5,CONSOLIDATED BUSINESS TRAVEL WK 43,BD1 5HQ,PROGRAMME
FOOD STANDARDS AGENCY - Westminster,FOOD STANDARDS AGENCY - Westminster,2016-11-17,EXP - PURCHASE OF GOODS/SERVICES - RAIL TRAVEL,Area 6 South East England - Cluster 61,REDFERN TRAVEL LTD,1011701397,79.5,CONSOLIDATED BUSINESS TRAVEL WK 45,BD1 5HQ,PROGRAMME
FOOD STANDARDS AGENCY - Westminster,FOOD STANDARDS AGENCY - Westminster,2016-11-15,EXP - PURCHASE OF GOODS/SERVICES - RAIL TRAVEL,Contaminants Policy & Strategy Unit,REDFERN TRAVEL LTD,10000057,77.2,CONSOLIDATED BUSINESS TRAVEL WK 41,BD1 5HQ,ADMIN
FOOD STANDARDS AGENCY - Westminster,FOOD STANDARDS AGENCY - Westminster,2016-11-17,EXP - PURCHASE OF GOODS/SERVICES - RAIL TRAVEL,Area 6 South East England - Cluster 65,REDFERN TRAVEL LTD,1011701397,77.1,CONSOLIDATED BUSINESS TRAVEL WK 45,BD1 5HQ,PROGRAMME
FOOD STANDARDS AGENCY - Westminster,FOOD STANDARDS AGENCY - Westminster,2016-11-17,EXP - PURCHASE OF GOODS/SERVICES - RAIL TRAVEL,Chemical Risk Assessment Unit,REDFERN TRAVEL LTD,1011701397,76.9,CONSOLIDATED BUSINESS TRAVEL WK 45,BD1 5HQ,ADMIN
FOOD STANDARDS AGENCY - Westminster,FOOD STANDARDS AGENCY - Westminster,2016-11-23,EXP - AMORTISATION - INTANGIBLE ASSETS,IT Strategy,CAPITA SECURE INFORMATION SOLUTIONS LTD,1011701448,74.84,CITRIX IMPLEMENTATION(PROJECT & PCN),SN14 0TW,CAPITAL
FOOD STANDARDS AGENCY - Westminster,FOOD STANDARDS AGENCY - Westminster,2016-11-15,EXP - PURCHASE OF GOODS/SERVICES - SUBSISTENCE,Organisational Development,REDFERN TRAVEL LTD,10000057,74.6,CONSOLIDATED BUSINESS TRAVEL WK 41,BD1 5HQ,ADMIN
FOOD STANDARDS AGENCY - Westminster,FOOD STANDARDS AGENCY - Westminster,2016-11-17,EXP - PURCHASE OF GOODS/SERVICES - AIR TRAVEL,Operational Delivery,REDFERN TRAVEL LTD,1011701397,72.7,CONSOLIDATED BUSINESS TRAVEL WK 45,BD1 5HQ,PROGRAMME
FOOD STANDARDS AGENCY - Westminster,FOOD STANDARDS AGENCY - Westminster,2016-11-17,EXP - PURCHASE OF GOODS/SERVICES - RAIL TRAVEL,Area 3 North West England - Cluster 31,REDFERN TRAVEL LTD,1011701397,72.4,CONSOLIDATED BUSINESS TRAVEL WK 45,BD1 5HQ,PROGRAMME
FOOD STANDARDS AGENCY - Westminster,FOOD STANDARDS AGENCY - Westminster,2016-11-23,EXP - PURCHASE OF GOODS/SERVICES - SUBSISTENCE,Area 6 South East England - Cluster 63,REDFERN TRAVEL LTD,1011701444,71.6,CONSOLIDATED BUSINESS TRAVEL WEEK 46,BD1 5HQ,PROGRAMME
FOOD STANDARDS AGENCY - Westminster,FOOD STANDARDS AGENCY - Westminster,2016-11-29,EXP - PURCHASE OF GOODS/SERVICES - RAIL TRAVEL,Regulating our Future,REDFERN TRAVEL LTD,1011701479,71.2,CONSOLIDATED BUSINESS TRAVEL WEEK 47,BD1 5HQ,ADMIN
FOOD STANDARDS AGENCY - Westminster,FOOD STANDARDS AGENCY - Westminster,2016-11-02,EXP - PURCHASE OF GOODS/SERVICES - SUBSISTENCE,Area 6 South East England - Cluster 63,REDFERN TRAVEL LTD,1011701252,70.1,CONSOLIDATED BUSINESS TRAVEL WK 43,BD1 5HQ,PROGRAMME
FOOD STANDARDS AGENCY - Westminster,FOOD STANDARDS AGENCY - Westminster,2016-11-29,EXP - PURCHASE OF GOODS/SERVICES - SUBSISTENCE,Area 3 North West England - Cluster 34,REDFERN TRAVEL LTD,1011701479,70.1,CONSOLIDATED BUSINESS TRAVEL WEEK 47,BD1 5HQ,PROGRAMME
FOOD STANDARDS AGENCY - Westminster,FOOD STANDARDS AGENCY - Westminster,2016-11-29,EXP - PURCHASE OF GOODS/SERVICES - SUBSISTENCE,Microbiological Food Safety Branch,REDFERN TRAVEL LTD,1011701479,70.1,CONSOLIDATED BUSINESS TRAVEL WEEK 47,BD1 5HQ,ADMIN
FOOD STANDARDS AGENCY - Westminster,FOOD STANDARDS AGENCY - Westminster,2016-11-02,EXP - PURCHASE OF GOODS/SERVICES - RAIL TRAVEL,Area 4 North East England - Cluster 42,REDFERN TRAVEL LTD,1011701252,69.45,CONSOLIDATED BUSINESS TRAVEL WK 43,BD1 5HQ,PROGRAMME
FOOD STANDARDS AGENCY - Westminster,FOOD STANDARDS AGENCY - Westminster,2016-11-15,EXP - PURCHASE OF GOODS/SERVICES - RAIL TRAVEL,Area 4 North East England - Cluster 42,REDFERN TRAVEL LTD,10000057,69.45,CONSOLIDATED BUSINESS TRAVEL WK 41,BD1 5HQ,PROGRAMME
FOOD STANDARDS AGENCY - Westminster,FOOD STANDARDS AGENCY - Westminster,2016-11-29,EXP - PURCHASE OF GOODS/SERVICES - RAIL TRAVEL,Area 1 Scotland - Cluster 14,REDFERN TRAVEL LTD,1011701479,68.8,CONSOLIDATED BUSINESS TRAVEL WEEK 47,BD1 5HQ,PROGRAMME
FOOD STANDARDS AGENCY - Westminster,FOOD STANDARDS AGENCY - Westminster,2016-11-02,EXP - PURCHASE OF GOODS/SERVICES - RAIL TRAVEL,Area 2 Wales - Cluster 23,REDFERN TRAVEL LTD,1011701252,68.1,CONSOLIDATED BUSINESS TRAVEL WK 43,BD1 5HQ,PROGRAMME
FOOD STANDARDS AGENCY - Westminster,FOOD STANDARDS AGENCY - Westminster,2016-11-23,EXP - PURCHASE OF GOODS/SERVICES - SUBSISTENCE,Area 5 South West England - Cluster 53,REDFERN TRAVEL LTD,1011701444,67.8,CONSOLIDATED BUSINESS TRAVEL WEEK 46,BD1 5HQ,PROGRAMME
FOOD STANDARDS AGENCY - Westminster,FOOD STANDARDS AGENCY - Westminster,2016-11-29,EXP - PURCHASE OF GOODS/SERVICES - SUBSISTENCE,Chair & Deputy Chair,REDFERN TRAVEL LTD,1011701479,67.6,CONSOLIDATED BUSINESS TRAVEL WEEK 47,BD1 5HQ,ADMIN
FOOD STANDARDS AGENCY - Westminster,FOOD STANDARDS AGENCY - Westminster,2016-11-15,EXP - PURCHASE OF GOODS/SERVICES - RAIL TRAVEL,Area 3 North West England - Cluster 32,REDFERN TRAVEL LTD,10000057,67.2,CONSOLIDATED BUSINESS TRAVEL WK 41,BD1 5HQ,PROGRAMME
FOOD STANDARDS AGENCY - Westminster,FOOD STANDARDS AGENCY - Westminster,2016-11-23,EXP - PURCHASE OF GOODS/SERVICES - AIR TRAVEL,Regulatory Delivery ,REDFERN TRAVEL LTD,1011701444,67,CONSOLIDATED BUSINESS TRAVEL WEEK 46,BD1 5HQ,ADMIN
FOOD STANDARDS AGENCY - Westminster,FOOD STANDARDS AGENCY - Westminster,2016-11-23,EXP - PURCHASE OF GOODS/SERVICES - RAIL TRAVEL,Area 1 Scotland - Cluster 14,REDFERN TRAVEL LTD,1011701444,66.7,CONSOLIDATED BUSINESS TRAVEL WEEK 46,BD1 5HQ,PROGRAMME
FOOD STANDARDS AGENCY - Westminster,FOOD STANDARDS AGENCY - Westminster,2016-11-29,EXP - PURCHASE OF GOODS/SERVICES - RAIL TRAVEL,Area 3 North West England - Cluster 32,REDFERN TRAVEL LTD,1011701479,66.05,CONSOLIDATED BUSINESS TRAVEL WEEK 47,BD1 5HQ,PROGRAMME
FOOD STANDARDS AGENCY - Westminster,FOOD STANDARDS AGENCY - Westminster,2016-11-17,EXP - PURCHASE OF GOODS/SERVICES - SUBSISTENCE,Area 5 South West England - Cluster 55,REDFERN TRAVEL LTD,1011701397,65.6,CONSOLIDATED BUSINESS TRAVEL WK 45,BD1 5HQ,PROGRAMME
FOOD STANDARDS AGENCY - Westminster,FOOD STANDARDS AGENCY - Westminster,2016-11-15,EXP - PURCHASE OF GOODS/SERVICES - SUBSISTENCE,"Employee Relations, Systems and Data",REDFERN TRAVEL LTD,10000057,63.6,CONSOLIDATED BUSINESS TRAVEL WK 41,BD1 5HQ,ADMIN
FOOD STANDARDS AGENCY - Westminster,FOOD STANDARDS AGENCY - Westminster,2016-11-17,EXP - PURCHASE OF GOODS/SERVICES - SUBSISTENCE,EU Regulatory Reform Branch,REDFERN TRAVEL LTD,1011701397,63.6,CONSOLIDATED BUSINESS TRAVEL WK 45,BD1 5HQ,ADMIN
FOOD STANDARDS AGENCY - Westminster,FOOD STANDARDS AGENCY - Westminster,2016-11-23,EXP - PURCHASE OF GOODS/SERVICES - RAIL TRAVEL,Non Meat Field Ops,REDFERN TRAVEL LTD,1011701444,62.5,CONSOLIDATED BUSINESS TRAVEL WEEK 46,BD1 5HQ,PROGRAMME
FOOD STANDARDS AGENCY - Westminster,FOOD STANDARDS AGENCY - Westminster,2016-11-29,EXP - PURCHASE OF GOODS/SERVICES - SUBSISTENCE,Area 2 Wales - Cluster 21,REDFERN TRAVEL LTD,1011701479,60.7,CONSOLIDATED BUSINESS TRAVEL WEEK 47,BD1 5HQ,PROGRAMME
FOOD STANDARDS AGENCY - Westminster,FOOD STANDARDS AGENCY - Westminster,2016-11-29,EXP - PURCHASE OF GOODS/SERVICES - SUBSISTENCE,Area 6 South East England - Cluster 64,REDFERN TRAVEL LTD,1011701479,59.6,CONSOLIDATED BUSINESS TRAVEL WEEK 47,BD1 5HQ,PROGRAMME
FOOD STANDARDS AGENCY - Westminster,FOOD STANDARDS AGENCY - Westminster,2016-11-29,EXP - PURCHASE OF GOODS/SERVICES - RAIL TRAVEL,Area 6 South East England - Cluster 65,REDFERN TRAVEL LTD,1011701479,59.2,CONSOLIDATED BUSINESS TRAVEL WEEK 47,BD1 5HQ,PROGRAMME
FOOD STANDARDS AGENCY - Westminster,FOOD STANDARDS AGENCY - Westminster,2016-11-23,EXP - PURCHASE OF GOODS/SERVICES - SUBSISTENCE,Area 5 South West England - Cluster 52,REDFERN TRAVEL LTD,1011701444,58.62,CONSOLIDATED BUSINESS TRAVEL WEEK 46,BD1 5HQ,PROGRAMME
FOOD STANDARDS AGENCY - Westminster,FOOD STANDARDS AGENCY - Westminster,2016-11-29,EXP - PURCHASE OF GOODS/SERVICES - SUBSISTENCE,Area 5 South West England - Cluster 52,REDFERN TRAVEL LTD,1011701479,58.62,CONSOLIDATED BUSINESS TRAVEL WEEK 47,BD1 5HQ,PROGRAMME
FOOD STANDARDS AGENCY - Westminster,FOOD STANDARDS AGENCY - Westminster,2016-11-15,EXP - PURCHASE OF GOODS/SERVICES - SUBSISTENCE,Area 6 South East England - Cluster 63,REDFERN TRAVEL LTD,10000057,57.24,CONSOLIDATED BUSINESS TRAVEL WK 41,BD1 5HQ,PROGRAMME
FOOD STANDARDS AGENCY - Westminster,FOOD STANDARDS AGENCY - Westminster,2016-11-17,EXP - PURCHASE OF GOODS/SERVICES - SUBSISTENCE,Area 4 North East England - Cluster 44,REDFERN TRAVEL LTD,1011701397,57.24,CONSOLIDATED BUSINESS TRAVEL WK 45,BD1 5HQ,PROGRAMME
FOOD STANDARDS AGENCY - Westminster,FOOD STANDARDS AGENCY - Westminster,2016-11-23,EXP - PURCHASE OF GOODS/SERVICES - RAIL TRAVEL,Food Hygiene Policy Branch,REDFERN TRAVEL LTD,1011701444,57,CONSOLIDATED BUSINESS TRAVEL WEEK 46,BD1 5HQ,ADMIN
FOOD STANDARDS AGENCY - Westminster,FOOD STANDARDS AGENCY - Westminster,2016-11-02,EXP - PURCHASE OF GOODS/SERVICES - RAIL TRAVEL,Resilience - Admin,REDFERN TRAVEL LTD,1011701252,56,CONSOLIDATED BUSINESS TRAVEL WK 43,BD1 5HQ,ADMIN
FOOD STANDARDS AGENCY - Westminster,FOOD STANDARDS AGENCY - Westminster,2016-11-17,EXP - PURCHASE OF GOODS/SERVICES - RAIL TRAVEL,Area 3 North West England - Cluster 35,REDFERN TRAVEL LTD,1011701397,55.2,CONSOLIDATED BUSINESS TRAVEL WK 45,BD1 5HQ,PROGRAMME
FOOD STANDARDS AGENCY - Westminster,FOOD STANDARDS AGENCY - Westminster,2016-11-23,EXP - PURCHASE OF GOODS/SERVICES - RAIL TRAVEL,Food Production Branch,REDFERN TRAVEL LTD,1011701444,55,CONSOLIDATED BUSINESS TRAVEL WEEK 46,BD1 5HQ,ADMIN
FOOD STANDARDS AGENCY - Westminster,FOOD STANDARDS AGENCY - Westminster,2016-11-02,EXP - PURCHASE OF GOODS/SERVICES - SUBSISTENCE,Area 5 South West England - Cluster 51,REDFERN TRAVEL LTD,1011701252,54.6,CONSOLIDATED BUSINESS TRAVEL WK 43,BD1 5HQ,PROGRAMME
FOOD STANDARDS AGENCY - Westminster,FOOD STANDARDS AGENCY - Westminster,2016-11-02,EXP - PURCHASE OF GOODS/SERVICES - SUBSISTENCE,Area 5 South West England - Cluster 52,REDFERN TRAVEL LTD,1011701252,54.6,CONSOLIDATED BUSINESS TRAVEL WK 43,BD1 5HQ,PROGRAMME
FOOD STANDARDS AGENCY - Westminster,FOOD STANDARDS AGENCY - Westminster,2016-11-23,EXP - PURCHASE OF GOODS/SERVICES - SUBSISTENCE,Area 2 Wales - Cluster 23,REDFERN TRAVEL LTD,1011701444,54.6,CONSOLIDATED BUSINESS TRAVEL WEEK 46,BD1 5HQ,PROGRAMME
FOOD STANDARDS AGENCY - Westminster,FOOD STANDARDS AGENCY - Westminster,2016-11-29,EXP - PURCHASE OF GOODS/SERVICES - SUBSISTENCE,Area 6 South East England - Cluster 62,REDFERN TRAVEL LTD,1011701479,54.6,CONSOLIDATED BUSINESS TRAVEL WEEK 47,BD1 5HQ,PROGRAMME
FOOD STANDARDS AGENCY - Westminster,FOOD STANDARDS AGENCY - Westminster,2016-11-17,EXP - PURCHASE OF GOODS/SERVICES - SUBSISTENCE,Area 2 Wales - Cluster 22,REDFERN TRAVEL LTD,1011701397,54.29,CONSOLIDATED BUSINESS TRAVEL WK 45,BD1 5HQ,PROGRAMME
FOOD STANDARDS AGENCY - Westminster,FOOD STANDARDS AGENCY - Westminster,2016-11-15,EXP - PURCHASE OF GOODS/SERVICES - SUBSISTENCE,Area 5 South West England - Cluster 54,REDFERN TRAVEL LTD,10000057,53.6,CONSOLIDATED BUSINESS TRAVEL WK 41,BD1 5HQ,PROGRAMME
FOOD STANDARDS AGENCY - Westminster,FOOD STANDARDS AGENCY - Westminster,2016-11-29,EXP - PURCHASE OF GOODS/SERVICES - SUBSISTENCE,Chemical Risk Assessment Unit,REDFERN TRAVEL LTD,1011701479,53.58,CONSOLIDATED BUSINESS TRAVEL WEEK 47,BD1 5HQ,ADMIN
FOOD STANDARDS AGENCY - Westminster,FOOD STANDARDS AGENCY - Westminster,2016-11-17,EXP - PURCHASE OF GOODS/SERVICES - RAIL TRAVEL,Area 3 North West England - Cluster 36,REDFERN TRAVEL LTD,1011701397,53.2,CONSOLIDATED BUSINESS TRAVEL WK 45,BD1 5HQ,PROGRAMME
FOOD STANDARDS AGENCY - Westminster,FOOD STANDARDS AGENCY - Westminster,2016-11-17,EXP - PURCHASE OF GOODS/SERVICES - SUBSISTENCE,Area 3 North West England - Cluster 35,REDFERN TRAVEL LTD,1011701397,51.6,CONSOLIDATED BUSINESS TRAVEL WK 45,BD1 5HQ,PROGRAMME
FOOD STANDARDS AGENCY - Westminster,FOOD STANDARDS AGENCY - Westminster,2016-11-23,EXP - PURCHASE OF GOODS/SERVICES - TAXI SERVICES,Operations Assurance ,REDFERN TRAVEL LTD,1011701444,51.37,CONSOLIDATED BUSINESS TRAVEL WEEK 46,BD1 5HQ,PROGRAMME
FOOD STANDARDS AGENCY - Westminster,FOOD STANDARDS AGENCY - Westminster,2016-11-29,EXP - PURCHASE OF GOODS/SERVICES - AIR TRAVEL,Operations Assurance ,REDFERN TRAVEL LTD,1011701479,50.99,CONSOLIDATED BUSINESS TRAVEL WEEK 47,BD1 5HQ,PROGRAMME
FOOD STANDARDS AGENCY - Westminster,FOOD STANDARDS AGENCY - Westminster,2016-11-17,EXP - PURCHASE OF GOODS/SERVICES - SUBSISTENCE,Organisational Development,REDFERN TRAVEL LTD,1011701397,50.44,CONSOLIDATED BUSINESS TRAVEL WK 45,BD1 5HQ,ADMIN
FOOD STANDARDS AGENCY - Westminster,FOOD STANDARDS AGENCY - Westminster,2016-11-29,EXP - PURCHASE OF GOODS/SERVICES - RAIL TRAVEL,Area 6 South East England - Cluster 61,REDFERN TRAVEL LTD,1011701479,50.3,CONSOLIDATED BUSINESS TRAVEL WEEK 47,BD1 5HQ,PROGRAMME
FOOD STANDARDS AGENCY - Westminster,FOOD STANDARDS AGENCY - Westminster,2016-11-11,EXP - PURCHASE OF GOODS/SERVICES - OTHER - CARRIAGE OF SAMPLES,Operational Delivery,TOPSPEED COURIERS LIMITED,1011701356,50,EBL * 1,WA16 8XN,PROGRAMME
FOOD STANDARDS AGENCY - Westminster,FOOD STANDARDS AGENCY - Westminster,2016-11-17,EXP - PURCHASE OF GOODS/SERVICES - SUBSISTENCE,Area 6 South East England - Cluster 62,REDFERN TRAVEL LTD,1011701397,49.29,CONSOLIDATED BUSINESS TRAVEL WK 45,BD1 5HQ,PROGRAMME
FOOD STANDARDS AGENCY - Westminster,FOOD STANDARDS AGENCY - Westminster,2016-11-29,EXP - PURCHASE OF GOODS/SERVICES - RAIL TRAVEL,Allergens,REDFERN TRAVEL LTD,1011701479,49,CONSOLIDATED BUSINESS TRAVEL WEEK 47,BD1 5HQ,ADMIN
FOOD STANDARDS AGENCY - Westminster,FOOD STANDARDS AGENCY - Westminster,2016-11-17,EXP - PURCHASE OF GOODS/SERVICES - RAIL TRAVEL,Area 4 North East England - Cluster 46,REDFERN TRAVEL LTD,1011701397,48,CONSOLIDATED BUSINESS TRAVEL WK 45,BD1 5HQ,PROGRAMME
FOOD STANDARDS AGENCY - Westminster,FOOD STANDARDS AGENCY - Westminster,2016-11-23,EXP - PURCHASE OF GOODS/SERVICES - RAIL TRAVEL,Area 6 South East England - Cluster 63,REDFERN TRAVEL LTD,1011701444,48,CONSOLIDATED BUSINESS TRAVEL WEEK 46,BD1 5HQ,PROGRAMME
FOOD STANDARDS AGENCY - Westminster,FOOD STANDARDS AGENCY - Westminster,2016-11-17,EXP - PURCHASE OF GOODS/SERVICES - SUBSISTENCE,Area 4 North East England - Cluster 41,REDFERN TRAVEL LTD,1011701397,47.8,CONSOLIDATED BUSINESS TRAVEL WK 45,BD1 5HQ,PROGRAMME
FOOD STANDARDS AGENCY - Westminster,FOOD STANDARDS AGENCY - Westminster,2016-11-23,EXP - PURCHASE OF GOODS/SERVICES - OTHER TRAVEL,Area 6 South East England - Cluster 66,REDFERN TRAVEL LTD,1011701444,47.66,CONSOLIDATED BUSINESS TRAVEL WEEK 46,BD1 5HQ,PROGRAMME
FOOD STANDARDS AGENCY - Westminster,FOOD STANDARDS AGENCY - Westminster,2016-11-23,EXP - PURCHASE OF GOODS/SERVICES - OTHER TRAVEL,Area 6 South East England - Cluster 66,REDFERN TRAVEL LTD,1011701444,47.66,CONSOLIDATED BUSINESS TRAVEL WEEK 46,BD1 5HQ,PROGRAMME
FOOD STANDARDS AGENCY - Westminster,FOOD STANDARDS AGENCY - Westminster,2016-11-01,EXP - AMORTISATION - INTANGIBLE ASSETS,IT Strategy,CAPITA SECURE INFORMATION SOLUTIONS LTD,1011701247,47.2,RSA TOKEN REPLACEMENT,SN14 0TW,CAPITAL
FOOD STANDARDS AGENCY - Westminster,FOOD STANDARDS AGENCY - Westminster,2016-11-29,EXP - PURCHASE OF GOODS/SERVICES - RAIL TRAVEL,Area 4 North East England - Cluster 46,REDFERN TRAVEL LTD,1011701479,46.7,CONSOLIDATED BUSINESS TRAVEL WEEK 47,BD1 5HQ,PROGRAMME
FOOD STANDARDS AGENCY - Westminster,FOOD STANDARDS AGENCY - Westminster,2016-11-29,EXP - PURCHASE OF GOODS/SERVICES - RAIL TRAVEL,Area 6 South East England - Cluster 64,REDFERN TRAVEL LTD,1011701479,45.3,CONSOLIDATED BUSINESS TRAVEL WEEK 47,BD1 5HQ,PROGRAMME
FOOD STANDARDS AGENCY - Westminster,FOOD STANDARDS AGENCY - Westminster,2016-11-29,EXP - PURCHASE OF GOODS/SERVICES - RAIL TRAVEL,Area 3 North West England - Cluster 33,REDFERN TRAVEL LTD,1011701479,44.3,CONSOLIDATED BUSINESS TRAVEL WEEK 47,BD1 5HQ,PROGRAMME
FOOD STANDARDS AGENCY - Westminster,FOOD STANDARDS AGENCY - Westminster,2016-11-02,EXP - PURCHASE OF GOODS/SERVICES - RAIL TRAVEL,Chief Scientist,REDFERN TRAVEL LTD,1011701252,43,CONSOLIDATED BUSINESS TRAVEL WK 43,BD1 5HQ,ADMIN
FOOD STANDARDS AGENCY - Westminster,FOOD STANDARDS AGENCY - Westminster,2016-11-02,EXP - PURCHASE OF GOODS/SERVICES -  FOREIGN AIR TRAVEL,IT Information & Knowledge Management,REDFERN TRAVEL LTD,1011701252,42.95,CONSOLIDATED BUSINESS TRAVEL WK 43,BD1 5HQ,ADMIN
FOOD STANDARDS AGENCY - Westminster,FOOD STANDARDS AGENCY - Westminster,2016-11-15,EXP - PURCHASE OF GOODS/SERVICES - SUBSISTENCE,Area 4 North East England - Cluster 41,REDFERN TRAVEL LTD,10000057,42.49,CONSOLIDATED BUSINESS TRAVEL WK 41,BD1 5HQ,PROGRAMME
FOOD STANDARDS AGENCY - Westminster,FOOD STANDARDS AGENCY - Westminster,2016-11-15,EXP - PURCHASE OF GOODS/SERVICES - SUBSISTENCE,Area 4 North East England - Cluster 42,REDFERN TRAVEL LTD,10000057,42.49,CONSOLIDATED BUSINESS TRAVEL WK 41,BD1 5HQ,PROGRAMME
FOOD STANDARDS AGENCY - Westminster,FOOD STANDARDS AGENCY - Westminster,2016-11-23,EXP - PURCHASE OF GOODS/SERVICES - SUBSISTENCE,Area 2 Wales - Cluster 21,REDFERN TRAVEL LTD,1011701444,41.22,CONSOLIDATED BUSINESS TRAVEL WEEK 46,BD1 5HQ,PROGRAMME
FOOD STANDARDS AGENCY - Westminster,FOOD STANDARDS AGENCY - Westminster,2016-11-23,EXP - PURCHASE OF GOODS/SERVICES - SUBSISTENCE,Area 3 North West England - Cluster 31,REDFERN TRAVEL LTD,1011701444,41.22,CONSOLIDATED BUSINESS TRAVEL WEEK 46,BD1 5HQ,PROGRAMME
FOOD STANDARDS AGENCY - Westminster,FOOD STANDARDS AGENCY - Westminster,2016-11-29,EXP - PURCHASE OF GOODS/SERVICES - TAXI SERVICES,Operational Delivery,REDFERN TRAVEL LTD,1011701479,39.28,CONSOLIDATED BUSINESS TRAVEL WEEK 47,BD1 5HQ,PROGRAMME
FOOD STANDARDS AGENCY - Westminster,FOOD STANDARDS AGENCY - Westminster,2016-11-23,EXP - PURCHASE OF GOODS/SERVICES - RAIL TRAVEL,Area 6 South East England - Cluster 65,REDFERN TRAVEL LTD,1011701444,36.8,CONSOLIDATED BUSINESS TRAVEL WEEK 46,BD1 5HQ,PROGRAMME
FOOD STANDARDS AGENCY - Westminster,FOOD STANDARDS AGENCY - Westminster,2016-11-23,EXP - PURCHASE OF GOODS/SERVICES - RAIL TRAVEL,Allergens,REDFERN TRAVEL LTD,1011701444,36.6,CONSOLIDATED BUSINESS TRAVEL WEEK 46,BD1 5HQ,ADMIN
FOOD STANDARDS AGENCY - Westminster,FOOD STANDARDS AGENCY - Westminster,2016-11-17,EXP - PURCHASE OF GOODS/SERVICES - TAXI SERVICES,Chief Scientist,REDFERN TRAVEL LTD,1011701397,36.56,CONSOLIDATED BUSINESS TRAVEL WK 45,BD1 5HQ,ADMIN
FOOD STANDARDS AGENCY - Westminster,FOOD STANDARDS AGENCY - Westminster,2016-11-15,EXP - PURCHASE OF GOODS/SERVICES - RAIL TRAVEL,Area 2 Wales - Cluster 22,REDFERN TRAVEL LTD,10000057,35.35,CONSOLIDATED BUSINESS TRAVEL WK 41,BD1 5HQ,PROGRAMME
FOOD STANDARDS AGENCY - Westminster,FOOD STANDARDS AGENCY - Westminster,2016-11-29,EXP - PURCHASE OF GOODS/SERVICES - SUBSISTENCE,Area 2 Wales - Cluster 23,REDFERN TRAVEL LTD,1011701479,34.2,CONSOLIDATED BUSINESS TRAVEL WEEK 47,BD1 5HQ,PROGRAMME
FOOD STANDARDS AGENCY - Westminster,FOOD STANDARDS AGENCY - Westminster,2016-11-17,EXP - PURCHASE OF GOODS/SERVICES - RAIL TRAVEL,"Employee Relations, Systems and Data",REDFERN TRAVEL LTD,1011701397,32.8,CONSOLIDATED BUSINESS TRAVEL WK 45,BD1 5HQ,ADMIN
FOOD STANDARDS AGENCY - Westminster,FOOD STANDARDS AGENCY - Westminster,2016-11-02,EXP - PURCHASE OF GOODS/SERVICES - RAIL TRAVEL,Area 6 South East England - Cluster 66,REDFERN TRAVEL LTD,1011701252,32.1,CONSOLIDATED BUSINESS TRAVEL WK 43,BD1 5HQ,PROGRAMME
FOOD STANDARDS AGENCY - Westminster,FOOD STANDARDS AGENCY - Westminster,2016-11-02,EXP - PURCHASE OF GOODS/SERVICES - RAIL TRAVEL,Analysis & Research Branch,REDFERN TRAVEL LTD,1011701252,32,CONSOLIDATED BUSINESS TRAVEL WK 43,BD1 5HQ,ADMIN
FOOD STANDARDS AGENCY - Westminster,FOOD STANDARDS AGENCY - Westminster,2016-11-02,EXP - PURCHASE OF GOODS/SERVICES - TAXI SERVICES,Microbiological Food Safety Branch,REDFERN TRAVEL LTD,1011701252,31.52,CONSOLIDATED BUSINESS TRAVEL WK 43,BD1 5HQ,ADMIN
FOOD STANDARDS AGENCY - Westminster,FOOD STANDARDS AGENCY - Westminster,2016-11-15,EXP - PURCHASE OF GOODS/SERVICES - RAIL TRAVEL,Food Crime Unit - Admin,REDFERN TRAVEL LTD,10000057,31.5,CONSOLIDATED BUSINESS TRAVEL WK 41,BD1 5HQ,ADMIN
FOOD STANDARDS AGENCY - Westminster,FOOD STANDARDS AGENCY - Westminster,2016-11-17,EXP - PURCHASE OF GOODS/SERVICES - TAXI SERVICES,Operational Delivery,REDFERN TRAVEL LTD,1011701397,30.54,CONSOLIDATED BUSINESS TRAVEL WK 45,BD1 5HQ,PROGRAMME
FOOD STANDARDS AGENCY - Westminster,FOOD STANDARDS AGENCY - Westminster,2016-11-17,EXP - PURCHASE OF GOODS/SERVICES - RAIL TRAVEL,Contaminants HoD,REDFERN TRAVEL LTD,1011701397,30,CONSOLIDATED BUSINESS TRAVEL WK 45,BD1 5HQ,ADMIN
FOOD STANDARDS AGENCY - Westminster,FOOD STANDARDS AGENCY - Westminster,2016-11-15,EXP - PURCHASE OF GOODS/SERVICES - RAIL TRAVEL,Area 5 South West England - Cluster 51,REDFERN TRAVEL LTD,10000057,29,CONSOLIDATED BUSINESS TRAVEL WK 41,BD1 5HQ,PROGRAMME
FOOD STANDARDS AGENCY - Westminster,FOOD STANDARDS AGENCY - Westminster,2016-11-15,EXP - PURCHASE OF GOODS/SERVICES - RAIL TRAVEL,Area 6 South East England - Cluster 65,REDFERN TRAVEL LTD,10000057,26.6,CONSOLIDATED BUSINESS TRAVEL WK 41,BD1 5HQ,PROGRAMME
FOOD STANDARDS AGENCY - Westminster,FOOD STANDARDS AGENCY - Westminster,2016-11-17,EXP - PURCHASE OF GOODS/SERVICES - RAIL TRAVEL,Area 3 North West England - Cluster 34,REDFERN TRAVEL LTD,1011701397,25.05,CONSOLIDATED BUSINESS TRAVEL WK 45,BD1 5HQ,PROGRAMME
FOOD STANDARDS AGENCY - Westminster,FOOD STANDARDS AGENCY - Westminster,2016-11-17,EXP - PURCHASE OF GOODS/SERVICES - RAIL TRAVEL,Animal Feed Branch,REDFERN TRAVEL LTD,1011701397,25,CONSOLIDATED BUSINESS TRAVEL WK 45,BD1 5HQ,ADMIN
FOOD STANDARDS AGENCY - Westminster,FOOD STANDARDS AGENCY - Westminster,2016-11-23,EXP - PURCHASE OF GOODS/SERVICES - RAIL TRAVEL,Analysis & Research Branch,REDFERN TRAVEL LTD,1011701444,24.4,CONSOLIDATED BUSINESS TRAVEL WEEK 46,BD1 5HQ,ADMIN
FOOD STANDARDS AGENCY - Westminster,FOOD STANDARDS AGENCY - Westminster,2016-11-17,EXP - PURCHASE OF GOODS/SERVICES - TAXI SERVICES,Regulatory & International,REDFERN TRAVEL LTD,1011701397,23.93,CONSOLIDATED BUSINESS TRAVEL WK 45,BD1 5HQ,ADMIN
FOOD STANDARDS AGENCY - Westminster,FOOD STANDARDS AGENCY - Westminster,2016-11-23,EXP - AMORTISATION - INTANGIBLE ASSETS,IT Strategy,CAPITA SECURE INFORMATION SOLUTIONS LTD,1011701448,22.03,RSA TOKEN REPLACEMENT,SN14 0TW,CAPITAL
FOOD STANDARDS AGENCY - Westminster,FOOD STANDARDS AGENCY - Westminster,2016-11-29,EXP - PURCHASE OF GOODS/SERVICES - RAIL TRAVEL,Area 5 South West England - Cluster 53,REDFERN TRAVEL LTD,1011701479,21.9,CONSOLIDATED BUSINESS TRAVEL WEEK 47,BD1 5HQ,PROGRAMME
FOOD STANDARDS AGENCY - Westminster,FOOD STANDARDS AGENCY - Westminster,2016-11-02,EXP - PURCHASE OF GOODS/SERVICES - TAXI SERVICES,Imports & Exports Team (Admin),REDFERN TRAVEL LTD,1011701252,20.14,CONSOLIDATED BUSINESS TRAVEL WK 43,BD1 5HQ,ADMIN
FOOD STANDARDS AGENCY - Westminster,FOOD STANDARDS AGENCY - Westminster,2016-11-02,EXP - PURCHASE OF GOODS/SERVICES - RAIL TRAVEL,Food Incidents & Resilience - Prog,REDFERN TRAVEL LTD,1011701252,18,CONSOLIDATED BUSINESS TRAVEL WK 43,BD1 5HQ,PROGRAMME
FOOD STANDARDS AGENCY - Westminster,FOOD STANDARDS AGENCY - Westminster,2016-11-23,EXP - PURCHASE OF GOODS/SERVICES - RAIL TRAVEL,Food Crime Unit - Prog,REDFERN TRAVEL LTD,1011701444,17.5,CONSOLIDATED BUSINESS TRAVEL WEEK 46,BD1 5HQ,PROGRAMME
FOOD STANDARDS AGENCY - Westminster,FOOD STANDARDS AGENCY - Westminster,2016-11-17,EXP - PURCHASE OF GOODS/SERVICES - TAXI SERVICES,Area 3 North West England - Cluster 35,REDFERN TRAVEL LTD,1011701397,13.74,CONSOLIDATED BUSINESS TRAVEL WK 45,BD1 5HQ,PROGRAMME
FOOD STANDARDS AGENCY - Westminster,FOOD STANDARDS AGENCY - Westminster,2016-11-17,EXP - PURCHASE OF GOODS/SERVICES - TAXI SERVICES,Chief Executive & Private Office,REDFERN TRAVEL LTD,1011701397,13.63,CONSOLIDATED BUSINESS TRAVEL WK 45,BD1 5HQ,ADMIN
FOOD STANDARDS AGENCY - Westminster,FOOD STANDARDS AGENCY - Westminster,2016-11-23,EXP - PURCHASE OF GOODS/SERVICES - TAXI SERVICES,Operational Delivery,REDFERN TRAVEL LTD,1011701444,13.42,CONSOLIDATED BUSINESS TRAVEL WEEK 46,BD1 5HQ,PROGRAMME
FOOD STANDARDS AGENCY - Westminster,FOOD STANDARDS AGENCY - Westminster,2016-11-15,EXP - PURCHASE OF GOODS/SERVICES - RAIL TRAVEL,Food Production Branch,REDFERN TRAVEL LTD,10000057,13.4,CONSOLIDATED BUSINESS TRAVEL WK 41,BD1 5HQ,ADMIN
FOOD STANDARDS AGENCY - Westminster,FOOD STANDARDS AGENCY - Westminster,2016-11-17,EXP - PURCHASE OF GOODS/SERVICES - TAXI SERVICES,Area 3 North West England - Cluster 35,REDFERN TRAVEL LTD,1011701397,12.66,CONSOLIDATED BUSINESS TRAVEL WK 45,BD1 5HQ,PROGRAMME
FOOD STANDARDS AGENCY - Westminster,FOOD STANDARDS AGENCY - Westminster,2016-11-29,EXP - PURCHASE OF GOODS/SERVICES - OTHER TRAVEL,Chief Scientist,REDFERN TRAVEL LTD,1011701479,12.1,CONSOLIDATED BUSINESS TRAVEL WEEK 47,BD1 5HQ,ADMIN
FOOD STANDARDS AGENCY - Westminster,FOOD STANDARDS AGENCY - Westminster,2016-11-23,EXP - PURCHASE OF GOODS/SERVICES - OTHER TRAVEL,Regulatory Delivery ,REDFERN TRAVEL LTD,1011701444,12,CONSOLIDATED BUSINESS TRAVEL WEEK 46,BD1 5HQ,ADMIN
FOOD STANDARDS AGENCY - Westminster,FOOD STANDARDS AGENCY - Westminster,2016-11-17,EXP - PURCHASE OF GOODS/SERVICES - OTHER TRAVEL,Food Incidents & Resilience - Prog,REDFERN TRAVEL LTD,1011701397,10.5,CONSOLIDATED BUSINESS TRAVEL WK 45,BD1 5HQ,PROGRAMME
FOOD STANDARDS AGENCY - Westminster,FOOD STANDARDS AGENCY - Westminster,2016-11-17,EXP - PURCHASE OF GOODS/SERVICES - OTHER TRAVEL,Chief Executive & Private Office,REDFERN TRAVEL LTD,1011701397,10.5,CONSOLIDATED BUSINESS TRAVEL WK 45,BD1 5HQ,ADMIN
FOOD STANDARDS AGENCY - Westminster,FOOD STANDARDS AGENCY - Westminster,2016-11-15,EXP - PURCHASE OF GOODS/SERVICES - RAIL TRAVEL,Microbiological Food Safety Branch,REDFERN TRAVEL LTD,10000057,10.4,CONSOLIDATED BUSINESS TRAVEL WK 41,BD1 5HQ,ADMIN
FOOD STANDARDS AGENCY - Westminster,FOOD STANDARDS AGENCY - Westminster,2016-11-29,EXP - PURCHASE OF GOODS/SERVICES - RAIL TRAVEL,Area 3 North West England - Cluster 35,REDFERN TRAVEL LTD,1011701479,10.3,CONSOLIDATED BUSINESS TRAVEL WEEK 47,BD1 5HQ,PROGRAMME
FOOD STANDARDS AGENCY - Westminster,FOOD STANDARDS AGENCY - Westminster,2016-11-01,EXP - AMORTISATION - INTANGIBLE ASSETS,IT Strategy,CAPITA SECURE INFORMATION SOLUTIONS LTD,1011701247,9.44,RSA TOKEN REPLACEMENT,SN14 0TW,CAPITAL
FOOD STANDARDS AGENCY - Westminster,FOOD STANDARDS AGENCY - Westminster,2016-11-02,EXP - PURCHASE OF GOODS/SERVICES - TAXI SERVICES,Chief Scientist,REDFERN TRAVEL LTD,1011701252,9.1,CONSOLIDATED BUSINESS TRAVEL WK 43,BD1 5HQ,ADMIN
FOOD STANDARDS AGENCY - Westminster,FOOD STANDARDS AGENCY - Westminster,2016-11-23,EXP - AMORTISATION - INTANGIBLE ASSETS,IT Service Delivery,CAPITA SECURE INFORMATION SOLUTIONS LTD,1011701448,7.5,BUFFER STOCK,SN14 0TW,ADMIN
FOOD STANDARDS AGENCY - Westminster,FOOD STANDARDS AGENCY - Westminster,2016-11-02,EXP - PURCHASE OF GOODS/SERVICES - RAIL TRAVEL,Area 3 North West England - Cluster 33,REDFERN TRAVEL LTD,1011701252,6.4,CONSOLIDATED BUSINESS TRAVEL WK 43,BD1 5HQ,PROGRAMME
FOOD STANDARDS AGENCY - Westminster,FOOD STANDARDS AGENCY - Westminster,2016-11-23,EXP - PURCHASE OF GOODS/SERVICES - RAIL TRAVEL,Contaminants Policy & Strategy Unit,REDFERN TRAVEL LTD,1011701444,5.8,CONSOLIDATED BUSINESS TRAVEL WEEK 46,BD1 5HQ,ADMIN
FOOD STANDARDS AGENCY - Westminster,FOOD STANDARDS AGENCY - Westminster,2016-11-29,EXP - PURCHASE OF GOODS/SERVICES - RAIL TRAVEL,Animal Feed Branch,REDFERN TRAVEL LTD,1011701479,4.5,CONSOLIDATED BUSINESS TRAVEL WEEK 47,BD1 5HQ,ADMIN
FOOD STANDARDS AGENCY - Westminster,FOOD STANDARDS AGENCY - Westminster,2016-11-29,EXP - PURCHASE OF GOODS/SERVICES - SUBSISTENCE,Food Hygiene Policy Branch,REDFERN TRAVEL LTD,1011701479,2.33,CONSOLIDATED BUSINESS TRAVEL WEEK 47,BD1 5HQ,ADMIN
FOOD STANDARDS AGENCY - Westminster,FOOD STANDARDS AGENCY - Westminster,2016-11-15,EXP - PURCHASE OF GOODS/SERVICES - SUBSISTENCE,Contaminants Policy & Strategy Unit,REDFERN TRAVEL LTD,10000057,0.6,CONSOLIDATED BUSINESS TRAVEL WK 41,BD1 5HQ,ADMIN
FOOD STANDARDS AGENCY - Westminster,FOOD STANDARDS AGENCY - Westminster,2016-11-17,EXP - PURCHASE OF GOODS/SERVICES - SUBSISTENCE,Legal Branch A & Investigations,REDFERN TRAVEL LTD,1011701397,0.6,CONSOLIDATED BUSINESS TRAVEL WK 45,BD1 5HQ,ADMIN
FOOD STANDARDS AGENCY - Westminster,FOOD STANDARDS AGENCY - Westminster,2016-11-23,EXP - PURCHASE OF GOODS/SERVICES - SUBSISTENCE,IT Information & Knowledge Management,REDFERN TRAVEL LTD,1011701444,0.6,CONSOLIDATED BUSINESS TRAVEL WEEK 46,BD1 5HQ,ADMIN
FOOD STANDARDS AGENCY - Westminster,FOOD STANDARDS AGENCY - Westminster,2016-11-23,EXP - PURCHASE OF GOODS/SERVICES - SUBSISTENCE,Microbiological Food Safety Branch,REDFERN TRAVEL LTD,1011701444,0.6,CONSOLIDATED BUSINESS TRAVEL WEEK 46,BD1 5HQ,ADMIN
FOOD STANDARDS AGENCY - Westminster,FOOD STANDARDS AGENCY - Westminster,2016-11-29,EXP - PURCHASE OF GOODS/SERVICES - SUBSISTENCE,Food Crime Unit - Admin,REDFERN TRAVEL LTD,1011701479,0.6,CONSOLIDATED BUSINESS TRAVEL WEEK 47,BD1 5HQ,ADMIN
FOOD STANDARDS AGENCY - Westminster,FOOD STANDARDS AGENCY - Westminster,2016-11-02,EXP - PURCHASE OF GOODS/SERVICES - OTHER - PROGRAMME EXPENDITURE,Food Production Branch,PUBLIC HEALTH ENGLAND,2012700084,0.27,CHARGES FOR DELIVERABLE 3 FOR FSA PROJECT FS102121,SP4 0JG,PROGRAMME
FOOD STANDARDS AGENCY - Westminster,FOOD STANDARDS AGENCY - Westminster,2016-11-17,EXP - PURCHASE OF GOODS/SERVICES - SUBSISTENCE,Regulatory & International,REDFERN TRAVEL LTD,1011701397,0,CONSOLIDATED BUSINESS TRAVEL WK 45,BD1 5HQ,ADMIN
FOOD STANDARDS AGENCY - Westminster,FOOD STANDARDS AGENCY - Westminster,2016-11-23,EXP - PURCHASE OF GOODS/SERVICES - RAIL TRAVEL,Area 4 North East England - Cluster 43,REDFERN TRAVEL LTD,1011701444,-9.9,CONSOLIDATED BUSINESS TRAVEL WEEK 46,BD1 5HQ,PROGRAMME
FOOD STANDARDS AGENCY - Westminster,FOOD STANDARDS AGENCY - Westminster,2016-11-29,EXP - PURCHASE OF GOODS/SERVICES - RAIL TRAVEL,Area 4 North East England - Cluster 45,REDFERN TRAVEL LTD,1011701479,-25.2,CONSOLIDATED BUSINESS TRAVEL WEEK 47,BD1 5HQ,PROGRAMME
FOOD STANDARDS AGENCY - Westminster,FOOD STANDARDS AGENCY - Westminster,2016-11-02,EXP - PURCHASE OF GOODS/SERVICES - RAIL TRAVEL,Area 4 North East England - Cluster 47,REDFERN TRAVEL LTD,1011701252,-31.9,CONSOLIDATED BUSINESS TRAVEL WK 43,BD1 5HQ,PROGRAMME
FOOD STANDARDS AGENCY - Westminster,FOOD STANDARDS AGENCY - Westminster,2016-11-17,EXP - PURCHASE OF GOODS/SERVICES - RAIL TRAVEL,Area 5 South West England - Cluster 57,REDFERN TRAVEL LTD,1011701397,-51,CONSOLIDATED BUSINESS TRAVEL WK 45,BD1 5HQ,PROGRAMME
FOOD STANDARDS AGENCY - Westminster,FOOD STANDARDS AGENCY - Westminster,2016-11-02,EXP - PURCHASE OF GOODS/SERVICES - SUBSISTENCE,Area 4 North East England - Cluster 43,REDFERN TRAVEL LTD,1011701252,-52.27,CONSOLIDATED BUSINESS TRAVEL WK 43,BD1 5HQ,PROGRAMME
FOOD STANDARDS AGENCY - Westminster,FOOD STANDARDS AGENCY - Westminster,2016-11-02,EXP - PURCHASE OF GOODS/SERVICES - RAIL TRAVEL,Chair & Deputy Chair,REDFERN TRAVEL LTD,1011701252,-61.65,CONSOLIDATED BUSINESS TRAVEL WK 43,BD1 5HQ,ADMIN
FOOD STANDARDS AGENCY - Westminster,FOOD STANDARDS AGENCY - Westminster,2016-11-29,EXP - PURCHASE OF GOODS/SERVICES -  FOREIGN AIR TRAVEL,Regulatory & International,REDFERN TRAVEL LTD,1011701479,-80.5,CONSOLIDATED BUSINESS TRAVEL WEEK 47,BD1 5HQ,ADMIN
FOOD STANDARDS AGENCY - Westminster,FOOD STANDARDS AGENCY - Westminster,2016-11-23,EXP - PURCHASE OF GOODS/SERVICES - SUBSISTENCE,Comms Directors Office,REDFERN TRAVEL LTD,1011701444,-106.16,CONSOLIDATED BUSINESS TRAVEL WEEK 46,BD1 5HQ,ADMIN
FOOD STANDARDS AGENCY - Westminster,FOOD STANDARDS AGENCY - Westminster,2016-11-29,EXP - PURCHASE OF GOODS/SERVICES - RAIL TRAVEL,Area 5 South West England - Cluster 56,REDFERN TRAVEL LTD,1011701479,-157,CONSOLIDATED BUSINESS TRAVEL WEEK 47,BD1 5HQ,PROGRAMME
FOOD STANDARDS AGENCY - Westminster,FOOD STANDARDS AGENCY - Westminster,2016-11-02,EXP - PURCHASE OF GOODS/SERVICES - RAIL TRAVEL,Microbiological Food Safety Branch,REDFERN TRAVEL LTD,1011701252,-199.75,CONSOLIDATED BUSINESS TRAVEL WK 43,BD1 5HQ,ADMIN
FOOD STANDARDS AGENCY - Westminster,FOOD STANDARDS AGENCY - Westminster,2016-11-15,EXP - PURCHASE OF GOODS/SERVICES - AIR TRAVEL,Operations Assurance ,REDFERN TRAVEL LTD,10000057,-342.91,CONSOLIDATED BUSINESS TRAVEL WK 41,BD1 5HQ,PROGRAMME
FOOD STANDARDS AGENCY - Westminster,FOOD STANDARDS AGENCY - Westminster,2016-11-16,EXP - PURCHASE OF GOODS/SERVICES - ACCOMMODATION & BLDNG MANAGEMENT - INSURANCE,Security & Estates,DEFRA C/O CAPITA,1011701388,-1048.73,CAPITA INVICE 100254/9699 - FOSS HOUSE RENT RATES AND UTILITIES OCTOMBER 2016,EC2V 7NQ,ADMIN
FOOD STANDARDS AGENCY - Westminster,FOOD STANDARDS AGENCY - Westminster,2016-11-04,EXP - PURCHASE OF GOODS/SERVICES - OTHER ENERGY/UTILITIES/WASTE COST,Security & Estates,DEFRA C/O CAPITA,1011701280,-8262.64,CAPITA INVOICE 100245/9679- FOSS HOUSE RENT AND UTILITIES -SEPTEMBER 2016,EC2V 7NQ,ADMIN
FOOD STANDARDS AGENCY - Westminster,FOOD STANDARDS AGENCY - Westminster,2016-11-04,EXP - PURCHASE OF GOODS/SERVICES - OTHER - PROGRAMME EXPENDITURE,Chemical Risk Assessment Unit,UNIVERSITY OF HULL,1011701283,-60000,"REF INVOICE NUMBER SOIN62172 , SOIN62280 & SOIN62281",HU6 7RX,PROGRAMME
FOOD STANDARDS AGENCY - Westminster,FOOD STANDARDS AGENCY - Westminster,2016-11-04,EXP - PURCHASE OF GOODS/SERVICES - OTHER - PROGRAMME EXPENDITURE,Chemical Risk Assessment Unit,UNIVERSITY OF HULL,1011701283,-66000,"REF INVOICE NUMBER SOIN62172 , SOIN62280 & SOIN62281",HU6 7RX,PROGRAMME
